{"text_format":"1","workbook":"xlsx","n_sheets":28,"sheets":["Photos","Champions","Écuries","Pilotes","Bahrein","Arabie Saoudite","Australie","Azerbaïdjan","Miami","ItalieIm","Monaco","Espagne","Canada","Autriche","GB","Hongrie","Belgique","Pays-Bas","Italie","Singapour","Japon","Qatar","USA","Mexique","Brésil","Las Végas","AbuDhabi","Graphique"],"not_rendered":{"charts":0,"images":126,"macros":1,"external_links":2,"defined_names":33,"comments":0,"pivot_tables":0},"unopened":[],"bounds":{"document_bytes":16777216,"sheet_cells":100000,"rows_first":2000,"rows_last":500,"rows_between":2000,"halvings":0,"cell_chars":16384,"cell_head_chars":4096},"cells_cut":0,"cells_raw":0,"read":"whole","date_system":"1900"}

{"sheet":"Photos","index":0,"n_rows":27,"n_cols":20,"rows_kept":27,"cut":false,"hidden":false,"merged":[[1,5,1,7],[1,1,1,3],[1,9,1,11],[1,13,1,15],[1,17,1,19]]}
[]
[null," Pilotes",null,null,null,"Autos",null,null,null,"Logos ",null,null,null,"Champions Pilotes",null,null,null,"Champions Voitures"]
[null,"Noms",null,"Photos",null,"Noms",null,"Photos",null,"Noms",null,"Photos",null,"Noms",null,"Drapeaux",null,"Noms",null,"Drapeaux"]
[null,"HAMILTON Lewis",{"$f":"\"Photos!\"&ADDRESS(ROW(C4),COLUMN(D4))","v":"Photos!$D$4"},null,null,"MERCEDES",{"$f":"\"Photos!\"&ADDRESS(ROW(G4),COLUMN(H4))","v":"Photos!$H$4"},null,null,"MERCEDES",{"$f":"\"Photos!\"&ADDRESS(ROW(K4),COLUMN(L4))","v":"Photos!$L$4"},null,null,"HAMILTON Lewis",{"$f":"\"Photos!\"&ADDRESS(ROW(O4),COLUMN(P4))","v":"Photos!$P$4"},null,null,"MERCEDES",{"$f":"\"Photos!\"&ADDRESS(ROW(S4),COLUMN(T4))","v":"Photos!$T$4"}]
[null,"RUSSELL George","Photos!$D$5",null,null,"FERRARI","Photos!$H$5",null,null,"FERRARI",{"$f":"\"Photos!\"&ADDRESS(ROW(K5),COLUMN(L5))","v":"Photos!$L$5"},null,null,"RUSSELL George","Photos!$P$5",null,null,"FERRARI","Photos!$T$5"]
[null,"LECLERC Charles","Photos!$D$6",null,null,"RED BULL RACING","Photos!$H$6",null,null,"RED BULL RACING","Photos!$L$6",null,null,"LECLERC Charles","Photos!$P$6",null,null,"RED BULL RACING","Photos!$T$6"]
[null,"SAINZ.Jr Carlos","Photos!$D$7",null,null,"ASTON MARTIN","Photos!$H$7",null,null,"ASTON MARTIN","Photos!$L$7",null,null,"SAINZ.Jr Carlos","Photos!$P$7",null,null,"ASTON MARTIN","Photos!$T$7"]
[null,"VERSTAPPEN Max","Photos!$D$8",null,null,"WILLIAMS","Photos!$H$8",null,null,"WILLIAMS","Photos!$L$8",null,null,"VERSTAPPEN Max","Photos!$P$8",null,null,"WILLIAMS","Photos!$T$8"]
[null,"PEREZ Sergio","Photos!$D$9",null,null,"ALPINE F1 TEAM","Photos!$H$9",null,null,"ALPINE F1 TEAM","Photos!$L$9",null,null,"PEREZ Sergio","Photos!$P$9",null,null,"ALPINE F1 TEAM","Photos!$T$9"]
[null,"STROLL Lance","Photos!$D$10",null,null,"ALPHA TAURI","Photos!$H$10",null,null,"ALPHA TAURI","Photos!$L$10",null,null,"STROLL Lance","Photos!$P$10",null,null,"ALPHA TAURI","Photos!$T$10"]
[null,"ALONSO Fernando","Photos!$D$11",null,null,"HAAS","Photos!$H$11",null,null,"HAAS","Photos!$L$11",null,null,"ALONSO Fernando","Photos!$P$11",null,null,"HAAS","Photos!$T$11"]
[null,"SARGEANT Logan","Photos!$D$12",null,null,"Mc LAREN","Photos!$H$12",null,null,"Mc LAREN","Photos!$L$12",null,null,"SARGEANT Logan","Photos!$P$12",null,null,"Mc LAREN","Photos!$T$12"]
[null,"ALBON Alexander","Photos!$D$13",null,null,"ALFA ROMÉO","Photos!$H$13",null,null,"ALFA ROMÉO","Photos!$L$13",null,null,"ALBON Alexander","Photos!$P$13",null,null,"ALFA ROMÉO","Photos!$T$13"]
[null,"GASLY Pierre","Photos!$D$14",null,null,null,null,null,null,null,null,null,null,"GASLY Pierre","Photos!$P$14"]
[null,"OCON Sebastian","Photos!$D$15",null,null,null,null,null,null,null,null,null,null,"OCON Sebastian","Photos!$P$15"]
[null,"TSUNODA Yuki","Photos!$D$16",null,null,null,null,null,null,null,null,null,null,"TSUNODA Yoki","Photos!$P$16"]
[null,"DEVRIES Nyck","Photos!$D$17",null,null,null,null,null,null,null,null,null,null,"DEVRIES Nyck","Photos!$P$17"]
[null,"HULKENBERG Nico","Photos!$D$18",null,null,null,null,null,null,null,null,null,null,"HULKENBERG Nico","Photos!$P$18"]
[null,"MAGNUSSEN Kevin","Photos!$D$19",null,null,null,null,null,null,null,null,null,null,"MAGNUSSEN Kevin","Photos!$P$19"]
[null,"NORRIS Lando","Photos!$D$20",null,null,null,null,null,null,null,null,null,null,"NORRIS Lando","Photos!$P$20"]
[null,"PIASTRI Oscar","Photos!$D$21",null,null,null,null,null,null,null,null,null,null,"PIASTRI Oscar","Photos!$P$21"]
[null,"BOTTAS Valtteri","Photos!$D$22",null,null,null,null,null,null,null,null,null,null,"BOTTAS Valtteri","Photos!$P$22"]
[null,"GUANYU Zhou","Photos!$D$23",null,null,null,null,null,null,null,null,null,null,"GUANYU Zhou","Photos!$P$23"]
[null,"RICCIARDO Daniel","Photos!$D$24",null,null,null,null,null,null,null,null,null,null,"DUGROVICH Felipe","Photos!$P$24"]
[null,"LAWSON LIAM","Photos!$D$25",null,null,null,null,null,null,null,null,null,null,null,"Photos!$P$25"]
[null,null,"Photos!$D$26",null,null,null,null,null,null,null,null,null,null,null,"Photos!$P$26"]
[null,null,{"$f":"\"Photos!\"&ADDRESS(ROW(C27),COLUMN(D27))","v":"Photos!$D$27"},null,null,null,null,null,null,null,null,null,null,null,{"$f":"\"Photos!\"&ADDRESS(ROW(O27),COLUMN(P27))","v":"Photos!$P$27"}]

{"sheet":"Champions","index":1,"n_rows":38,"n_cols":10,"rows_kept":38,"cut":false,"hidden":false,"merged":[[36,1,36,3],[37,1,37,3],[36,9,36,11],[37,9,37,11],[35,5,39,7],[38,9,42,11],[38,1,44,3],[3,2,3,10],[27,2,27,10],[33,5,33,7],[34,5,34,7],[7,5,7,7],[8,5,8,7],[10,1,10,3],[11,1,11,3],[10,9,10,11],[11,9,11,11],[9,5,14,7],[12,1,17,3],[12,9,17,11]]}
[]
[]
[]
[null,null,"CHAMPIONNAT PILOTES 2023"]
[]
[]
[]
[null,null,null,null,null,"CHAMPION 2023"]
[null,null,null,null,null,{"$f":"Pilotes!$B$5","v":"VERSTAPPEN Max"}]
[]
[null,"DEUXIÈME",null,null,null,null,null,null,null,"TROIXIÈME"]
[null,{"$f":"Pilotes!$B$6","v":"PEREZ Sergio"},null,null,null,null,null,null,null,{"$f":"Pilotes!$B$7","v":"HAMILTON Lewis"}]
[]
[]
[]
[]
[]
[]
[]
[]
[]
[]
[]
[]
[]
[]
[]
[null,null,"CHAMPIONNAT CONSTRUCTEURS 2023"]
[]
[]
[]
[]
[]
[null,null,null,null,null,"CHAMPION 2023"]
[null,null,null,null,null,{"$f":"Écuries!$C$4","v":"RED BULL RACING"}]
[]
[null,"DEUXIÈME",null,null,null,null,null,null,null,"TROIXIÈME"]
[null,{"$f":"Écuries!$C$5","v":"MERCEDES"},null,null,null,null,null,null,null,{"$f":"Écuries!$C$6","v":"FERRARI"}]

{"sheet":"Écuries","index":2,"n_rows":21,"n_cols":7,"rows_kept":21,"cut":false,"hidden":false,"merged":[[0,2,0,6],[16,4,17,4]]}
[]
[]
[null,null,"ÉCURIES","POINTS","Écart/premier","Écart/précédent","RANG"]
[null,null,"RED BULL RACING",{"$f":"SUM(Bahrein:AbuDhabi!$G$11:$G$13)","v":822},null,null,{"$f":"IF(D4=\"\",0,(RANK(D4,$D$4:$D$13)))","v":1}]
[null,null,"MERCEDES",{"$f":"SUM(Bahrein:AbuDhabi!$G$5:$G$7)","v":392},{"$f":"D4-D5","v":430},{"$f":"D4-D5","v":430},2]
[null,null,"FERRARI",{"$f":"SUM(Bahrein:AbuDhabi!$G$8:$G$10)","v":388},{"$f":"D4-D6","v":434},{"$f":"D5-D6","v":4},3]
[null,null,"Mc LAREN",{"$f":"SUM(Bahrein:AbuDhabi!$G$29:$G$31)","v":284},{"$f":"D4-D7","v":538},104,4]
[null,null,"ASTON MARTIN",{"$f":"SUM(Bahrein:AbuDhabi!$G$14:$G$16)","v":273},{"$f":"D4-D8","v":549},11,5]
[null,null,"ALPINE F1 TEAM",{"$f":"SUM(Bahrein:AbuDhabi!$G$20:$G$22)","v":120},{"$f":"D4-D9","v":702},{"$f":"D8-D9","v":153},6]
[null,null,"WILLIAMS",{"$f":"SUM(Bahrein:AbuDhabi!$G$17:$G$19)","v":28},{"$f":"D4-D10","v":794},92,7]
[null,null,"ALPHA TAURI",{"$f":"SUM(Bahrein:AbuDhabi!$G$23:$G$25)","v":21},{"$f":"D4-D11","v":801},7,8]
[null,null,"ALFA ROMÉO",{"$f":"SUM(Bahrein:AbuDhabi!$G$32:$G$34)","v":16},{"$f":"D4-D12","v":806},5,9]
[null,null,"HAAS",{"$f":"SUM(Bahrein:AbuDhabi!$G$26:$G$28)","v":12},{"$f":"D4-D13","v":810},{"$f":"D12-D13","v":4},10]
[]
[]
[]
[null,null,"Écuries","POINTS","VS","Écuries","POINTS"]
[null,null,"ALPINE F1 TEAM",{"$f":"INDEX(D4:D13,MATCH(C18,C4:C13,0))","v":120},null,"ASTON MARTIN",{"$f":"INDEX($D$4:$D$13,MATCH($F$18,C4:C13,0))","v":273}]
[]
[null,null,null,null,"ÉCART"]
[null,null,null,null,{"$f":"D18-G18","v":-153}]

{"sheet":"Pilotes","index":3,"n_rows":36,"n_cols":28,"rows_kept":36,"cut":false,"hidden":false,"merged":[[31,4,32,4],[2,9,3,9],[0,0,0,7],[2,1,3,1],[2,2,3,2],[2,4,3,4],[2,5,3,5],[2,6,3,6],[2,0,3,0],[2,3,3,3]]}
[]
[]
[null,"PILOTES","Points","Place","Écart-premier","Écart/précédent","Pôle Position",6,null,"Courses"]
[null,null,{"$f":"IFERROR(SUM([1]Australie!G33,[2]Bahreïn!F33),\"\")","v":0},null,null,null,null,"Nbre de fois","%",{"$f":"IF(G4=0,\"\",(RANK(G4,G1:G4)))","v":""}]
[null,"VERSTAPPEN Max",{"$f":"SUM(Bahrein:AbuDhabi!$G$11)","v":549},{"$f":"IF(C5=\"\",0,(RANK(C5,$C$5:$C$28)))","v":1},null,null,{"$f":"CalculPool(B5)","v":{"$error":"#NAME?"}},{"$f":"CalculPosition(B5)","v":{"$error":"#NAME?"}},{"$f":"H5/22","v":{"$error":"#NAME?"}},"Australie",null,null,null,null,null,null,null,null,null,null,null,null,null,null,null,null,"Brésil","Las Végas"]
[null,"PEREZ Sergio",{"$f":"SUM(Bahrein:AbuDhabi!$G$12)","v":273},{"$f":"IF(C6=\"\",0,(RANK(C6,$C$5:$C$28)))","v":2},{"$f":"C5-C6","v":276},{"$f":"C5-C6","v":276},{"$error":"#NAME?"},{"$error":"#NAME?"},{"$error":"#NAME?"},"AbuDhabi","Canada","GB"]
[null,"HAMILTON Lewis",{"$f":"SUM(Bahrein:AbuDhabi!$G$5)","v":232},3,{"$f":"C5-C7","v":317},41,{"$error":"#NAME?"},{"$error":"#NAME?"},{"$error":"#NAME?"},"Arabie Saoudite","Azerbaïdjan","Miami","Pays-Bas","Italie"]
[null,"ALONSO Fernando",{"$f":"SUM(Bahrein:AbuDhabi!$G$14)","v":200},4,{"$f":"C5-C8","v":349},{"$f":"C7-C8","v":32},{"$error":"#NAME?"},{"$error":"#NAME?"},{"$error":"#NAME?"},"Autriche","Qatar"]
[null,"SAINZ.Jr Carlos",{"$f":"SUM(Bahrein:AbuDhabi!$G$8)","v":200},4,{"$f":"C5-C9","v":349},0,{"$error":"#NAME?"},{"$error":"#NAME?"},{"$error":"#NAME?"},"Azerbaïdjan","Arabie Saoudite","Autriche","Japon","Brésil","Las Végas"]
[null,"NORRIS Lando",{"$f":"SUM(Bahrein:AbuDhabi!$G$29)","v":195},6,{"$f":"C5-C10","v":354},5,{"$error":"#NAME?"},{"$error":"#NAME?"},{"$error":"#NAME?"},"Bahrein","Australie"]
[null,"LECLERC Charles",{"$f":"SUM(Bahrein:AbuDhabi!$G$9)","v":188},7,{"$f":"C5-C11","v":361},7,{"$error":"#NAME?"},{"$error":"#NAME?"},{"$error":"#NAME?"},"Belgique","Monaco"]
[null,"RUSSELL George",{"$f":"SUM(Bahrein:AbuDhabi!$G$6)","v":160},8,{"$f":"C5-C12","v":389},28,{"$error":"#NAME?"},{"$error":"#NAME?"},{"$error":"#NAME?"},"Brésil","Hongrie","Belgique","Mexique"]
[null,"PIASTRI Oscar",{"$f":"SUM(Bahrein:AbuDhabi!$G$30)","v":89},9,{"$f":"C5-C13","v":460},71,{"$error":"#NAME?"},{"$error":"#NAME?"},{"$error":"#NAME?"},"Canada"]
[null,"STROLL Lance",{"$f":"SUM(Bahrein:AbuDhabi!$G$15)","v":73},10,{"$f":"C5-C14","v":476},16,{"$error":"#NAME?"},{"$error":"#NAME?"},{"$error":"#NAME?"},"Espagne","Bahrein","Espagne"]
[null,"GASLY Pierre",{"$f":"SUM(Bahrein:AbuDhabi!$G$20)","v":62},11,{"$f":"C5-C15","v":487},11,{"$error":"#NAME?"},{"$error":"#NAME?"},{"$error":"#NAME?"},"GB","Singapour","USA"]
[null,"OCON Sebastian",{"$f":"SUM(Bahrein:AbuDhabi!$G$21)","v":58},12,{"$f":"C5-C16","v":491},4,{"$error":"#NAME?"},{"$error":"#NAME?"},{"$error":"#NAME?"},"Hongrie"]
[null,"ALBON Alexander",{"$f":"SUM(Bahrein:AbuDhabi!$G$17)","v":27},13,{"$f":"C5-C17","v":522},31,{"$error":"#NAME?"},{"$error":"#NAME?"},{"$error":"#NAME?"},"Italie"]
[null,"TSUNODA Yuki",{"$f":"SUM(Bahrein:AbuDhabi!$G$23)","v":13},14,{"$f":"C5-C18","v":536},14,{"$error":"#NAME?"},{"$error":"#NAME?"},{"$error":"#NAME?"},"ItalieIm"]
[null,"BOTTAS Valtteri",{"$f":"SUM(Bahrein:AbuDhabi!$G$32)","v":10},15,{"$f":"C5-C19","v":539},3,{"$error":"#NAME?"},{"$error":"#NAME?"},{"$error":"#NAME?"},"Japon"]
[null,"HULKENBERG Nico",{"$f":"SUM(Bahrein:AbuDhabi!$G$27)","v":9},16,{"$f":"C5-C20","v":540},1,{"$error":"#NAME?"},{"$error":"#NAME?"},{"$error":"#NAME?"},"Las Végas"]
[null,"GUANYU Zhou",{"$f":"SUM(Bahrein:AbuDhabi!$G$33)","v":6},17,{"$f":"C5-C21","v":543},3,{"$error":"#NAME?"},{"$error":"#NAME?"},{"$error":"#NAME?"},"Mexique"]
[null,"RICCIARDO Daniel",{"$f":"SUM(GB:AbuDhabi!$G$24)","v":6},17,{"$f":"C5-C22","v":543},0,{"$error":"#NAME?"},{"$error":"#NAME?"},{"$error":"#NAME?"},"Miami"]
[null,"MAGNUSSEN Kevin",{"$f":"SUM(Bahrein:AbuDhabi!$G$26)","v":3},19,{"$f":"C5-C23","v":546},3,{"$error":"#NAME?"},{"$error":"#NAME?"},{"$error":"#NAME?"},"Monaco"]
[null,"LAWSON Liam",{"$f":"SUM('Pays-Bas:Qatar'!$G$25)","v":2},20,{"$f":"C5-C24","v":547},1,{"$error":"#NAME?"},{"$error":"#NAME?"},{"$error":"#NAME?"},"Pays-Bas"]
[null,"SARGEANT Logan",{"$f":"SUM(Bahrein:AbuDhabi!$G$18)","v":1},21,{"$f":"C5-C25","v":548},{"$f":"C24-C25","v":1},{"$error":"#NAME?"},{"$error":"#NAME?"},{"$error":"#NAME?"},"Qatar"]
[null,"DEVRIES Nyck",{"$f":"SUM(Bahrein:Autriche!$G$24)","v":0},22,{"$f":"C6-C26","v":273},{"$f":"C25-C26","v":1},{"$error":"#NAME?"},{"$error":"#NAME?"},{"$error":"#NAME?"},"Singapour"]
[null,null,null,null,null,null,null,null,null,"USA"]
[]
[]
[null,null,null,null,null,null,null,null,"Moyenne"]
[null,null,null,null,null,null,null,null,{"$f":"AVERAGE($I$5:$I$28)","v":{"$error":"#NAME?"}}]
[null,"PILOTE 1","Points",null,"VS","PILOTE 2","Points"]
[null,"PEREZ Sergio",{"$f":"INDEX(C5:C28,MATCH(B33,B5:B28,0))","v":273},null,null,"HAMILTON Lewis",{"$f":"INDEX(C5:C28,MATCH(F33,B5:B28,0))","v":232}]
[]
[null,null,null,null,"ÉCART"]
[null,null,null,null,{"$f":"C33-G33","v":41}]

{"sheet":"Bahrein","index":4,"n_rows":34,"n_cols":17,"rows_kept":34,"cut":false,"hidden":false,"merged":[[36,1,36,3],[31,1,33,1],[31,2,33,2],[22,1,24,1],[22,2,24,2],[25,1,27,1],[25,2,27,2],[28,1,30,1],[28,2,30,2],[13,1,15,1],[13,2,15,2],[16,1,18,1],[16,2,18,2],[19,1,21,1],[19,2,21,2],[4,1,6,1],[4,2,6,2],[7,1,9,1],[7,2,9,2],[10,1,12,1],[10,2,12,2],[0,0,1,14],[2,1,3,1],[2,2,3,2],[2,3,3,3],[2,5,3,5],[2,6,3,6],[2,4,3,4],[2,0,3,0]]}
["SAKHIR - 5 MARS 2023"]
[]
["PILOTES","ECURIES","VOITURES","Finish","Pôle","Pt tour","Points",null,"ÉCURIES","Points","Écart","Rang",null,"Noms","Points","Écart","Rang"]
[null,null,null,null,null,null,null,null,"RED BULL RACING",{"$f":"SUM($G$11:$G$13)","v":43},{"$f":"J4-J5","v":20},{"$f":"IF(J4=\"\",0,(RANK(J4,$J$4:$J$13)))","v":1},null,"VERSTAPPEN Max",{"$f":"$G$11","v":25},null,{"$f":"IF(O4=\"\",0,(RANK(O4,$O$4:$O$23)))","v":1}]
["HAMILTON Lewis","MERCEDES",null,5,null,null,{"$f":"IFERROR(CHOOSE(D5,25,18,15,12,10,8,6,4,2,1)+IF(D5<=10,F5),0)","v":10},null,"ASTON MARTIN",{"$f":"SUM($G$14:$G$16)","v":23},{"$f":"J4-J5","v":20},2,null,"PEREZ Sergio",{"$f":"$G$12","v":18},{"$f":"O4-O5","v":7},{"$f":"IF(O5=\"\",0,(RANK(O5,$O$4:$O$23)))","v":2}]
["RUSSELL George",null,null,7,null,null,{"$f":"IFERROR(CHOOSE(D6,25,18,15,12,10,8,6,4,2,1)+IF(D6<=10,F6),0)","v":6},null,"MERCEDES",{"$f":"SUM($G$5:$G$7)","v":16},{"$f":"J5-J6","v":7},3,null,"ALONSO Fernando",{"$f":"$G$14","v":15},{"$f":"O5-O6","v":3},3]
[null,null,null,null,null,null,0,null,"FERRARI",{"$f":"SUM($G$8:$G$10)","v":12},4,4,null,"SAINZ.Jr Carlos",{"$f":"$G$8","v":12},3,4]
["SAINZ.Jr Carlos","FERRARI",null,4,null,null,12,null,"ALFA ROMÉO",{"$f":"SUM($G$32:$G$34)","v":4},8,5,null,"HAMILTON Lewis",{"$f":"$G$5","v":10},2,5]
["LECLERC Charles",null,null,"OUT",null,null,0,null,"ALPINE F1 TEAM",{"$f":"SUM($G$20:$G$22)","v":2},2,6,null,"STROLL Lance",{"$f":"$G$15","v":8},2,6]
[null,null,null,null,null,null,0,null,"WILLIAMS",{"$f":"SUM($G$17:$G$19)","v":1},1,7,null,"RUSSEL George",{"$f":"$G$6","v":6},2,7]
["VERSTAPPEN Max","RED BULL RACING",null,1,1,null,25,null,"ALPHA TAURI",{"$f":"SUM($G$23:$G$25)","v":0},1,8,null,"BOTTAS Valtteri",{"$f":"$G$32","v":4},2,8]
["PEREZ Sergio",null,null,2,null,null,18,null,"Mc LAREN",{"$f":"SUM($G$29:$G$31)","v":0},0,8,null,"ALBON Alexander",{"$f":"$G$17","v":1},3,9]
[null,null,null,null,null,null,0,null,"HAAS",{"$f":"SUM($G$26:$G$28)","v":0},0,8,null,"LECLERC Charles",{"$f":"$G$9","v":0},1,10]
["ALONSO Fernando","ASTON MARTIN",null,3,null,null,15,null,null,null,null,null,null,"MAGNUSSEN Kevin",{"$f":"$G$26","v":0},0,10]
["STROLL Lance",null,null,6,null,null,8,null,null,null,null,null,null,"OCON Sebastian",{"$f":"$G$21","v":0},0,10]
[null,null,null,null,null,null,0,null,null,null,null,null,null,"TSUNODA Yoki",{"$f":"$G$23","v":0},0,10]
["ALBON Alexander","WILLIAMS",null,10,null,null,1,null,null,null,null,null,null,"GUANYU Zhou",{"$f":"$G$33","v":0},0,10]
["SARGEANT Logan",null,null,12,null,null,0,null,null,null,null,null,null,"NORRIS Lando",{"$f":"$G$29","v":0},0,10]
[null,null,null,null,null,null,0,null,null,null,null,null,null,"PIASTRI Oscar",{"$f":"$G$30","v":0},0,10]
["GASLY Pierre","ALPINE F1 TEAM",null,9,null,null,2,null,null,null,null,null,null,"GASLY Pierre",{"$f":"$G$24","v":0},0,10]
["OCON Sebastian",null,null,"OUT",null,null,0,null,null,null,null,null,null,"DEVRIES Nyck",{"$f":"$G$24","v":0},0,10]
[null,null,null,null,null,null,0,null,null,null,null,null,null,"SARGEANT Logan",{"$f":"$G$18","v":0},0,10]
["TSUNODA Yuki","ALPHA TAURI",null,11,null,null,0,null,null,null,null,null,null,"HULKENBERG Nico",{"$f":"$G$27","v":0},0,10]
["DEVRIES Nyck",null,null,14,null,null,0]
[null,null,null,null,null,null,0]
["MAGNUSSEN Kevin","HAAS",null,13,null,null,0]
["HULKENBERG Nico",null,null,15,null,null,0]
[null,null,null,null,null,null,0]
["NORRIS Lando","Mc LAREN",null,17,null,null,0]
["PIASTRI Oscar",null,null,"OUT",null,null,0]
[null,null,null,null,null,null,0]
["BOTTAS Valtteri","ALFA ROMÉO",null,8,null,null,4]
["GUANYU Zhou",null,null,16,null,null,0]
[null,null,null,null,null,null,0]

{"sheet":"Arabie Saoudite","index":5,"n_rows":34,"n_cols":18,"rows_kept":34,"cut":false,"hidden":false,"merged":[[2,5,3,5],[2,6,3,6],[4,1,6,1],[4,2,6,2],[36,1,36,3],[10,1,12,1],[10,2,12,2],[2,0,3,0],[2,1,3,1],[2,2,3,2],[2,3,3,3],[7,1,9,1],[7,2,9,2],[0,0,1,16],[31,1,33,1],[31,2,33,2],[22,1,24,1],[22,2,24,2],[25,1,27,1],[25,2,27,2],[28,1,30,1],[28,2,30,2],[13,1,15,1],[13,2,15,2],[16,1,18,1],[16,2,18,2],[19,1,21,1],[19,2,21,2],[2,4,3,4]]}
["DJEDDAH - 19 MARS 2023"]
[]
["PILOTES","ECURIES","VOITURES","Finish","Pôle","Pt tour","Points",null,"ÉCURIES","Points","Écart","Rang",null,"Noms","Points","Écart","Rang"]
[null,null,null,null,null,null,null,null,"RED BULL RACING",{"$f":"SUM('Bahrein:Arabie Saoudite'!$G$11:$G$13)","v":87},null,{"$f":"IF(J4=\"\",0,(RANK(J4,$J$4:$J$13)))","v":1},null,"VERSTAPPEN Max",{"$f":"IF(Bahrein!$D$11=\"\",0,SUM('Bahrein:Arabie Saoudite'!$G$11))","v":44},null,{"$f":"IF(O4=\"\",0,(RANK(O4,$O$4:$O$23)))","v":1}]
["HAMILTON Lewis","MERCEDES",null,5,null,null,{"$f":"IFERROR(CHOOSE(D5,25,18,15,12,10,8,6,4,2,1)+IF(D5<=10,F5),0)","v":10},null,"MERCEDES",{"$f":"SUM('Bahrein:Arabie Saoudite'!$G$5:$G$7)","v":38},{"$f":"J4-J5","v":49},{"$f":"IF(J5=\"\",0,(RANK(J5,$J$4:$J$13)))","v":2},null,"PEREZ Sergio",{"$f":"IF(Bahrein!$D$12=\"\",0,SUM('Bahrein:Arabie Saoudite'!$G$12))","v":43},{"$f":"O4-O5","v":1},{"$f":"IF(O5=0,0,(RANK(O5,$O$4:$O$23)))","v":2}]
["RUSSELL George",null,null,4,null,null,{"$f":"IFERROR(CHOOSE(D6,25,18,15,12,10,8,6,4,2,1)+IF(D6<=10,F6),0)","v":12},null,"ASTON MARTIN",{"$f":"SUM('Bahrein:Arabie Saoudite'!$G$14:$G$16)","v":38},{"$f":"J5-J6","v":0},2,null,"ALONSO Fernando",{"$f":"IF(Bahrein!$D$14=\"\",0,SUM('Bahrein:Arabie Saoudite'!$G$14))","v":30},{"$f":"O5-O6","v":13},3]
[null,null,null,null,null,null,0,null,"FERRARI",{"$f":"SUM('Bahrein:Arabie Saoudite'!$G$8:$G$10)","v":26},12,4,null,"HAMILTON Lewis",{"$f":"IF(Bahrein!$D$5=\"\",0,SUM('Bahrein:Arabie Saoudite'!$G$5))","v":20},10,{"$f":"IF(O7=0,0,(RANK(O7,$O$4:$O$23)))","v":4}]
["SAINZ.Jr Carlos","FERRARI",null,6,null,null,8,null,"ALPINE F1 TEAM",{"$f":"SUM('Bahrein:Arabie Saoudite'!$G$20:$G$22)","v":8},18,5,null,"SAINZ.Jr Carlos",{"$f":"IF(Bahrein!$D$8=\"\",0,SUM('Bahrein:Arabie Saoudite'!$G$8))","v":20},0,4]
["LECLERC Charles",null,null,7,null,null,6,null,"ALFA ROMÉO",{"$f":"SUM('Bahrein:Arabie Saoudite'!$G$32:$G$34)","v":4},4,6,null,"RUSSEL George",{"$f":"IF(Bahrein!$D$6=\"\",0,SUM('Bahrein:Arabie Saoudite'!$G$6))","v":18},2,6]
[null,null,null,null,null,null,0,null,"HAAS",{"$f":"SUM('Bahrein:Arabie Saoudite'!$G$26:$G$28)","v":1},3,7,null,"STROLL Lance",{"$f":"IF(Bahrein!$D$15=\"\",0,SUM('Bahrein:Arabie Saoudite'!$G$15))","v":8},10,7]
["VERSTAPPEN Max","RED BULL RACING",null,2,null,1,19,null,"WILLIAMS",{"$f":"SUM('Bahrein:Arabie Saoudite'!$G$17:$G$19)","v":1},0,7,null,"LECLERC Charles",{"$f":"IF(Bahrein!$D$9=\"\",0,SUM('Bahrein:Arabie Saoudite'!$G$9))","v":6},2,8]
["PEREZ Sergio",null,null,1,1,null,25,null,"Mc LAREN",{"$f":"SUM('Bahrein:Arabie Saoudite'!$G$29:$G$31)","v":0},1,9,null,"GASLY Pierre",{"$f":"IF(Bahrein!$D$20=\"\",0,SUM('Bahrein:Arabie Saoudite'!$G$20))","v":4},2,9]
[null,null,null,null,null,null,0,null,"ALPHA TAURI",{"$f":"SUM('Bahrein:Arabie Saoudite'!$G$23:$G$25)","v":0},0,9,null,"OCON Sebastian",{"$f":"IF(Bahrein!$D$21=\"\",0,SUM('Bahrein:Arabie Saoudite'!$G$21))","v":4},0,9]
["ALONSO Fernando","ASTON MARTIN",null,3,null,null,15,null,null,null,null,null,null,"BOTTAS Valtteri",{"$f":"IF(Bahrein!$D$32=\"\",0,SUM('Bahrein:Arabie Saoudite'!$G$32))","v":4},0,9]
["STROLL Lance",null,null,"OUT",null,null,0,null,null,null,null,null,null,"NORRIS Lando",{"$f":"IF(Bahrein!$D$21=\"\",0,SUM('Bahrein:Arabie Saoudite'!$G$21))","v":4},0,9]
[null,null,null,null,null,null,0,null,null,null,null,null,null,"ALBON Alexander",{"$f":"IF(Bahrein!$D$17=\"\",0,SUM('Bahrein:Arabie Saoudite'!$G$17))","v":1},3,13]
["ALBON Alexander","WILLIAMS",null,"OUT",null,null,0,null,null,null,null,null,null,"MAGNUSSEN Kevin",{"$f":"IF(Bahrein!$D$26=\"\",0,SUM('Bahrein:Arabie Saoudite'!$G$26))","v":1},0,13," "]
["SARGEANT Logan",null,null,16,null,null,0,null,null,null,null,null,null,"DEVRIES Nyck",{"$f":"IF(Bahrein!$D$24=\"\",0,SUM('Bahrein:Arabie Saoudite'!$G$24))","v":0},1,0]
[null,null,null,null,null,null,0,null,null,null,null,null,null,"GUANYU Zhou",{"$f":"IF(Bahrein!$D$33=\"\",0,SUM('Bahrein:Arabie Saoudite'!$G$33))","v":0},0,0]
["GASLY Pierre","ALPINE F1 TEAM",null,9,null,null,2,null,null,null,null,null,null,"SARGEANT Logan",{"$f":"IF(Bahrein!$D$18=\"\",0,SUM('Bahrein:Arabie Saoudite'!$G$18))","v":0},0,0]
["OCON Sebastian",null,null,8,null,null,4,null,null,null,null,null,null,"TSUNODA Yoki",{"$f":"IF(Bahrein!$D$23=\"\",0,SUM('Bahrein:Arabie Saoudite'!$G$23))","v":0},0,0]
[null,null,null,null,null,null,0,null,null,null,null,null,null,"PIASTRI Oscar",{"$f":"IF(Bahrein!$D$31=\"\",0,SUM(Bahrein:'Arabie Saoudite'!$G$31))","v":0},0,0]
["TSUNODA Yuki","ALPHA TAURI",null,11,null,null,0,null,null,null,null,null,null,"HULKENBERG Nico",{"$f":"IF(Bahrein!$D$27=\"\",0,SUM('Bahrein:Arabie Saoudite'!$G$27))","v":0},0,0]
["DEVRIES Nyck",null,null,14,null,null,0]
[null,null,null,null,null,null,0]
["MAGNUSSEN Kevin","HAAS",null,10,null,null,1]
["HULKENBERG Nico",null,null,12,null,null,0]
[null,null,null,null,null,null,0]
["NORRIS Lando","Mc LAREN",null,17,null,null,0]
["PIASTRI Oscar",null,null,15,null,null,0]
[null,null,null,null,null,null,0]
["BOTTAS Valtteri","ALFA ROMÉO",null,18,null,null,0]
["GUANYU Zhou",null,null,13,null,null,0]
[null,null,null,null,null,null,0]

{"sheet":"Australie","index":6,"n_rows":34,"n_cols":17,"rows_kept":34,"cut":false,"hidden":false,"merged":[[25,1,27,1],[0,0,1,16],[36,1,36,3],[31,2,33,2],[13,2,15,2],[16,2,18,2],[19,2,21,2],[28,2,30,2],[25,2,27,2],[22,2,24,2],[28,1,30,1],[31,1,33,1],[13,1,15,1],[16,1,18,1],[19,1,21,1],[22,1,24,1],[2,3,3,3],[2,5,3,5],[2,6,3,6],[2,4,3,4],[4,1,6,1],[7,2,9,2],[10,2,12,2],[4,2,6,2],[2,0,3,0],[2,1,3,1],[2,2,3,2],[7,1,9,1],[10,1,12,1]]}
["MELBOURNE - 2 AVRIL 2023"]
[]
["PILOTES","ECURIES","VOITURES","Finish","Pôle","Pt tour","Points",null,"ÉCURIES","Points","Écart","Rang",null,"Noms","Points","Écart","Rang"]
[null,null,null,null,null,null,null,null,"RED BULL RACING",{"$f":"IF(SUM('Arabie Saoudite'!$D$11:$D$12)=0,0,SUM(Bahrein:Australie!$G$11:$G$12))","v":123},null,{"$f":"IF(J4=\"\",0,(RANK(J4,$J$4:$J$13)))","v":1},null,"VERSTAPPEN Max",{"$f":"IF('Arabie Saoudite'!$D$11=\"\",0,SUM(Bahrein:Australie!$G$11))","v":69},null,{"$f":"IF(O4=\"\",0,(RANK(O4,$O$4:$O$23)))","v":1}]
["HAMILTON Lewis","MERCEDES",null,2,null,null,{"$f":"IFERROR(CHOOSE(D5,25,18,15,12,10,8,6,4,2,1)+IF(D5<=10,F5),0)","v":18},null,"ASTON MARTIN",{"$f":"IF(SUM('Arabie Saoudite'!$D$14:$D$15)=0,0,SUM(Bahrein:Australie!$G$14:$G$15))","v":65},{"$f":"J4-J5","v":58},{"$f":"IF(J5=\"\",0,(RANK(J5,$J$4:$J$13)))","v":2},null,"PEREZ Sergio",{"$f":"IF('Arabie Saoudite'!$D$12=\"\",0,SUM(Bahrein:Australie!$G$12))","v":54},{"$f":"O4-O5","v":15},{"$f":"IF(O5=\"\",0,(RANK(O5,$O$4:$O$23)))","v":2}]
["RUSSELL George",null,null,"OUT",null,null,{"$f":"IFERROR(CHOOSE(D6,25,18,15,12,10,8,6,4,2,1)+IF(D6<=10,F6),0)","v":0},null,"MERCEDES",{"$f":"IF(SUM('Arabie Saoudite'!$D$5:$D$6)=0,0,SUM(Bahrein:Australie!$G$5:$G$6))","v":56},{"$f":"J5-J6","v":9},3,null,"ALONSO Fernando",{"$f":"IF('Arabie Saoudite'!$D$14=\"\",0,SUM(Bahrein:Australie!$G$14))","v":45},{"$f":"O5-O6","v":9},3]
[null,null,null,null,null,null,0,null,"FERRARI",{"$f":"IF(SUM('Arabie Saoudite'!$D$8:$D$9)=0,0,SUM(Bahrein:Australie!$G$8:$G$9))","v":26},30,4,null,"HAMILTON Lewis",{"$f":"IF('Arabie Saoudite'!$D$5=\"\",0,SUM(Bahrein:Australie!$G$5))","v":38},7,4]
["SAINZ.Jr Carlos","FERRARI",null,12,null,null,0,null,"Mc LAREN",{"$f":"IF(SUM('Arabie Saoudite'!$D$29:$D$30)=0,0,SUM(Bahrein:Australie!$G$29:$G$30))","v":12},14,5,null,"STROLL Lance",{"$f":"IF('Arabie Saoudite'!$D$15=\"\",0,SUM(Bahrein:Australie!$G$15))","v":20},18,5]
["LECLERC Charles",null,null,"OUT",null,null,0,null,"ALPINE F1 TEAM",{"$f":"IF(SUM('Arabie Saoudite'!$D$20:$D$21)=0,0,SUM(Bahrein:Australie!$G$20:$G$21))","v":8},4,6,null,"SAINZ.Jr Carlos",{"$f":"IF('Arabie Saoudite'!$D$8=\"\",0,SUM(Bahrein:Australie!$G$8))","v":20},0,5]
[null,null,null,null,null,null,0,null,"HAAS",{"$f":"IF(SUM('Arabie Saoudite'!$D$26:$D$27)=0,0,SUM(Bahrein:Australie!$G$26:$G$27))","v":7},1,7,null,"RUSSEL George",{"$f":"IF('Arabie Saoudite'!$D$6=\"\",0,SUM(Bahrein:Australie!$G$6))","v":18},2,7]
["VERSTAPPEN Max","RED BULL RACING",null,1,1,null,25,null,"ALFA ROMÉO",{"$f":"IF(SUM('Arabie Saoudite'!$D$32:$D$33)=0,0,SUM(Bahrein:Australie!$G$32:$G$33))","v":6},1,8,null,"NORRIS Lando",{"$f":"IF('Arabie Saoudite'!$D$29=\"\",0,SUM(Bahrein:Australie!$G$29))","v":8},10,8]
["PEREZ Sergio",null,null,5,null,1,11,null,"ALPHA TAURI",{"$f":"IF(SUM('Arabie Saoudite'!$D$23:$D$24)=0,0,SUM(Bahrein:Australie!$G$23:$G$24))","v":1},5,9,null,"HULKENBERG Nico",{"$f":"IF('Arabie Saoudite'!$D$27=\"\",0,SUM(Bahrein:Australie!$G$27))","v":6},2,9]
[null,null,null,null,null,null,0,null,"WILLIAMS",{"$f":"IF(SUM('Arabie Saoudite'!$D$17:$D$18)=0,0,SUM(Bahrein:Australie!$G$17:$G$18))","v":1},0,9,null,"LECLERC Charles",{"$f":"IF('Arabie Saoudite'!$D$9=\"\",0,SUM(Bahrein:Australie!$G$9))","v":6},0,9]
["ALONSO Fernando","ASTON MARTIN",null,3,null,null,15,null,null,null,null,null,null,"BOTTAS Valtteri",{"$f":"IF('Arabie Saoudite'!$D$32=\"\",0,SUM(Bahrein:Australie!$G$32))","v":4},2,11]
["STROLL Lance",null,null,4,null,null,12,null,null,null,null,null,null,"PIASTRI Oscar",{"$f":"IF('Arabie Saoudite'!$D$30=\"\",0,SUM(Bahrein:Australie!$G$30))","v":4},0,11]
[null,null,null,null,null,null,0,null,null,null,null,null,null,"OCON Sebastian",{"$f":"IF('Arabie Saoudite'!$D$21=\"\",0,SUM(Bahrein:Australie!$G$21))","v":4},0,11]
["ALBON Alexander","WILLIAMS",null,"OUT",null,null,0,null,null,null,null,null,null,"GASLY Pierre",{"$f":"IF('Arabie Saoudite'!$D$20=\"\",0,SUM(Bahrein:Australie!$G$20))","v":4},0,11]
["SARGEANT Logan",null,null,"OUT",null,null,0,null,null,null,null,null,null,"GUANYU Zhou",{"$f":"IF('Arabie Saoudite'!$D$33=\"\",0,SUM(Bahrein:Australie!$G$33))","v":2},2,15]
[null,null,null,null,null,null,0,null,null,null,null,null,null,"MAGNUSSEN Kevin",{"$f":"IF('Arabie Saoudite'!$D$11=\"\",0,SUM(Bahrein:Australie!$G$26))","v":1},1,16]
["GASLY Pierre","ALPINE F1 TEAM",null,"OUT",null,null,0,null,null,null,null,null,null,"TSUNODA Yoki",{"$f":"IF('Arabie Saoudite'!$D$23=\"\",0,SUM(Bahrein:Australie!$G$23))","v":1},0,16]
["OCON Sebastian",null,null,"OUT",null,null,0,null,null,null,null,null,null,"ALBON Alexander",{"$f":"IF('Arabie Saoudite'!$D$17=\"\",0,SUM(Bahrein:Australie!$G$17))","v":1},0,16]
[null,null,null,null,null,null,0,null,null,null,null,null,null,"SARGEANT Logan",{"$f":"IF('Arabie Saoudite'!$D$18=\"\",0,SUM(Bahrein:Australie!$G$18))","v":0},1,19]
["TSUNODA Yuki","ALPHA TAURI",null,10,null,null,1,null,null,null,null,null,null,"DEVRIES Nyck",{"$f":"IF('Arabie Saoudite'!$D$24=\"\",0,SUM(Bahrein:Australie!$G$24))","v":0},0,19]
["DEVRIES Nyck",null,null,"OUT",null,null,0]
[null,null,null,null,null,null,0]
["MAGNUSSEN Kevin","HAAS",null,"OUT",null,null,0]
["HULKENBERG Nico",null,null,7,null,null,6]
[null,null,null,null,null,null,0]
["NORRIS Lando","Mc LAREN",null,6,null,null,8]
["PIASTRI Oscar",null,null,8,null,null,4]
[null,null,null,null,null,null,0]
["BOTTAS Valtteri","ALFA ROMÉO",null,11,null,null,0]
["GUANYU Zhou",null,null,9,null,null,2]
[null,null,null,null,null,null,0]

{"sheet":"Azerbaïdjan","index":7,"n_rows":34,"n_cols":17,"rows_kept":34,"cut":false,"hidden":false,"merged":[[36,1,36,3],[31,1,33,1],[31,2,33,2],[22,1,24,1],[22,2,24,2],[25,1,27,1],[25,2,27,2],[28,1,30,1],[28,2,30,2],[13,1,15,1],[13,2,15,2],[16,1,18,1],[16,2,18,2],[19,1,21,1],[19,2,21,2],[4,1,6,1],[4,2,6,2],[7,1,9,1],[7,2,9,2],[10,1,12,1],[10,2,12,2],[2,5,3,5],[2,6,3,6],[2,7,3,7],[0,0,1,16],[2,0,3,0],[2,1,3,1],[2,2,3,2],[2,3,3,3],[2,4,3,4]]}
["BAKOU - 30 AVRIL 2023"]
[]
["PILOTES","ECURIES","VOITURES","Finish","Pôle","Pt tour","Points","Sprint","ÉCURIES","Points","Écart","Rang",null,"Noms","Points","Écart","Rang"]
[null,null,null,null,null,null,null,null,"RED BULL RACING",{"$f":"IF(SUM(Australie!$D$11:$D$12)=0,0,SUM(Bahrein:Azerbaïdjan!$G$11:$G$12))","v":180},null,{"$f":"IF(J4=\"\",0,(RANK(J4,$J$4:$J$13)))","v":1},null,"VERSTAPPEN Max",{"$f":"IF(Australie!$D$11=\"\",0,SUM(Bahrein:Azerbaïdjan!$G$11))","v":93},null,{"$f":"IF(O4=\"\",0,(RANK(O4,$O$4:$O$23)))","v":1}]
["HAMILTON Lewis","MERCEDES",null,6,null,null,{"$f":"IFERROR(CHOOSE(D5,25,18,15,12,10,8,6,4,2,1),0)+IFERROR(CHOOSE(H5,8,7,6,5,4,3,2,1),0)+IF(D5<=10,F5,0)","v":10},7,"ASTON MARTIN",{"$f":"IF(SUM(Australie!$D$14:$D$15)=0,0,SUM(Bahrein:Azerbaïdjan!$G$14:$G$15))","v":87},{"$f":"J4-J5","v":93},{"$f":"IF(J5=\"\",0,(RANK(J5,$J$4:$J$13)))","v":2},null,"PEREZ Sergio",{"$f":"IF(Australie!$D$12=\"\",0,SUM(Bahrein:Azerbaïdjan!$G$12))","v":87},{"$f":"O4-O5","v":6},{"$f":"IF(O5=\"\",0,(RANK(O5,$O$4:$O$23)))","v":2}]
["RUSSELL George",null,null,8,null,1,{"$f":"IFERROR(CHOOSE(D6,25,18,15,12,10,8,6,4,2,1),0)+IFERROR(CHOOSE(H6,8,7,6,5,4,3,2,1),0)+IF(D6<=10,F6,0)","v":10},4,"MERCEDES",{"$f":"IF(SUM(Australie!$D$5:$D$6)=0,0,SUM(Bahrein:Azerbaïdjan!$G$5:$G$6))","v":76},{"$f":"J5-J6","v":11},3,null,"ALONSO Fernando",{"$f":"IF(Australie!$D$14=\"\",0,SUM(Bahrein:Azerbaïdjan!$G$14))","v":60},{"$f":"O5-O6","v":27},3]
[null,null,null,null,null,null,0,null,"FERRARI",{"$f":"IF(SUM(Australie!$D$8:$D$9)=0,0,SUM(Bahrein:Azerbaïdjan!$G$8:$G$9))","v":62},14,4,null,"HAMILTON Lewis",{"$f":"IF(Australie!$D$5=\"\",0,SUM(Bahrein:Azerbaïdjan!$G$5))","v":48},12,4]
["SAINZ.Jr Carlos","FERRARI",null,5,null,null,14,5,"Mc LAREN",{"$f":"IF(SUM(Australie!$D$29:$D$30)=0,0,SUM(Bahrein:Azerbaïdjan!$G$29:$G$30))","v":14},48,5,null,"SAINZ.Jr Carlos",{"$f":"IF(Australie!$D$8=\"\",0,SUM(Bahrein:Azerbaïdjan!$G$8))","v":34},14,5]
["LECLERC Charles",null,null,3,1,null,22,2,"HAAS",{"$f":"IF(SUM(Australie!$D$26:$D$27)=0,0,SUM(Bahrein:Azerbaïdjan!$G$26:$G$27))","v":7},7,6,null,"RUSSEL George",{"$f":"IF(Australie!$D$6=\"\",0,SUM(Bahrein:Azerbaïdjan!$G$6))","v":28},6,6]
[null,null,null,null,null,null,0,null,"ALFA ROMÉO",{"$f":"IF(SUM(Australie!$D$32:$D$33)=0,0,SUM(Bahrein:Azerbaïdjan!$G$32:$G$33))","v":6},1,7,null,"LECLERC Charles",{"$f":"IF(Australie!$D$9=\"\",0,SUM(Bahrein:Azerbaïdjan!$G$9))","v":28},0,6]
["VERSTAPPEN Max","RED BULL RACING",null,2,null,null,24,3,"ALPHA TAURI",{"$f":"IF(SUM(Australie!$D$23:$D$24)=0,0,SUM(Bahrein:Azerbaïdjan!$G$23:$G$24))","v":2},4,8,null,"STROLL Lance",{"$f":"IF(Australie!$D$15=\"\",0,SUM(Bahrein:Azerbaïdjan!$G$15))","v":27},1,8]
["PEREZ Sergio",null,null,1,null,null,33,1,"ALPINE F1 TEAM",{"$f":"IF(SUM(Australie!$D$20:$D$21)=0,0,SUM(Bahrein:Azerbaïdjan!$G$20:$G$21))","v":0},2,9,null,"NORRIS Lando",{"$f":"IF(Australie!$D$29=\"\",0,SUM(Bahrein:Azerbaïdjan!$G$29))","v":10},17,9]
[null,null,null,null,null,null,0,null,"WILLIAMS",{"$f":"IF(SUM(Australie!$D$17:$D$18)=0,0,SUM(Bahrein:Azerbaïdjan!$G$17:$G$18))","v":0},0,9,null,"PIASTRI Oscar",{"$f":"IF(Australie!$D$30=\"\",0,SUM(Bahrein:Azerbaïdjan!$G$30))","v":4},6,10]
["ALONSO Fernando","ASTON MARTIN",null,4,null,null,15,6,null,null,null,null,null,"GASLY Pierre",{"$f":"IF(Australie!$D$20=\"\",0,SUM(Bahrein:Azerbaïdjan!$G$20))","v":4},0,10]
["STROLL Lance",null,null,7,null,null,7,8,null,null,null,null,null,"BOTTAS Valtteri",{"$f":"IF(Australie!$D$32=\"\",0,SUM(Bahrein:Azerbaïdjan!$G$32))","v":4},0,10]
[null,null,null,null,null,null,0,null,null,null,null,null,null,"OCON Sebastian",{"$f":"IF(Australie!$D$21=\"\",0,SUM(Bahrein:Azerbaïdjan!$G$21))","v":4},0,10]
["ALBON Alexander","WILLIAMS",null,12,null,null,0,null,null,null,null,null,null,"GUANYU Zhou",{"$f":"IF(Australie!$D$33=\"\",0,SUM(Bahrein:Azerbaïdjan!$G$33))","v":2},2,14]
["SARGEANT Logan",null,null,16,null,null,0,null,null,null,null,null,null,"TSUNODA Yoki",{"$f":"IF(Australie!$D$23=\"\",0,SUM(Bahrein:Azerbaïdjan!$G$23))","v":2},0,14]
[null,null,null,null,null,null,0,null,null,null,null,null,null,"HULKENBERG Nico",{"$f":"IF(Australie!$D$26=\"\",0,SUM(Bahrein:Azerbaïdjan!$G$26))","v":1},1,16]
["GASLY Pierre","ALPINE F1 TEAM",null,14,null,null,0,null,null,null,null,null,null,"ALBON Alexander",{"$f":"IF(Australie!$D$17=\"\",0,SUM(Bahrein:Azerbaïdjan!$G$17))","v":1},0,16]
["OCON Sebastian",null,null,15,null,null,0,null,null,null,null,null,null,"MAGNUSSEN Kevin",{"$f":"IF(Australie!$D$26=\"\",0,SUM(Bahrein:Azerbaïdjan!$G$26))","v":1},0,16]
[null,null,null,null,null,null,0,null,null,null,null,null,null,"DEVRIES Nyck",{"$f":"IF(Australie!$D$24=\"\",0,SUM(Bahrein:Azerbaïdjan!$G$24))","v":0},1,19]
["TSUNODA Yuki","ALPHA TAURI",null,10,null,null,1,null,null,null,null,null,null,"SARGEANT Logan",{"$f":"IF(Australie!$D$18=\"\",0,SUM(Bahrein:Azerbaïdjan!$G$18))","v":0},0,19]
["DEVRIES Nyck",null,null,null,null,null,0]
[null,null,null,null,null,null,0]
["MAGNUSSEN KEVIN","HAAS",null,13,null,null,0]
["HULKENBERG Nico",null,null,17,null,null,0]
[null,null,null,null,null,null,0]
["NORRIS Lando","Mc LAREN",null,9,null,null,2]
["PIASTRI Oscar",null,null,11,null,null,0]
[null,null,null,null,null,null,0]
["BOTTAS Valtteri","ALFA ROMÉO",null,18,null,null,0]
["GUANYU Zhou",null,null,null,null,null,0]
[null,null,null,null,null,null,0]

{"sheet":"Miami","index":8,"n_rows":34,"n_cols":17,"rows_kept":34,"cut":false,"hidden":false,"merged":[[10,1,12,1],[10,2,12,2],[19,1,21,1],[19,2,21,2],[36,1,36,3],[31,1,33,1],[31,2,33,2],[22,1,24,1],[22,2,24,2],[25,1,27,1],[25,2,27,2],[28,1,30,1],[28,2,30,2],[2,0,3,0],[0,0,1,16],[13,1,15,1],[13,2,15,2],[16,1,18,1],[16,2,18,2],[2,1,3,1],[2,2,3,2],[2,3,3,3],[2,5,3,5],[2,6,3,6],[2,4,3,4],[4,1,6,1],[4,2,6,2],[7,1,9,1],[7,2,9,2]]}
["MIAMI - 7 MAI 2023"]
[]
["PILOTES","ECURIES","VOITURES","Finish","Pôle","Pt tour","Points",null,"ÉCURIES","Points","Écart","Rang",null,"Noms","Points","Écart","Rang"]
[null,null,null,null,null,null,null,null,"RED BULL RACING",{"$f":"IF(SUM(Azerbaïdjan!$D$11:$D$12)=0,0,SUM(Bahrein:Miami!$G$11:$G$12))","v":224},null,{"$f":"IF(J4=\"\",0,(RANK(J4,$J$4:$J$13)))","v":1},null,"VERSTAPPEN Max",{"$f":"IF(Azerbaïdjan!$G$11=\"\",0,SUM(Bahrein:Miami!$G$11))","v":119},null,{"$f":"IF(O4=\"\",0,(RANK(O4,$O$4:$O$23)))","v":1}]
["HAMILTON Lewis","MERCEDES",null,6,null,null,{"$f":"IFERROR(CHOOSE(D5,25,18,15,12,10,8,6,4,2,1)+IF(D5<=10,F5),0)","v":8},null,"ASTON MARTIN",{"$f":"IF(SUM(Azerbaïdjan!$D$14:$D$15)=0,0,SUM(Bahrein:Miami!$G$14:$G$15))","v":102},{"$f":"J4-J5","v":122},{"$f":"IF(J5=\"\",0,(RANK(J5,$J$4:$J$13)))","v":2},null,"PEREZ Sergio",{"$f":"IF(Azerbaïdjan!$G$12=\"\",0,SUM(Bahrein:Miami!$G$12))","v":105},{"$f":"O4-O5","v":14},{"$f":"IF(O5=\"\",0,(RANK(O5,$O$4:$O$23)))","v":2}]
["RUSSELL George",null,null,4,null,null,{"$f":"IFERROR(CHOOSE(D6,25,18,15,12,10,8,6,4,2,1)+IF(D6<=10,F6),0)","v":12},null,"MERCEDES",{"$f":"IF(SUM(Azerbaïdjan!$D$5:$D$6)=0,0,SUM(Bahrein:Miami!$G$5:$G$6))","v":96},{"$f":"J5-J6","v":6},3,null,"ALONSO Fernando",{"$f":"IF(Azerbaïdjan!$G$14=\"\",0,SUM(Bahrein:Miami!$G$14))","v":75},{"$f":"O5-O6","v":30},3]
[null,null,null,null,null,null,0,null,"FERRARI",{"$f":"IF(SUM(Azerbaïdjan!$D$8:$D$9)=0,0,SUM(Bahrein:Miami!$G$8:$G$9))","v":78},{"$f":"J6-J7","v":18},4,null,"HAMILTON Lewis",{"$f":"IF(Azerbaïdjan!$G$5=\"\",0,SUM(Bahrein:Miami!$G$5))","v":56},19,4]
["SAINZ.Jr Carlos","FERRARI",null,5,null,null,10,null,"Mc LAREN",{"$f":"IF(SUM(Azerbaïdjan!$D$29:$D$30)=0,0,SUM(Bahrein:Miami!$G$29:$G$30))","v":14},64,5,null,"SAINZ.Jr Carlos",{"$f":"IF(Azerbaïdjan!$G$8=\"\",0,SUM(Bahrein:Miami!$G$8))","v":44},12,5]
["LECLERC Charles",null,null,7,null,null,6,null,"ALPINE F1 TEAM",{"$f":"IF(SUM(Azerbaïdjan!$D$20:$D$21)=0,0,SUM(Bahrein:Miami!$G$20:$G$21))","v":14},0,5,null,"RUSSEL George",{"$f":"IF(Azerbaïdjan!$G$6=\"\",0,SUM(Bahrein:Miami!$G$6))","v":40},4,6]
[null,null,null,null,null,null,0,null,"HAAS",{"$f":"IF(SUM(Azerbaïdjan!$D$26:$D$27)=0,0,SUM(Bahrein:Miami!$G$26:$G$27))","v":8},6,7,null,"LECLERC Charles",{"$f":"IF(Azerbaïdjan!$G$9=\"\",0,SUM(Bahrein:Miami!$G$9))","v":34},6,7]
["VERSTAPPEN Max","RED BULL RACING",null,1,null,1,26,null,"ALFA ROMÉO",{"$f":"IF(SUM(Azerbaïdjan!$D$32:$D$33)=0,0,SUM(Bahrein:Miami!$G$32:$G$33))","v":6},2,8,null,"STROLL Lance",{"$f":"IF(Azerbaïdjan!$G$15=\"\",0,SUM(Bahrein:Miami!$G$15))","v":27},7,8]
["PEREZ Sergio",null,null,2,1,null,18,null,"ALPHA TAURI",{"$f":"IF(SUM(Azerbaïdjan!$D$23:$D$24)=0,0,SUM(Bahrein:Miami!$G$23:$G$24))","v":2},4,9,null,"NORRIS Lando",{"$f":"IF(Azerbaïdjan!$G$29=\"\",0,SUM(Bahrein:Miami!$G$29))","v":10},17,9]
[null,null,null,null,null,null,0,null,"WILLIAMS",{"$f":"IF(SUM(Azerbaïdjan!$D$17:$D$18)=0,0,SUM(Bahrein:Miami!$G$17:$G$18))","v":1},1,10,null,"GASLY Pierre",{"$f":"IF(Azerbaïdjan!$G$20=\"\",0,SUM(Bahrein:Miami!$G$20))","v":8},2,10]
["ALONSO Fernando","ASTON MARTIN",null,3,null,null,15,null,null,null,null,null,null,"HULKENBERG Nico",{"$f":"IF(Azerbaïdjan!$G$27=\"\",0,SUM(Bahrein:Miami!$G$27))","v":6},2,11]
["STROLL Lance",null,null,12,null,null,0,null,null,null,null,null,null,"OCON Sebastian",{"$f":"IF(Azerbaïdjan!$G$21=\"\",0,SUM(Bahrein:Miami!$G$21))","v":6},0,11]
[null,null,null,null,null,null,0,null,null,null,null,null,null,"PIASTRI Oscar",{"$f":"IF(Azerbaïdjan!$G$30=\"\",0,SUM(Bahrein:Miami!$G$30))","v":4},2,13]
["ALBON Alexander","WILLIAMS",null,14,null,null,0,null,null,null,null,null,null,"BOTTAS Valtteri",{"$f":"IF(Azerbaïdjan!$G$32=\"\",0,SUM(Bahrein:Miami!$G$32))","v":4},0,13]
["SARGEANT Logan",null,null,20,null,null,0,null,null,null,null,null,null,"TSUNODA Yoki",{"$f":"IF(Azerbaïdjan!$G$23=\"\",0,SUM(Bahrein:Miami!$G$23))","v":2},2,15]
[null,null,null,null,null,null,0,null,null,null,null,null,null,"MAGNUSSEN Kevin",{"$f":"IF(Azerbaïdjan!$G$26=\"\",0,SUM(Bahrein:Miami!$G$26))","v":2},0,15]
["GASLY Pierre","ALPINE F1 TEAM",null,8,null,null,4,null,null,null,null,null,null,"GUANYU Zhou",{"$f":"IF(Azerbaïdjan!$G$33=\"\",0,SUM(Bahrein:Miami!$G$33))","v":2},0,15]
["OCON Sebastian",null,null,9,null,null,2,null,null,null,null,null,null,"ALBON Alexander",{"$f":"IF(Azerbaïdjan!$G$17=\"\",0,SUM(Bahrein:Miami!$G$17))","v":1},1,18]
[null,null,null,null,null,null,0,null,null,null,null,null,null,"DEVRIES Nyck",{"$f":"IF(Azerbaïdjan!$G$24=\"\",0,SUM(Bahrein:Miami!$G$24))","v":0},1,19]
["TSUNODA Yuki","ALPHA TAURI",null,11,null,null,0,null,null,null,null,null,null,"SARGEANT Logan",{"$f":"IF(Azerbaïdjan!$G$18=\"\",0,SUM(Bahrein:Miami!$G$18))","v":0},0,19]
["DEVRIES Nyck",null,null,18,null,null,0]
[null,null,null,null,null,null,0]
["MAGNUSSEN Kevin","HAAS",null,10,null,null,1]
["HULKENBERG Nico",null,null,15,null,null,0]
[null,null,null,null,null,null,0]
["NORRIS Lando","Mc LAREN",null,17,null,null,0]
["PIASTRI Oscar",null,null,19,null,null,0]
[null,null,null,null,null,null,0]
["BOTTAS Valtteri","ALFA ROMÉO",null,13,null,null,0]
["GUANYU Zhou",null,null,16,null,null,0]
[null,null,null,null,null,null,0]

{"sheet":"ItalieIm","index":9,"n_rows":34,"n_cols":17,"rows_kept":34,"cut":false,"hidden":false,"merged":[[26,8,26,13],[2,7,3,7],[13,1,15,1],[13,2,15,2],[16,1,18,1],[16,2,18,2],[19,2,21,2],[31,1,33,1],[31,2,33,2],[22,1,24,1],[22,2,24,2],[25,1,27,1],[25,2,27,2],[28,1,30,1],[28,2,30,2],[0,0,1,16],[36,1,36,3],[2,0,3,0],[2,1,3,1],[2,2,3,2],[2,3,3,3],[2,4,3,4],[2,5,3,5],[2,6,3,6],[4,1,6,1],[4,2,6,2],[7,1,9,1],[7,2,9,2],[10,1,12,1],[10,2,12,2],[19,1,21,1]]}
["IMOLA - 21 MAI 2023"]
[]
["PILOTES","ECURIES","VOITURES","Finish","Pôle","Pt tour","Points",null,"ÉCURIES","Points","Écart","Rang",null,"Noms","Points","Écart","Rang"]
[null,null,null,null,null,null,null,null,"RED BULL RACING",{"$f":"IF(SUM(Miami!$D$11:$D$12)=0,0,SUM(Bahrein:ItalieIm!$G$11:$G$12))","v":224},null,{"$f":"IF(J4=\"\",0,(RANK(J4,$J$4:$J$13)))","v":1},null,"VERSTAPPEN Max",{"$f":"IF(Miami!$G$11=\"\",0,SUM(Bahrein:ItalieIm!$G$11))","v":119},null,{"$f":"IF(O4=\"\",0,(RANK(O4,$O$4:$O$23)))","v":1}]
["HAMILTON Lewis","MERCEDES",null,null,null,null,{"$f":"IFERROR(CHOOSE(D5,25,18,15,12,10,8,6,4,2,1)+IF(D5<=10,F5),0)","v":0},null,"ASTON MARTIN",{"$f":"IF(SUM(Miami!$D$14:$D$15)=0,0,SUM(Bahrein:ItalieIm!$G$14:$G$15))","v":102},{"$f":"J4-J5","v":122},{"$f":"IF(J5=\"\",0,(RANK(J5,$J$4:$J$13)))","v":2},null,"PEREZ Sergio",{"$f":"IF(Miami!$G$12=\"\",0,SUM(Bahrein:ItalieIm!$G$12))","v":105},{"$f":"O4-O5","v":14},{"$f":"IF(O5=\"\",0,(RANK(O5,$O$4:$O$23)))","v":2}]
["RUSSELL George",null,null,null,null,null,{"$f":"IFERROR(CHOOSE(D6,25,18,15,12,10,8,6,4,2,1)+IF(D6<=10,F6),0)","v":0},null,"MERCEDES",{"$f":"IF(SUM(Miami!$D$5:$D$6)=0,0,SUM(Bahrein:ItalieIm!$G$5:$G$6))","v":96},{"$f":"J5-J6","v":6},3,null,"ALONSO Fernando",{"$f":"IF(Miami!$G$14=\"\",0,SUM(Bahrein:ItalieIm!$G$14))","v":75},{"$f":"O5-O6","v":30},3]
[null,null,null,null,null,null,0,null,"FERRARI",{"$f":"IF(SUM(Miami!$D$8:$D$9)=0,0,SUM(Bahrein:ItalieIm!$G$8:$G$9))","v":78},18,4,null,"HAMILTON Lewis",{"$f":"IF(Miami!$G$5=\"\",0,SUM(Bahrein:ItalieIm!$G$5))","v":56},19,4]
["SAINZ.Jr Carlos","FERRARI",null,null,null,null,0,null,"ALPINE F1 TEAM",{"$f":"IF(SUM(Miami!$D$20:$D$21)=0,0,SUM(Bahrein:ItalieIm!$G$20:$G$21))","v":14},64,5,null,"SAINZ.Jr Carlos",{"$f":"IF(Miami!$G$8=\"\",0,SUM(Bahrein:ItalieIm!$G$8))","v":44},12,5]
["LECLERC Charles",null,null,null,null,null,0,null,"Mc LAREN",{"$f":"IF(SUM(Miami!$D$29:$D$30)=0,0,SUM(Bahrein:ItalieIm!$G$29:$G$30))","v":14},0,5,null,"RUSSEL George",{"$f":"IF(Miami!$G$6=\"\",0,SUM(Bahrein:ItalieIm!$G$6))","v":40},4,6]
[null,null,null,null,null,null,0,null,"HAAS",{"$f":"IF(SUM(Miami!$D$26:$D$27)=0,0,SUM(Bahrein:ItalieIm!$G$26:$G$27))","v":8},6,7,null,"LECLERC Charles",{"$f":"IF(Miami!$G$9=\"\",0,SUM(Bahrein:ItalieIm!$G$9))","v":34},6,7]
["VERSTAPPEN Max","RED BULL RACING",null,null,null,null,0,null,"ALFA ROMÉO",{"$f":"IF(SUM(Miami!$D$32:$D$33)=0,0,SUM(Bahrein:ItalieIm!$G$32:$G$33))","v":6},2,8,null,"STROLL Lance",{"$f":"IF(Miami!$G$15=\"\",0,SUM(Bahrein:ItalieIm!$G$15))","v":27},7,8]
["PEREZ Sergio",null,null,null,null,null,0,null,"ALPHA TAURI",{"$f":"IF(SUM(Miami!$D$23:$D$24)=0,0,SUM(Bahrein:ItalieIm!$G$23:$G$24))","v":2},4,9,null,"NORRIS Lando",{"$f":"IF(Miami!$G$29=\"\",0,SUM(Bahrein:ItalieIm!$G$29))","v":10},17,9]
[null,null,null,null,null,null,0,null,"WILLIAMS",{"$f":"IF(SUM(Miami!$D$17:$D$18)=0,0,SUM(Bahrein:ItalieIm!$G$17:$G$18))","v":1},1,10,null,"GASLY Pierre",{"$f":"IF(Miami!$G$20=\"\",0,SUM(Bahrein:ItalieIm!$G$20))","v":8},2,10]
["ALONSO Fernando","ASTON MARTIN",null,null,null,null,0,null,null,null,null,null,null,"HULKENBERG Nico",{"$f":"IF(Miami!$G$27=\"\",0,SUM(Bahrein:ItalieIm!$G$27))","v":6},2,11]
["STROLL Lance",null,null,null,null,null,0,null,null,null,null,null,null,"OCON Sebastian",{"$f":"IF(Miami!$G$21=\"\",0,SUM(Bahrein:ItalieIm!$G$21))","v":6},0,11]
[null,null,null,null,null,null,0,null,null,null,null,null,null,"PIASTRI Oscar",{"$f":"IF(Miami!$G$30=\"\",0,SUM(Bahrein:ItalieIm!$G$30))","v":4},2,13]
["ALBON Alexander","WILLIAMS",null,null,null,null,0,null,null,null,null,null,null,"BOTTAS Valtteri",{"$f":"IF(Miami!$G$32=\"\",0,SUM(Bahrein:ItalieIm!$G$32))","v":4},0,13]
["SARGEANT Logan",null,null,null,null,null,0,null,null,null,null,null,null,"TSUNODA Yoki",{"$f":"IF(Miami!$G$23=\"\",0,SUM(Bahrein:ItalieIm!$G$23))","v":2},2,15]
[null,null,null,null,null,null,0,null,null,null,null,null,null,"MAGNUSSEN Kevin",{"$f":"IF(Miami!$G$26=\"\",0,SUM(Bahrein:ItalieIm!$G$26))","v":2},0,15]
["GASLY Pierre","ALPINE F1 TEAM",null,null,null,null,0,null,null,null,null,null,null,"GUANYU Zhou",{"$f":"IF(Miami!$G$33=\"\",0,SUM(Bahrein:ItalieIm!$G$33))","v":2},0,15]
["OCON Sebastian",null,null,null,null,null,0,null,null,null,null,null,null,"DEVRIES Nyck",{"$f":"IF(Miami!$G$24=\"\",0,SUM(Bahrein:ItalieIm!$G$24))","v":0},2,18]
[null,null,null,null,null,null,0,null,null,null,null,null,null,"SARGEANT Logan",{"$f":"IF(Miami!$G$18=\"\",0,SUM(Bahrein:ItalieIm!$G$18))","v":0},0,18]
["TSUNODA Yuki","ALPHA TAURI",null,null,null,null,0,null,null,null,null,null,null,"ALBON Alexander",{"$f":"IF(Miami!$G$18=\"\",0,SUM(Bahrein:ItalieIm!$G$18))","v":0},0,18]
["DEVRIES Nyck",null,null,null,null,null,0]
[null,null,null,null,null,null,0]
["MAGNUSSEN Kevin","HAAS",null,null,null,null,0]
["HULKENBERG Nico",null,null,null,null,null,0,null,"ANNULÉ"]
[null,null,null,null,null,null,0]
["NORRIS Lando","Mc LAREN",null,null,null,null,0]
["PIASTRI Oscar",null,null,null,null,null,0]
[null,null,null,null,null,null,0]
["BOTTAS Valtteri","ALFA ROMÉO",null,null,null,null,0]
["GUANYU Zhou",null,null,null,null,null,0]
[null,null,null,null,null,null,0]

{"sheet":"Monaco","index":10,"n_rows":34,"n_cols":17,"rows_kept":34,"cut":false,"hidden":false,"merged":[[10,1,12,1],[10,2,12,2],[19,1,21,1],[19,2,21,2],[36,1,36,3],[31,1,33,1],[31,2,33,2],[22,1,24,1],[22,2,24,2],[25,1,27,1],[25,2,27,2],[28,1,30,1],[28,2,30,2],[2,0,3,0],[0,0,1,16],[13,1,15,1],[13,2,15,2],[16,1,18,1],[16,2,18,2],[2,1,3,1],[2,2,3,2],[2,3,3,3],[2,5,3,5],[2,6,3,6],[2,4,3,4],[4,1,6,1],[4,2,6,2],[7,1,9,1],[7,2,9,2]]}
["MONACO - 28 MAI 2023"]
[]
["PILOTES","ECURIES","VOITURES","Finish","Pôle","Pt tour","Points",null,"ÉCURIES","Points","Écart","Rang",null,"Noms","Points","Écart","Rang"]
[null,null,null,null,null,null,null,null,"RED BULL RACING",{"$f":"IF(SUM(Miami!$D$11:$D$12)=0,0,SUM(Bahrein:Monaco!$G$11:$G$12))","v":249},null,{"$f":"IF(J4=\"\",0,(RANK(J4,$J$4:$J$13)))","v":1},null,"VERSTAPPEN Max",{"$f":"IF(Miami!$D$11=\"\",0,SUM(Bahrein:Monaco!$G$11))","v":144},null,{"$f":"IF(O4=\"\",0,(RANK(O4,$O$4:$O$23)))","v":1}]
["HAMILTON Lewis","MERCEDES",null,4,null,1,{"$f":"IFERROR(CHOOSE(D5,25,18,15,12,10,8,6,4,2,1)+IF(D5<=10,F5),0)","v":13},null,"ASTON MARTIN",{"$f":"IF(SUM(Miami!$D$14:$D$15)=0,0,SUM(Bahrein:Monaco!$G$14:$G$15))","v":120},{"$f":"J4-J5","v":129},{"$f":"IF(J5=\"\",0,(RANK(J5,$J$4:$J$13)))","v":2},null,"PEREZ Sergio",{"$f":"IF(Miami!$D$12=\"\",0,SUM(Bahrein:Monaco!$G$12))","v":105},{"$f":"O4-O5","v":39},{"$f":"IF(O5=\"\",0,(RANK(O5,$O$4:$O$23)))","v":2}]
["RUSSELL George",null,null,5,null,null,{"$f":"IFERROR(CHOOSE(D6,25,18,15,12,10,8,6,4,2,1)+IF(D6<=10,F6),0)","v":10},null,"MERCEDES",{"$f":"IF(SUM(Miami!$D$5:$D$6)=0,0,SUM(Bahrein:Monaco!$G$5:$G$6))","v":119},{"$f":"J5-J6","v":1},3,null,"ALONSO Fernando",{"$f":"IF(Miami!$D$14=\"\",0,SUM(Bahrein:Monaco!$G$14))","v":93},{"$f":"O5-O6","v":12},3]
[null,null,null,null,null,null,0,null,"FERRARI",{"$f":"IF(SUM(Miami!$D$8:$D$9)=0,0,SUM(Bahrein:Monaco!$G$8:$G$9))","v":90},29,4,null,"HAMILTON Lewis",{"$f":"IF(Miami!$D$5=\"\",0,SUM(Bahrein:Monaco!$G$5))","v":69},24,4]
["SAINZ.Jr Carlos","FERRARI",null,8,null,null,4,null,"ALPINE F1 TEAM",{"$f":"IF(SUM(Miami!$D$20:$D$21)=0,0,SUM(Bahrein:Monaco!$G$20:$G$21))","v":35},55,5,null,"RUSSEL George",{"$f":"IF(Miami!$D$6=\"\",0,SUM(Bahrein:Monaco!$G$6))","v":50},19,5]
["LECLERC Charles",null,null,6,null,null,8,null,"Mc LAREN",{"$f":"IF(SUM(Miami!$D$29:$D$30)=0,0,SUM(Bahrein:Monaco!$G$29:$G$30))","v":17},18,6,null,"SAINZ.Jr Carlos",{"$f":"IF(Miami!$D$8=\"\",0,SUM(Bahrein:Monaco!$G$8))","v":48},2,6]
[null,null,null,null,null,null,0,null,"HAAS",{"$f":"IF(SUM(Miami!$D$26:$D$27)=0,0,SUM(Bahrein:Monaco!$G$26:$G$27))","v":8},9,7,null,"LECLERC Charles",{"$f":"IF(Miami!$D$9=\"\",0,SUM(Bahrein:Monaco!$G$9))","v":42},6,7]
["VERSTAPPEN Max","RED BULL RACING",null,1,1,null,25,null,"ALFA ROMÉO",{"$f":"IF(SUM(Miami!$D$32:$D$33)=0,0,SUM(Bahrein:Monaco!$G$32:$G$33))","v":6},2,8,null,"STROLL Lance",{"$f":"IF(Miami!$D$15=\"\",0,SUM(Bahrein:Monaco!$G$15))","v":27},15,8]
["PEREZ Sergio",null,null,16,null,null,0,null,"ALPHA TAURI",{"$f":"IF(SUM(Miami!$D$23:$D$44)=0,0,SUM(Bahrein:Monaco!$G$23:$G$24))","v":2},4,9,null,"OCON Sebastian",{"$f":"IF(Miami!$D$21=\"\",0,SUM(Bahrein:Monaco!$G$21))","v":21},6,9]
[null,null,null,null,null,null,0,null,"WILLIAMS",{"$f":"IF(SUM(Miami!$D$17:$D$18)=0,0,SUM(Bahrein:Monaco!$G$17:$G$18))","v":1},1,10,null,"GASLY Pierre",{"$f":"IF(Miami!$D$20=\"\",0,SUM(Bahrein:Monaco!$G$20))","v":14},7,10]
["ALONSO Fernando","ASTON MARTIN",null,2,null,null,18,null,null,null,null,null,null,"NORRIS Lando",{"$f":"IF(Miami!$D$29=\"\",0,SUM(Bahrein:Monaco!$G$29))","v":12},2,11]
["STROLL Lance",null,null,"OUT",null,null,0,null,null,null,null,null,null,"HULKENBERG Nico",{"$f":"IF(Miami!$D$27=\"\",0,SUM(Bahrein:Monaco!$G$27))","v":6},6,12]
[null,null,null,null,null,null,0,null,null,null,null,null,null,"PIASTRI Oscar",{"$f":"IF(Miami!$D$30=\"\",0,SUM(Bahrein:Monaco!$G$30))","v":5},1,13]
["ALBON Alexander","WILLIAMS",null,14,null,null,0,null,null,null,null,null,null,"BOTTAS Valtteri",{"$f":"IF(Miami!$D$32=\"\",0,SUM(Bahrein:Monaco!$G$32))","v":4},1,14]
["SARGEANT Logan",null,null,18,null,null,0,null,null,null,null,null,null,"GUANYU Zhou",{"$f":"IF(Miami!$D$33=\"\",0,SUM(Bahrein:Monaco!$G$33))","v":2},2,15]
[null,null,null,null,null,null,0,null,null,null,null,null,null,"MAGNUSSEN Kevin",{"$f":"IF(Miami!$D$26=\"\",0,SUM(Bahrein:Monaco!$G$26))","v":2},0,15]
["GASLY Pierre","ALPINE F1 TEAM",null,7,null,null,6,null,null,null,null,null,null,"TSUNODA Yoki",{"$f":"IF(Miami!$D$23=\"\",0,SUM(Bahrein:Monaco!$G$23))","v":2},0,15]
["OCON Sebastian",null,null,3,null,null,15,null,null,null,null,null,null,"ALBON Alexander",{"$f":"IF(Miami!$D$17=\"\",0,SUM(Bahrein:Monaco!$G$17))","v":1},1,18]
[null,null,null,null,null,null,0,null,null,null,null,null,null,"DEVRIES Nyck",{"$f":"IF(Miami!$D$24=\"\",0,SUM(Bahrein:Monaco!$G$24))","v":0},1,19]
["TSUNODA Yuki","ALPHA TAURI",null,15,null,null,0,null,null,null,null,null,null,"SARGEANT Logan",{"$f":"IF(Miami!$D$18=\"\",0,SUM(Bahrein:Monaco!$G$18))","v":0},0,19]
["DEVRIES Nyck",null,null,12,null,null,0]
[null,null,null,null,null,null,0]
["MAGNUSSEN Kevin","HAAS",null,"OUT",null,null,0]
["HULKENBERG Nico",null,null,17,null,null,0]
[null,null,null,null,null,null,0]
["NORRIS Lando","Mc LAREN",null,9,null,null,2]
["PIASTRI Oscar",null,null,10,null,null,1]
[null,null,null,null,null,null,0]
["BOTTAS Valtteri","ALFA ROMÉO",null,11,null,null,0]
["GUANYU Zhou",null,null,13,null,null,0]
[null,null,null,null,null,null,0]

{"sheet":"Espagne","index":11,"n_rows":34,"n_cols":17,"rows_kept":34,"cut":false,"hidden":false,"merged":[[36,1,36,3],[13,1,15,1],[13,2,15,2],[16,1,18,1],[16,2,18,2],[19,1,21,1],[19,2,21,2],[31,1,33,1],[31,2,33,2],[22,1,24,1],[22,2,24,2],[25,1,27,1],[25,2,27,2],[28,1,30,1],[28,2,30,2],[10,1,12,1],[10,2,12,2],[2,0,3,0],[0,0,1,16],[4,2,6,2],[7,1,9,1],[7,2,9,2],[2,1,3,1],[2,2,3,2],[2,3,3,3],[2,5,3,5],[2,6,3,6],[2,4,3,4],[4,1,6,1]]}
["BARCELONE - 4 JUIN 2023"]
[]
["PILOTES","ECURIES","VOITURES","Finish","Pôle","Pt tour","Points",null,"ÉCURIES","Points","Écart","Rang",null,"Noms","Points","Écart","Rang"]
[null,null,null,null,null,null,null,null,"RED BULL RACING",{"$f":"IF(SUM(Monaco!$D$11:$D$12)=0,0,SUM(Bahrein:Espagne!$G$11:$G$12))","v":287},null,{"$f":"IF(J4=\"\",0,(RANK(J4,$J$4:$J$13)))","v":1},null,"VERSTAPPEN Max",{"$f":"IF(Monaco!$D$11=\"\",0,SUM(Bahrein:Espagne!$G$11))","v":170},null,{"$f":"IF(O4=\"\",0,(RANK(O4,$O$4:$O$23)))","v":1}]
["HAMILTON Lewis","MERCEDES",null,2,null,null,{"$f":"IFERROR(CHOOSE(D5,25,18,15,12,10,8,6,4,2,1)+IF(D5<=10,F5),0)","v":18},null,"MERCEDES",{"$f":"IF(SUM(Monaco!$D$5:$G$6)=0,0,SUM(Bahrein:Espagne!$G$5:$G$6))","v":152},{"$f":"J4-J5","v":135},{"$f":"IF(J5=\"\",0,(RANK(J5,$J$4:$J$13)))","v":2},null,"PEREZ Sergio",{"$f":"IF(Monaco!$D$12=\"\",0,SUM(Bahrein:Espagne!$G$12))","v":117},{"$f":"O4-O5","v":53},{"$f":"IF(O5=\"\",0,(RANK(O5,$O$4:$O$23)))","v":2}]
["RUSSELL George",null,null,3,null,null,{"$f":"IFERROR(CHOOSE(D6,25,18,15,12,10,8,6,4,2,1)+IF(D6<=10,F6),0)","v":15},null,"ASTON MARTIN",{"$f":"IF(SUM(Monaco!$D$14:$D$15)=0,0,SUM(Bahrein:Espagne!$G$14:$G$15))","v":134},{"$f":"J5-J6","v":18},3,null,"ALONSO Fernando",{"$f":"IF(Monaco!$D$14=\"\",0,SUM(Bahrein:Espagne!$G$14))","v":99},{"$f":"O5-O6","v":18},3]
[null,null,null,null,null,null,0,null,"FERRARI",{"$f":"IF(SUM(Monaco!$D$8:$D$9)=0,0,SUM(Bahrein:Espagne!$G$8:$G$9))","v":100},34,4,null,"HAMILTON Lewis",{"$f":"IF(Monaco!$D$5=\"\",0,SUM(Bahrein:Espagne!$G$5))","v":87},12,4]
["SAINZ.Jr Carlos","FERRARI",null,5,null,null,10,null,"ALPINE F1 TEAM",{"$f":"IF(SUM(Monaco!$D$20:$D$21)=0,0,SUM(Bahrein:Espagne!$G$20:$G$21))","v":40},60,5,null,"RUSSEL George",{"$f":"IF(Monaco!$D$6=\"\",0,SUM(Bahrein:Espagne!$G$6))","v":65},22,5]
["LECLERC Charles",null,null,11,null,null,0,null,"Mc LAREN",{"$f":"IF(SUM(Monaco!$D$29:$D$30)=0,0,SUM(Bahrein:Espagne!$G$29:$G$30))","v":17},23,6,null,"SAINZ.Jr Carlos",{"$f":"IF(Monaco!$D$8=\"\",0,SUM(Bahrein:Espagne!$G$8))","v":58},7,6]
[null,null,null,null,null,null,0,null,"HAAS",{"$f":"IF(SUM(Monaco!$D$26:$D$27)=0,0,SUM(Bahrein:Espagne!$G$26:$G$27))","v":8},9,7,null,"LECLERC Charles",{"$f":"IF(Monaco!$D$9=\"\",0,SUM(Bahrein:Espagne!$G$9))","v":42},16,7]
["VERSTAPPEN Max","RED BULL RACING",null,1,1,1,26,null,"ALFA ROMÉO",{"$f":"IF(SUM(Monaco!$D$32:$D$33)=0,0,SUM(Bahrein:Espagne!$G$32:$G$33))","v":8},0,7,null,"STROLL Lance",{"$f":"IF(Monaco!$D$15=\"\",0,SUM(Bahrein:Espagne!$G$15))","v":35},7,8]
["PEREZ Sergio",null,null,4,null,null,12,null,"ALPHA TAURI",{"$f":"IF(SUM(Monaco!$D$23:$D$24)=0,0,SUM(Bahrein:Espagne!$G$23:$G$24))","v":2},6,9,null,"OCON Sebastian",{"$f":"IF(Monaco!$D$21=\"\",0,SUM(Bahrein:Espagne!$G$21))","v":25},10,9]
[null,null,null,null,null,null,0,null,"WILLIAMS",{"$f":"IF(SUM(Monaco!$D$17:$D$18)=0,0,SUM(Bahrein:Espagne!$G$17:$G$18))","v":1},1,10,null,"GASLY Pierre",{"$f":"IF(Monaco!$D$20=\"\",0,SUM(Bahrein:Espagne!$G$20))","v":15},10,10]
["ALONSO Fernando","ASTON MARTIN",null,7,null,null,6,null,null,null,null,null,null,"NORRIS Lando",{"$f":"IF(Monaco!$D$29=\"\",0,SUM(Bahrein:Espagne!$G$29))","v":12},3,11]
["STROLL Lance",null,null,6,null,null,8,null,null,null,null,null,null,"HULKENBERG Nico",{"$f":"IF(Monaco!$D$27=\"\",0,SUM(Bahrein:Espagne!$G$27))","v":6},6,12]
[null,null,null,null,null,null,0,null,null,null,null,null,null,"PIASTRI Oscar",{"$f":"IF(Monaco!$D$30=\"\",0,SUM(Bahrein:Espagne!$G$30))","v":5},1,13]
["ALBON Alexander","WILLIAMS",null,16,null,null,0,null,null,null,null,null,null,"BOTTAS Valtteri",{"$f":"IF(Monaco!$D$32=\"\",0,SUM(Bahrein:Espagne!$G$32))","v":4},1,14]
["SARGEANT Logan",null,null,20,null,null,0,null,null,null,null,null,null,"GUANYU Zhou",{"$f":"IF(Monaco!$D$33=\"\",0,SUM(Bahrein:Espagne!$G$33))","v":4},0,14]
[null,null,null,null,null,null,0,null,null,null,null,null,null,"MAGNUSSUN Kevin",{"$f":"IF(Monaco!$D$26=\"\",0,SUM(Bahrein:Espagne!$G$26))","v":2},2,16]
["GASLY Pierre","ALPINE F1 TEAM",null,10,null,null,1,null,null,null,null,null,null,"TSUNODA Yoki",{"$f":"IF(Monaco!$D$23=\"\",0,SUM(Bahrein:Espagne!$G$23))","v":2},0,16]
["OCON Sebastian",null,null,8,null,null,4,null,null,null,null,null,null,"ALBON Alexander",{"$f":"IF(Monaco!$D$17=\"\",0,SUM(Bahrein:Espagne!$G$17))","v":1},1,18]
[null,null,null,null,null,null,0,null,null,null,null,null,null,"DEVRIES Nyck",{"$f":"IF(Monaco!$D$24=\"\",0,SUM(Bahrein:Espagne!$G$24))","v":0},1,19]
["TSUNODA Yuki","ALPHA TAURI",null,12,null,null,0,null,null,null,null,null,null,"SARGEANT Logan",{"$f":"IF(Monaco!$D$18=\"\",0,SUM(Bahrein:Espagne!$G$18))","v":0},0,19]
["DEVRIES Nyck",null,null,14,null,null,0]
[null,null,null,null,null,null,0]
["MAGNUSSEN Kevin","HAAS",null,18,null,null,0]
["HULKENBERG Nico",null,null,15,null,null,0]
[null,null,null,null,null,null,0]
["NORRIS Lando","Mc LAREN",null,17,null,null,0]
["PIASTRI Oscar",null,null,13,null,null,0]
[null,null,null,null,null,null,0]
["BOTTAS Valtteri","ALFA ROMÉO",null,19,null,null,0]
["GUANYU Zhou",null,null,9,null,null,2]
[null,null,null,null,null,null,0]

{"sheet":"Canada","index":12,"n_rows":34,"n_cols":17,"rows_kept":34,"cut":false,"hidden":false,"merged":[[2,5,3,5],[2,6,3,6],[0,0,1,16],[2,0,3,0],[2,1,3,1],[2,2,3,2],[2,3,3,3],[2,4,3,4],[4,1,6,1],[4,2,6,2],[7,1,9,1],[7,2,9,2],[10,1,12,1],[10,2,12,2],[13,1,15,1],[13,2,15,2],[16,1,18,1],[16,2,18,2],[19,1,21,1],[19,2,21,2],[31,1,33,1],[31,2,33,2],[36,1,36,3],[22,1,24,1],[22,2,24,2],[25,1,27,1],[25,2,27,2],[28,1,30,1],[28,2,30,2]]}
["MONTRÉAL - 18 JUIN 2023"]
[]
["PILOTES","ECURIES","VOITURES","Finish","Pôle","Pt tour","Points",null,"ÉCURIES","Points","Écart","Rang",null,"Noms","Points","Écart","Rang"]
[null,null,null,null,null,null,null,null,"RED BULL RACING",{"$f":"IF(SUM(Espagne!$D$11:$D$12)=0,0,SUM(Bahrein:Canada!$G$11:$G$12))","v":321},null,{"$f":"IF(J4=\"\",0,(RANK(J4,$J$4:$J$13)))","v":1},null,"VERSTAPPEN Max",{"$f":"IF(Espagne!$D$11=\"\",0,SUM(Bahrein:Canada!$G$11))","v":195},null,{"$f":"IF(O4=\"\",0,(RANK(O4,$O$4:$O$23)))","v":1}]
["HAMILTON Lewis","MERCEDES",null,3,null,null,{"$f":"IFERROR(CHOOSE(D5,25,18,15,12,10,8,6,4,2,1)+IF(D5<=10,F5),0)","v":15},null,"MERCEDES",{"$f":"IF(SUM(Espagne!$D$5:$D$6)=0,0,SUM(Bahrein:Canada!$G$5:$G$6))","v":167},{"$f":"J4-J5","v":154},{"$f":"IF(J5=\"\",0,(RANK(J5,$J$4:$J$13)))","v":2},null,"PEREZ Sergio",{"$f":"IF(Espagne!$D$12=\"\",0,SUM(Bahrein:Canada!$G$12))","v":126},{"$f":"O4-O5","v":69},{"$f":"IF(O5=\"\",0,(RANK(O5,$O$4:$O$23)))","v":2}]
["RUSSELL George",null,null,"OUT",null,null,{"$f":"IFERROR(CHOOSE(D6,25,18,15,12,10,8,6,4,2,1)+IF(D6<=10,F6),0)","v":0},null,"ASTON MARTIN",{"$f":"IF(SUM(Espagne!$D$14:$D$15)=0,0,SUM(Bahrein:Canada!$G$14:$G$15))","v":154},{"$f":"J5-J6","v":13},3,null,"ALONSO Fernando",{"$f":"IF(Espagne!$D$14=\"\",0,SUM(Bahrein:Canada!$G$14))","v":117},{"$f":"O5-O6","v":9},3]
[null,null,null,null,null,null,0,null,"FERRARI",{"$f":"IF(SUM(Espagne!$D$5:$D$9)=0,0,SUM(Bahrein:Canada!$G$8:$G$9))","v":122},32,4,null,"HAMILTON Lewis",{"$f":"IF(Espagne!$D$5=\"\",0,SUM(Bahrein:Canada!$G$5))","v":102},15,4]
["SAINZ.Jr Carlos","FERRARI",null,5,null,null,10,null,"ALPINE F1 TEAM",{"$f":"IF(SUM(Espagne!$D$20:$D$21)=0,0,SUM(Bahrein:Canada!$G$20:$G$21))","v":44},78,5,null,"SAINZ.Jr Carlos",{"$f":"IF(Espagne!$D$8=\"\",0,SUM(Bahrein:Canada!$G$8))","v":68},34,5]
["LECLERC Charles",null,null,4,null,null,12,null,"Mc LAREN",{"$f":"IF(SUM(Espagne!$D$29:$D$30)=0,0,SUM(Bahrein:Canada!$G$29:$G$30))","v":17},27,6,null,"RUSSEL George",{"$f":"IF(Espagne!$D$6=\"\",0,SUM(Bahrein:Canada!$G$6))","v":65},3,6]
[null,null,null,null,null,null,0,null,"ALFA ROMÉO",{"$f":"IF(SUM(Espagne!$D$32:$D$33)=0,0,SUM(Bahrein:Canada!$G$32:$G$33))","v":9},8,7,null,"LECLERC Charles",{"$f":"IF(Espagne!$D$9=\"\",0,SUM(Bahrein:Canada!$G$9))","v":54},11,7]
["VERSTAPPEN Max","RED BULL RACING",null,1,1,null,25,null,"HAAS",{"$f":"IF(SUM(Espagne!$D$26:$D$27)=0,0,SUM(Bahrein:Canada!$G$26:$G$27))","v":8},1,8,null,"STROLL Lance",{"$f":"IF(Espagne!$D$15=\"\",0,SUM(Bahrein:Canada!$G$15))","v":37},17,8]
["PEREZ Sergio",null,null,6,null,1,9,null,"WILLIAMS",{"$f":"IF(SUM(Espagne!$D$17:$D$18)=0,0,SUM(Bahrein:Canada!$G$17:$G$18))","v":7},1,9,null,"OCON Sebastian",{"$f":"IF(Espagne!$D$21=\"\",0,SUM(Bahrein:Canada!$G$21))","v":29},8,9]
[null,null,null,null,null,null,0,null,"ALPHA TAURI",{"$f":"IF(SUM(Espagne!$D$23:$D$24)=0,0,SUM(Bahrein:Canada!$G$23:$G$24))","v":2},5,10,null,"GASLY Pierre",{"$f":"IF(Espagne!$D$20=\"\",0,SUM(Bahrein:Canada!$G$20))","v":15},14,10]
["ALONSO Fernando","ASTON MARTIN",null,2,null,null,18,null,null,null,null,null,null,"NORRIS Lando",{"$f":"IF(Espagne!$D$29=\"\",0,SUM(Bahrein:Canada!$G$29))","v":12},3,11]
["STROLL Lance",null,null,9,null,null,2,null,null,null,null,null,null,"ALBON Alexander",{"$f":"IF(Espagne!$D$17=\"\",0,SUM(Bahrein:Canada!$G$17))","v":7},5,12]
[null,null,null,null,null,null,0,null,null,null,null,null,null,"HULKENBERG Nico",{"$f":"IF(Espagne!$D$27=\"\",0,SUM(Bahrein:Canada!$G$27))","v":6},1,13]
["ALBON Alexander","WILLIAMS",null,7,null,null,6,null,null,null,null,null,null,"PIASTRI Oscar",{"$f":"IF(Espagne!$D$30=\"\",0,SUM(Bahrein:Canada!$G$30))","v":5},1,14]
["SARGEANT Logan",null,null,"OUT",null,null,0,null,null,null,null,null,null,"BOTTAS Valtteri",{"$f":"IF(Espagne!$D$32=\"\",0,SUM(Bahrein:Canada!$G$32))","v":5},0,14]
[null,null,null,null,null,null,0,null,null,null,null,null,null,"GUANYU Zhou",{"$f":"IF(Espagne!$D$33=\"\",0,SUM(Bahrein:Canada!$G$33))","v":4},1,16]
["GASLY Pierre","ALPINE F1 TEAM",null,12,null,null,0,null,null,null,null,null,null,"MAGNUSSEN Kevin",{"$f":"IF(Espagne!$D$26=\"\",0,SUM(Bahrein:Canada!$G$26))","v":2},2,17]
["OCON Sebastian",null,null,8,null,null,4,null,null,null,null,null,null,"TSUNODA Yoki",{"$f":"IF(Espagne!$D$23=\"\",0,SUM(Bahrein:Canada!$G$23))","v":2},0,17]
[null,null,null,null,null,null,0,null,null,null,null,null,null,"DEVRIES Nyck",{"$f":"IF(Espagne!$D$24=\"\",0,SUM(Bahrein:Canada!$G$24))","v":0},2,19]
["TSUNODA Yuki","ALPHA TAURI",null,14,null,null,0,null,null,null,null,null,null,"SARGEANT Logan",{"$f":"IF(Espagne!$D$18=\"\",0,SUM(Bahrein:Canada!$G$18))","v":0},0,19]
["DEVRIES Nyck",null,null,18,null,null,0]
[null,null,null,null,null,null,0]
["MAGNUSSEN Kevin","HAAS",null,17,null,null,0]
["HULKENBERG Nico",null,null,15,null,null,0]
[null,null,null,null,null,null,0]
["NORRIS Lando","Mc LAREN",null,13,null,null,0]
["PIASTRI Oscar",null,null,11,null,null,0]
[null,null,null,null,null,null,0]
["BOTTAS Valtteri","ALFA ROMÉO",null,10,null,null,1]
["GUANYU Zhou",null,null,16,null,null,0]
[null,null,null,null,null,null,0]

{"sheet":"Autriche","index":13,"n_rows":34,"n_cols":17,"rows_kept":34,"cut":false,"hidden":false,"merged":[[16,1,18,1],[16,2,18,2],[19,1,21,1],[19,2,21,2],[36,1,36,3],[31,1,33,1],[31,2,33,2],[22,1,24,1],[22,2,24,2],[25,1,27,1],[25,2,27,2],[28,1,30,1],[28,2,30,2],[7,1,9,1],[7,2,9,2],[10,1,12,1],[10,2,12,2],[13,1,15,1],[13,2,15,2],[2,0,3,0],[2,7,3,7],[0,0,1,16],[4,1,6,1],[4,2,6,2],[2,1,3,1],[2,2,3,2],[2,3,3,3],[2,5,3,5],[2,6,3,6],[2,4,3,4]]}
["SPIELBERG - 2 JUILLET 2023"]
[]
["PILOTES","ECURIES","VOITURES","Finish","Pôle","Pt tour","Points","Sprint","ÉCURIES","Points","Écart","Rang",null,"Noms","Points","Écart","Rang"]
[null,null,null,null,null,null,null,null,"RED BULL RACING",{"$f":"IF(SUM(Canada!$D$11:$D$12)=0,0,SUM(Bahrein:Autriche!$G$11:$G$12))","v":377},null,{"$f":"IF(J4=\"\",0,(RANK(J4,$J$4:$J$13)))","v":1},null,"VERSTAPPEN Max",{"$f":"IF(Canada!$D$11=\"\",0,SUM(Bahrein:Autriche!$G$11))","v":229},null,{"$f":"IF(O4=\"\",0,(RANK(O4,$O$4:$O$23)))","v":1}]
["HAMILTON Lewis","MERCEDES",null,8,null,null,{"$f":"IFERROR(CHOOSE(D5,25,18,15,12,10,8,6,4,2,1),0)+IFERROR(CHOOSE(H5,8,7,6,5,4,3,2,1),0)+IF(D5<=10,F5,0)","v":4},null,"MERCEDES",{"$f":"IF(SUM(Canada!$D$5:$D$6)=0,0,SUM(Bahrein:Autriche!$G$5:$G$6))","v":178},{"$f":"J4-J5","v":199},{"$f":"IF(J5=\"\",0,(RANK(J5,$J$4:$J$13)))","v":2},null,"PEREZ Sergio",{"$f":"IF(Canada!$D$12=0,0,SUM(Bahrein:Autriche!$G$12))","v":148},{"$f":"O4-O5","v":81},{"$f":"IF(O5=\"\",0,(RANK(O5,$O$4:$O$23)))","v":2}]
["RUSSELL George",null,null,7,null,null,{"$f":"IFERROR(CHOOSE(D6,25,18,15,12,10,8,6,4,2,1),0)+IFERROR(CHOOSE(H6,8,7,6,5,4,3,2,1),0)+IF(D6<=10,F6,0)","v":7},8,"ASTON MARTIN",{"$f":"IF(SUM(Canada!$D$14:$D$15)=0,0,SUM(Bahrein:Autriche!$G$14:$G$15))","v":175},{"$f":"J5-J6","v":3},3,null,"ALONSO Fernando",{"$f":"IF(Canada!$D$14=0,0,SUM(Bahrein:Autriche!$G$14))","v":131},{"$f":"O5-O6","v":17},3]
[null,null,null,null,null,null,0,null,"FERRARI",{"$f":"IF(SUM(Canada!$D$8:$D$9)=0,0,SUM(Bahrein:Autriche!$G$8:$G$9))","v":154},21,4,null,"HAMILTON Lewis",{"$f":"IF(Canada!$D$5=0,0,SUM(Bahrein:Autriche!$G$5))","v":106},25,4]
["SAINZ.Jr Carlos","FERRARI",null,6,null,null,14,3,"ALPINE F1 TEAM",{"$f":"IF(SUM(Canada!$D$20:$D$21)=0,0,SUM(Bahrein:Autriche!$G$20:$G$21))","v":47},107,5,null,"SAINZ.Jr Carlos",{"$f":"IF(Canada!$D$8=0,0,SUM(Bahrein:Autriche!$G$8))","v":82},24,5]
["LECLERC Charles",null,null,2,null,null,18,null,"Mc LAREN",{"$f":"IF(SUM(Canada!$D$29:$D$30)=0,0,SUM(Bahrein:Autriche!$G$29:$G$30))","v":29},18,6,null,"LECLERC Charles",{"$f":"IF(Canada!$D$9=0,0,SUM(Bahrein:Autriche!$G$9))","v":72},10,6]
[null,null,null,null,null,null,0,null,"HAAS",{"$f":"IF(SUM(Canada!$D$26:$D$27)=0,0,SUM(Bahrein:Autriche!$G$26:$G$27))","v":11},18,7,null,"RUSSEL George",{"$f":"IF(Canada!$D$6=0,0,SUM(Bahrein:Autriche!$G$6))","v":72},0,6]
["VERSTAPPEN Max","RED BULL RACING",null,1,1,1,34,1,"ALFA ROMÉO",{"$f":"IF(SUM(Canada!$D$32:$D$33)=0,0,SUM(Bahrein:Autriche!$G$32:$G$33))","v":9},2,8,null,"STROLL Lance",{"$f":"IF(Canada!$D$15=0,0,SUM(Bahrein:Autriche!$G$15))","v":44},28,8]
["PEREZ Sergio",null,null,3,null,null,22,2,"WILLIAMS",{"$f":"IF(SUM(Canada!$D$17:$D$18)=0,0,SUM(Bahrein:Autriche!$G$17:$G$18))","v":7},2,9,null,"OCON Sebastian",{"$f":"IF(Canada!$D$21=0,0,SUM(Bahrein:Autriche!$G$21))","v":31},13,9]
[null,null,null,null,null,null,0,null,"ALPHA TAURI",{"$f":"IF(SUM(Canada!$D$23:$D$24)=0,0,SUM(Bahrein:Autriche!$G$23:$G$24))","v":2},5,10,null,"NORRIS Lando",{"$f":"IF(Canada!$D$29=0,0,SUM(Bahrein:Autriche!$G$29))","v":24},7,10]
["ALONSO Fernando","ASTON MARTIN",null,5,null,null,14,5,null,null,null,null,null,"GASLY Pierre",{"$f":"IF(Canada!$D$20=0,0,SUM(Bahrein:Autriche!$G$20))","v":16},8,11]
["STROLL Lance",null,null,9,null,null,7,4,null,null,null,null,null,"HULKENBERG Nico",{"$f":"IF(Canada!$D$27=0,0,SUM(Bahrein:Autriche!$G$27))","v":9},7,12]
[null,null,null,null,null,null,0,null,null,null,null,null,null,"ALBON Alexander",{"$f":"IF(Canada!$D$17=0,0,SUM(Bahrein:Autriche!$G$17))","v":7},2,13]
["ALBON Alexander","WILLIAMS",null,11,null,null,0,null,null,null,null,null,null,"BOTTAS Valtteri",{"$f":"IF(Canada!$D$32=0,0,SUM(Bahrein:Autriche!$G$32))","v":5},2,14]
["SARGEANT Logan",null,null,13,null,null,0,null,null,null,null,null,null,"GUANYU Zhou",{"$f":"IF(Canada!$D$33=0,0,SUM(Bahrein:Autriche!$G$33))","v":4},1,15]
[null,null,null,null,null,null,0,null,null,null,null,null,null,"MAGNUSSEN Kevin",{"$f":"IF(Canada!$D$26=0,0,SUM(Bahrein:Autriche!$G$26))","v":2},2,16]
["GASLY Pierre","ALPINE F1 TEAM",null,10,null,null,1,null,null,null,null,null,null,"TSUNODA Yoki",{"$f":"IF(Canada!$D$23=0,0,SUM(Bahrein:Autriche!$G$23))","v":2},0,16]
["OCON Sebastian",null,null,14,null,null,2,7,null,null,null,null,null,"PIASTRI Oscar",{"$f":"IF(Canada!$D$30=0,0,SUM(Bahrein:Autriche!$F$30))","v":0},2,18]
[null,null,null,null,null,null,0,null,null,null,null,null,null,"SARGEANT Logan",{"$f":"IF(Canada!$D$18=0,0,SUM(Bahrein:Autriche!$G$18))","v":0},0,18]
["TSUNODA Yuki","ALPHA TAURI",null,19,null,null,0,null,null,null,null,null,null,"DEVRIES Nyck",{"$f":"IF(Canada!$D$24=0,0,SUM(Bahrein:Autriche!$G$24))","v":0},0,18]
["DEVRIES Nyck",null,null,17,null,null,0]
[null,null,null,null,null,null,0]
["MAGNUSSEN Kevin","HAAS",null,18,null,null,0]
["HULKENBERG Nico",null,null,"OUT",null,null,3,6]
[null,null,null,null,null,null,0]
["NORRIS Lando","Mc LAREN",null,4,null,null,12]
["PIASTRI Oscar",null,null,16,null,null,0]
[null,null,null,null,null,null,0]
["BOTTAS Valtteri","ALFA ROMÉO"," ",15,null,null,0]
["GUANYU Zhou",null,null,12,null,null,0]
[null,null,null,null,null,null,0]

{"sheet":"GB","index":14,"n_rows":34,"n_cols":17,"rows_kept":34,"cut":false,"hidden":false,"merged":[[36,1,36,3],[31,1,33,1],[31,2,33,2],[22,1,24,1],[22,2,24,2],[25,1,27,1],[25,2,27,2],[28,1,30,1],[28,2,30,2],[13,1,15,1],[13,2,15,2],[16,1,18,1],[16,2,18,2],[19,1,21,1],[19,2,21,2],[4,1,6,1],[4,2,6,2],[7,1,9,1],[7,2,9,2],[10,1,12,1],[10,2,12,2],[2,5,3,5],[2,6,3,6],[2,7,3,7],[0,0,1,16],[2,0,3,0],[2,1,3,1],[2,2,3,2],[2,3,3,3],[2,4,3,4]]}
["SILVERSTONE - 9 JUILLET 2023"]
[]
["PILOTES","ECURIES","VOITURES","Finish","Pôle","Pt tour","Points",null,"ÉCURIES","Points","Écart","Rang",null,"Noms","Points","Écart","Rang"]
[null,null,null,null,null,null,null,null,"RED BULL RACING",{"$f":"IF(SUM(Autriche!$D$11:$D$12)=0,0,SUM(Bahrein:GB!$G$11:$G$12))","v":411},null,{"$f":"IF(J4=\"\",0,(RANK(J4,$J$4:$J$13)))","v":1},null,"VERSTAPPEN Max",{"$f":"IF(Autriche!$D$11=\"\",0,SUM(Bahrein:GB!$G$11))","v":255},null,{"$f":"IF(O4=\"\",0,(RANK(O4,$O$4:$O$23)))","v":1}]
["HAMILTON Lewis","MERCEDES",null,3,null,null,{"$f":"IFERROR(CHOOSE(D5,25,18,15,12,10,8,6,4,2,1)+IF(D5<=10,F5),0)","v":15},null,"MERCEDES",{"$f":"IF(SUM(Autriche!$D$5:$D$6)=0,0,SUM(Bahrein:GB!$G$5:$G$6))","v":203},{"$f":"J4-J5","v":208},{"$f":"IF(J5=\"\",0,(RANK(J5,$J$4:$J$13)))","v":2},null,"PEREZ Sergio",{"$f":"IF(Autriche!$D$12=\"\",0,SUM(Bahrein:GB!$G$12))","v":156},{"$f":"O4-O5","v":99},{"$f":"IF(O5=\"\",0,(RANK(O5,$O$4:$O$23)))","v":2}]
["RUSSELL George",null,null,5,null,null,{"$f":"IFERROR(CHOOSE(D6,25,18,15,12,10,8,6,4,2,1)+IF(D6<=10,F6),0)","v":10},null,"ASTON MARTIN",{"$f":"IF(SUM(Autriche!$D$14:$D$15)=0,0,SUM(Bahrein:GB!$G$14:$G$15))","v":181},{"$f":"J5-J6","v":22},3,null,"ALONSO Fernando",{"$f":"IF(Autriche!$D$14=\"\",0,SUM(Bahrein:GB!$G$14))","v":137},{"$f":"O5-O6","v":19},3]
[null,null,null,null,null,null,0,null,"FERRARI",{"$f":"IF(SUM(Autriche!$D$8:$D$9)=0,0,SUM(Bahrein:GB!$G$8:$G$9))","v":157},24,4,null,"HAMILTON Lewis",{"$f":"IF(Autriche!$D$5=\"\",0,SUM(Bahrein:GB!$G$5))","v":121},16,4]
["SAINZ.Jr Carlos","FERRARI",null,10,null,null,1,null,"Mc LAREN",{"$f":"IF(SUM(Autriche!$D$29:$D$30)=0,0,SUM(Bahrein:GB!$G$29:$G$30))","v":59},98,5,null,"SAINZ.Jr Carlos",{"$f":"IF(Autriche!$D$8=\"\",0,SUM(Bahrein:GB!$G$8))","v":83},38,5]
["LECLERC Charles",null,null,9,null,null,2,null,"ALPINE F1 TEAM",{"$f":"IF(SUM(Autriche!$D$20:$D$21)=0,0,SUM(Bahrein:GB!$G$20:$G$21))","v":47},12,6,null,"RUSSEL George",{"$f":"IF(Autriche!$D$6=\"\",0,SUM(Bahrein:GB!$G$6))","v":82},1,6]
[null,null,null,null,null,null,0,null,"WILLIAMS",{"$f":"IF(SUM(Autriche!$D$17:$D$18)=0,0,SUM(Bahrein:GB!$G$17:$G$18))","v":11},36,7,null,"LECLERC Charles",{"$f":"IF(Autriche!$D$9=\"\",0,SUM(Bahrein:GB!$G$9))","v":74},8,7]
["VERSTAPPEN Max","RED BULL RACING",null,1,1,1,26,null,"HAAS",{"$f":"IF(SUM(Autriche!$D$26:$D$27)=0,0,SUM(Bahrein:GB!$G$26:$G$27))","v":11},0,7,null,"STROLL Lance",{"$f":"IF(Autriche!$D$15=\"\",0,SUM(Bahrein:GB!$G$15))","v":44},30,8]
["PEREZ Sergio",null,null,6,null,null,8,null,"ALFA ROMÉO",{"$f":"IF(SUM(Autriche!$D$32:$D$33)=0,0,SUM(Bahrein:GB!$G$32:$G$33))","v":9},2,9,null,"NORRIS Lando",{"$f":"IF(Autriche!$D$29=\"\",0,SUM(Bahrein:GB!$G$29))","v":42},2,9]
[null,null,null,null,null,null,0,null,"ALPHA TAURI",{"$f":"IF(SUM(Autriche!$D$23:$D$24)=0,0,SUM(Bahrein:GB!$G$23:$G$24))","v":2},7,10,null,"OCON Sebastian",{"$f":"IF(Autriche!$D$21=\"\",0,SUM(Bahrein:GB!$G$21))","v":31},11,10]
["ALONSO Fernando","ASTON MARTIN",null,7,null,null,6,null,null,null,null,null,null,"PIASTRI Oscar",{"$f":"IF(Autriche!$D$30=\"\",0,SUM(Bahrein:GB!$G$30))","v":17},14,11]
["STROLL Lance",null,null,14,null,null,0,null,null,null,null,null,null,"GASLY Pierre",{"$f":"IF(Autriche!$D$20=\"\",0,SUM(Bahrein:GB!$G$20))","v":16},1,12]
[null,null,null,null,null,null,0,null,null,null,null,null,null,"ALBON Alexander",{"$f":"IF(Autriche!$D$17=\"\",0,SUM(Bahrein:GB!$G$17))","v":11},5,13]
["ALBON Alexander","WILLIAMS",null,8,null,null,4,null,null,null,null,null,null,"HULKENBERG Nico",{"$f":"IF(Autriche!$D$27=\"\",0,SUM(Bahrein:GB!$G$27))","v":9},2,14]
["SARGEANT Logan",null,null,11,null,null,0,null,null,null,null,null,null,"BOTTAS Valtteri",{"$f":"IF(Autriche!$D$32=\"\",0,SUM(Bahrein:GB!$G$32))","v":5},4,15]
[null,null,null,null,null,null,0,null,null,null,null,null,null,"GUANYU Zhou",{"$f":"IF(Autriche!$D$33=\"\",0,SUM(Bahrein:GB!$G$33))","v":4},1,16]
["GASLY Pierre","ALPINE F1 TEAM",null,"OUT",null,null,0,null,null,null,null,null,null,"MAGNUSSEN Kevin",{"$f":"IF(Autriche!$D$26=\"\",0,SUM(Bahrein:GB!$G$26))","v":2},2,17]
["OCON Sebastian",null,null,"OUT",null,null,0,null,null,null,null,null,null,"TSUNODA Yoki",{"$f":"IF(Autriche!$D$23=\"\",0,SUM(Bahrein:GB!$G$23))","v":2},0,17]
[null,null,null,null,null,null,0,null,null,null,null,null,null,"SARGEANT Logan",{"$f":"IF(Autriche!$D$18=\"\",0,SUM(Bahrein:GB!$G$18))","v":0},2,19]
["TSUNODA Yuki","ALPHA TAURI",null,16,null,null,0,null,null,null,null,null,null,"DEVRIES Nyck",{"$f":"IF(Autriche!$D$24=\"\",0,SUM(Bahrein:GB!$G$24))","v":0},0,19]
["RICCIARDO Daniel",null,null,17,null,null,0]
[null,null,null,null,null,null,0]
["MAGNUSSEN Kevin","HAAS",null,"OUT",null,null,0]
["HULKENBERG Nico",null,null,13,null,null,0]
[null,null,null,null,null,null,0]
["NORRIS Lando","Mc LAREN",null,2,null,null,18]
["PIASTRI Oscar",null,null,4,null,null,12]
[null,null,null,null,null,null,0]
["BOTTAS Valtteri","ALFA ROMÉO",null,12,null,null,0]
["GUANYU Zhou",null,null,15,null,null,0]
[null,null,null,null,null,null,0]

{"sheet":"Hongrie","index":15,"n_rows":34,"n_cols":17,"rows_kept":34,"cut":false,"hidden":false,"merged":[[16,1,18,1],[16,2,18,2],[19,1,21,1],[19,2,21,2],[36,1,36,3],[31,1,33,1],[31,2,33,2],[22,1,24,1],[22,2,24,2],[25,1,27,1],[25,2,27,2],[28,1,30,1],[28,2,30,2],[7,1,9,1],[7,2,9,2],[10,1,12,1],[10,2,12,2],[13,1,15,1],[13,2,15,2],[2,5,3,5],[2,6,3,6],[0,0,1,16],[4,1,6,1],[4,2,6,2],[2,0,3,0],[2,1,3,1],[2,2,3,2],[2,3,3,3],[2,4,3,4]]}
["BUDAPEST - 23 JUILLET 2023"]
[]
["PILOTES","ECURIES","VOITURES","Finish","Pôle","Pt tour","Points",null,"ÉCURIES","Points","Écart","Rang",null,"Noms","Points","Écart","Rang"]
[null,null,null,null,null,null,null,null,"RED BULL RACING",{"$f":"IF(SUM(GB!$D$11:$D$12)=0,0,SUM(Bahrein:Hongrie!$G$11:$G$12))","v":452},null,{"$f":"IF(J4=\"\",0,(RANK(J4,$J$4:$J$13)))","v":1},null,"VERSTAPPEN Max",{"$f":"IF(GB!$D$11=\"\",0,SUM(Bahrein:Hongrie!$G$11))","v":281},null,{"$f":"IF(O4=\"\",0,(RANK(O4,$O$4:$O$23)))","v":1}]
["HAMILTON Lewis","MERCEDES",null,4,1,null,{"$f":"IFERROR(CHOOSE(D5,25,18,15,12,10,8,6,4,2,1)+IF(D5<=10,F5),0)","v":12},null,"MERCEDES",{"$f":"IF(SUM(GB!$D$5:$D$6)=0,0,SUM(Bahrein:Hongrie!$G$5:$G$6))","v":223},{"$f":"J4-J5","v":229},{"$f":"IF(J5=\"\",0,(RANK(J5,$J$4:$J$13)))","v":2},null,"PEREZ Sergio",{"$f":"IF(GB!$D$12=\"\",0,SUM(Bahrein:Hongrie!$G$12))","v":171},{"$f":"O4-O5","v":110},{"$f":"IF(O5=\"\",0,(RANK(O5,$O$4:$O$23)))","v":2}]
["RUSSELL GEORGE",null,null,6,null,null,{"$f":"IFERROR(CHOOSE(D6,25,18,15,12,10,8,6,4,2,1)+IF(D6<=10,F6),0)","v":8},null,"ASTON MARTIN",{"$f":"IF(SUM(GB!$D$14:$D$15)=0,0,SUM(Bahrein:Hongrie!$G$14:$G$15))","v":184},{"$f":"J5-J6","v":39},3,null,"ALONSO Fernando",{"$f":"IF(GB!$D$14=\"\",0,SUM(Bahrein:Hongrie!$G$14))","v":139},{"$f":"O5-O6","v":32},3]
[null,null,null,null,null,null,0,null,"FERRARI",{"$f":"IF(SUM(GB!$D$8:$D$9)=0,0,SUM(Bahrein:Hongrie!$G$8:$G$9))","v":167},17,4,null,"HAMILTON Lewis",{"$f":"IF(GB!$D$5=\"\",0,SUM(Bahrein:Hongrie!$G$5))","v":133},6,4]
["SAINZ.Jr Carlos","FERRARI",null,8,null,null,4,null,"Mc LAREN",{"$f":"IF(SUM(GB!$D$29:$D$30)=0,0,SUM(Bahrein:Hongrie!$G$29:$G$30))","v":87},80,5,null,"RUSSEL George",{"$f":"IF(GB!$D$6=\"\",0,SUM(Bahrein:Hongrie!$G$6))","v":90},43,5]
["LECLERC Charles",null,null,7,null,null,6,null,"WILLIAMS",{"$f":"IF(SUM(GB!$D$17:$D$18)=0,0,SUM(Bahrein:Hongrie!$G$17:$G$18))","v":11},76,6,null,"SAINZ.Jr Carlos",{"$f":"IF(GB!$D$8=\"\",0,SUM(Bahrein:Hongrie!$G$8))","v":87},3,6]
[null,null,null,null,null,null,0,null,"HAAS",{"$f":"IF(SUM(GB!$D$26:$D$27)=0,0,SUM(Bahrein:Hongrie!$G$26:$G$27))","v":11},0,6,null,"LECLERC Charles",{"$f":"IF(GB!$D$9=\"\",0,SUM(Bahrein:Hongrie!$G$9))","v":80},7,7]
["VERSTAPPEN Max","RED BULL RACING",null,1,null,1,26,null,"ALFA ROMÉO",{"$f":"IF(SUM(GB!$D$32:$D$33)=0,0,SUM(Bahrein:Hongrie!$G$32:$G$33))","v":9},2,8,null,"NORRIS Lando",{"$f":"IF(GB!$D$29=\"\",0,SUM(Bahrein:Hongrie!$G$29))","v":60},20,8]
["PEREZ Sergio",null,null,3,null,null,15,null,"ALPHA TAURI",{"$f":"IF(SUM(GB!$D$24:$D$123)=0,0,SUM(Bahrein:Hongrie!$G$23:$G$24))","v":2},7,9,null,"STROLL Lance",{"$f":"IF(GB!$D$15=\"\",0,SUM(Bahrein:Hongrie!$G$15))","v":45},15,9]
[null,null,null,null,null,null,0,null,"ALPINE F1 TEAM",{"$f":"IF(SUM(GB!$D$20:$D$21)=0,0,SUM(Bahrein:Hongrie!$G$20:$G$21))","v":0},2,10,null,"OCON Sebastian",{"$f":"IF(GB!$D$21=\"\",0,SUM(Bahrein:Hongrie!$G$21))","v":31},14,10]
["ALONSO Fernando","ASTON MARTIN",null,9,null,null,2,null,null,null,null,null,null,"PIASTRI Oscar",{"$f":"IF(GB!$D$30=\"\",0,SUM(Bahrein:Hongrie!$G$30))","v":27},4,11]
["STROLL Lance",null,null,10,null,null,1,null,null,null,null,null,null,"GASLY Pierre",{"$f":"IF(GB!$D$20=\"\",0,SUM(Bahrein:Hongrie!$G$20))","v":16},11,12]
[null,null,null,null,null,null,0,null,null,null,null,null,null,"ALBON Alexander",{"$f":"IF(GB!$D$17=\"\",0,SUM(Bahrein:Hongrie!$G$17))","v":11},5,13]
["ALBON Alexander","WILLIAMS",null,11,null,null,0,null,null,null,null,null,null,"HULKENBERG Nico",{"$f":"IF(GB!$D$27=\"\",0,SUM(Bahrein:Hongrie!$G$27))","v":9},2,14]
["SARGEANT Logan",null,null,"OUT",null,null,0,null,null,null,null,null,null,"BOTTAS Valtteri",{"$f":"IF(GB!$D$32=\"\",0,SUM(Bahrein:Hongrie!$G$32))","v":5},4,15]
[null,null,null,null,null,null,0,null,null,null,null,null,null,"GUANYU Zhou",{"$f":"IF(GB!$D$33=\"\",0,SUM(Bahrein:Hongrie!$G$33))","v":4},1,16]
["GASLY Pierre","ALPINE F1 TEAM",null,"OUT",null,null,0,null,null,null,null,null,null,"MAGNUSEN Kevin",{"$f":"IF(GB!$D$26=\"\",0,SUM(Bahrein:Hongrie!$G$26))","v":2},2,17]
["OCON Sebastian",null,null,"OUT",null,null,0,null,null,null,null,null,null,"TSUNODA Yoki",{"$f":"IF(GB!$D$23=\"\",0,SUM(Bahrein:Hongrie!$G$23))","v":2},0,17]
[null,null,null,null,null,null,0,null,null,null,null,null,null,"SARGEANT Logan",{"$f":"IF(GB!$D$18=\"\",0,SUM(Bahrein:Hongrie!$G$18))","v":0},2,19]
["TSUNODA Yuki","ALPHA TAURI",null,15,null,null,0,null,null,null,null,null,null,"RICCIARDO Daniel",{"$f":"Hongrie!$G$24","v":0},0,19]
["RICCIARDO Daniel",null,null,13,null,null,0]
[null,null,null,null,null,null,0]
["MAGNUSEN Kevin","HAAS",null,17,null,null,0]
["HULKENBERG Nico",null,null,14,null,null,0]
[null,null,null,null,null,null,0]
["NORRIS Lando","Mc LAREN",null,2,null,null,18]
["PIASTRI Oscar",null,null,5,null,null,10]
[null,null,null,null,null,null,0]
["BOTTAS Valtteri","ALFA ROMÉO",null,12,null,null,0]
["GUANYU Zhou",null,null,16,null,null,0]
[null,null,null,null,null,null,0]

{"sheet":"Belgique","index":16,"n_rows":34,"n_cols":17,"rows_kept":34,"cut":false,"hidden":false,"merged":[[36,1,36,3],[31,1,33,1],[31,2,33,2],[22,1,24,1],[22,2,24,2],[25,1,27,1],[25,2,27,2],[28,1,30,1],[28,2,30,2],[13,1,15,1],[13,2,15,2],[16,1,18,1],[16,2,18,2],[19,1,21,1],[19,2,21,2],[4,1,6,1],[4,2,6,2],[7,1,9,1],[7,2,9,2],[10,1,12,1],[10,2,12,2],[2,5,3,5],[2,6,3,6],[2,7,3,7],[0,0,1,16],[2,0,3,0],[2,1,3,1],[2,2,3,2],[2,3,3,3],[2,4,3,4]]}
["SPA FRANCORCHAMPS - 30 JUILLET 2023"]
[]
["PILOTES","ECURIES","VOITURES","Finish","Pôle","Pt tour","Points","Sprint","ÉCURIES","Points","Écart","Rang",null,"Noms","Points","Écart","Rang"]
[null,null,null,null,null,null,null,null,"RED BULL RACING",{"$f":"IF(SUM(Hongrie!$D$11:$D$12)=0,0,SUM(Bahrein:Belgique!$G$11:$G$12))","v":503},null,{"$f":"IF(J4=\"\",0,(RANK(J4,$J$4:$J$13)))","v":1},null,"VERSTAPPEN Max",{"$f":"IF(Hongrie!$D$11=\"\",0,SUM(Bahrein:Belgique!$G$11))","v":314},null,{"$f":"IF(O4=\"\",0,(RANK(O4,$O$4:$O$23)))","v":1}]
["HAMILTON Lewis","MERCEDES",null,4,null,1,{"$f":"IFERROR(CHOOSE(D5,25,18,15,12,10,8,6,4,2,1),0)+IFERROR(CHOOSE(H5,8,7,6,5,4,3,2,1),0)+IF(D5<=10,F5,0)","v":15},7,"MERCEDES",{"$f":"IF(SUM(Hongrie!$D$5:$D$6)=0,0,SUM(Bahrein:Belgique!$G$5:$G$6))","v":247},{"$f":"J4-J5","v":256},{"$f":"IF(J5=\"\",0,(RANK(J5,$J$4:$J$13)))","v":2},null,"PEREZ Sergio",{"$f":"IF(Hongrie!$D$12=\"\",0,SUM(Bahrein:Belgique!$G$12))","v":189},{"$f":"O4-O5","v":125},{"$f":"IF(O5=\"\",0,(RANK(O5,$O$4:$O$23)))","v":2}]
["RUSSELL George",null,null,6,null,null,{"$f":"IFERROR(CHOOSE(D6,25,18,15,12,10,8,6,4,2,1),0)+IFERROR(CHOOSE(H6,8,7,6,5,4,3,2,1),0)+IF(D6<=10,F6,0)","v":9},8,"ASTON MARTIN",{"$f":"IF(SUM(Hongrie!$D$14:$D$15)=0,0,SUM(Bahrein:Belgique!$G$14:$G$15))","v":196},{"$f":"J5-J6","v":51},3,null,"ALONSO Fernando",{"$f":"IF(Hongrie!$D$14=\"\",0,SUM(Bahrein:Belgique!$G$14))","v":149},{"$f":"O5-O6","v":40},3]
[null,null,null,null,null,null,0,null,"FERRARI",{"$f":"IF(SUM(Hongrie!$D$8:$D$9)=0,0,SUM(Bahrein:Belgique!$G$8:$G$9))","v":191},5,4,null,"HAMILTON Lewis",{"$f":"IF(Hongrie!$D$5=\"\",0,SUM(Bahrein:Belgique!$G$5))","v":148},1,4]
["SAINZ.Jr Carlos","FERRARI",null,"OUT",null,null,5,4,"Mc LAREN",{"$f":"IF(SUM(Hongrie!$D$29:$D$30)=0,0,SUM(Bahrein:Belgique!$G$29:$G$30))","v":103},88,5,null,"RUSSEL George",{"$f":"IF(Hongrie!$D$6=\"\",0,SUM(Bahrein:Belgique!$G$6))","v":99},49,5]
["LECLERC Charles",null,null,3,1,null,19,5,"WILLIAMS",{"$f":"IF(SUM(Hongrie!$D$17:$D$18)=0,0,SUM(Bahrein:Belgique!$G$17:$G$18))","v":11},92,6,null,"LECLERC Charles",{"$f":"IF(Hongrie!$D$9=\"\",0,SUM(Bahrein:Belgique!$G$9))","v":99},0,5]
[null,null,null,null,null,null,0,null,"HAAS",{"$f":"IF(SUM(Hongrie!$D$26:$D$27)=0,0,SUM(Bahrein:Belgique!$G$26:$G$27))","v":11},0,6,null,"SAINZ.Jr Carlos",{"$f":"IF(Hongrie!$D$8=\"\",0,SUM(Bahrein:Belgique!$G$8))","v":92},7,7]
["VERSTAPPEN Max","RED BULL RACING",null,1,null,null,33,1,"ALFA ROMÉO",{"$f":"IF(SUM(Hongrie!$D$32:$D$33)=0,0,SUM(Bahrein:Belgique!$G$32:$G$33))","v":9},2,8,null,"NORRIS Lando",{"$f":"IF(Hongrie!$D$29=\"\",0,SUM(Bahrein:Belgique!$G$29))","v":69},23,8]
["PEREZ Sergio",null,null,2,null,null,18,null,"ALPHA TAURI",{"$f":"IF(SUM(Hongrie!$D$23:$D$24)=0,0,SUM(Bahrein:Belgique!$G$23:$G$24))","v":3},6,9,null,"STROLL Lance",{"$f":"IF(Hongrie!$D$15=\"\",0,SUM(Bahrein:Belgique!$G$15))","v":47},22,9]
[null,null,null,null,null,null,0,null,"ALPINE F1 TEAM",{"$f":"IF(SUM(Hongrie!$D$20:$D$21)=0,0,SUM(Bahrein:Belgique!$G$20:$G$21))","v":0},3,10,null,"OCON Sebastian",{"$f":"IF(Hongrie!$D$21=\"\",0,SUM(Bahrein:Belgique!$G$21))","v":35},12,10]
["ALONSO Fernando","ASTON MARTIN",null,5,null,null,10,null,null,null,null,null,null,"PIASTRI Oscar",{"$f":"IF(Hongrie!$D$30=\"\",0,SUM(Bahrein:Belgique!$G$30))","v":34},1,11]
["STROLL Lance",null,null,9,null,null,2,null,null,null,null,null,null,"GASLY Pierre",{"$f":"IF(Hongrie!$D$20=\"\",0,SUM(Bahrein:Belgique!$G$20))","v":22},12,12]
[null,null,null,null,null,null,0,null,null,null,null,null,null,"ALBON Alexander",{"$f":"IF(Hongrie!$D$17=\"\",0,SUM(Bahrein:Belgique!$G$17))","v":11},11,13]
["ALBON Alexander","WILLIAMS",null,14,null,null,0,null,null,null,null,null,null,"HULKENBERG Nico",{"$f":"IF(Hongrie!$D$27=\"\",0,SUM(Bahrein:Belgique!$G$27))","v":9},2,14]
["SARGEANT Logan",null,null,17,null,null,0,null,null,null,null,null,null,"BOTTAS Valtteri",{"$f":"IF(Hongrie!$D$32=\"\",0,SUM(Bahrein:Belgique!$G$32))","v":5},4,15]
[null,null,null,null,null,null,0,null,null,null,null,null,null,"GUANYU Zhou",{"$f":"IF(Hongrie!$D$33=\"\",0,SUM(Bahrein:Belgique!$G$33))","v":4},1,16]
["GASLY Pierre","ALPINE F1 TEAM",null,11,null,null,6,3,null,null,null,null,null,"TSUNODA Yoki",{"$f":"IF(Hongrie!$D$23=\"\",0,SUM(Bahrein:Belgique!$G$23))","v":3},1,17]
["OCON Sebastian",null,null,8,null,null,4,null,null,null,null,null,null,"MAGNUSSEN Kevin",{"$f":"IF(Hongrie!$D$26=\"\",0,SUM(Bahrein:Belgique!$G$26))","v":2},1,18]
[null,null,null,null,null,null,0,null,null,null,null,null,null,"SARGEANT Logan",{"$f":"IF(Hongrie!$D$18=\"\",0,SUM(Bahrein:Belgique!$G$18))","v":0},2,19]
["TSUNODA Yuki","ALPHA TAURI",null,10,null,null,1,null,null,null,null,null,null,"RICCIARDO Daniel",{"$f":"IF(Hongrie!$D$24=\"\",0,SUM(Bahrein:Belgique!$G$24))","v":0},0,19]
["RICCIARDO Daniel",null,null,16,null,null,0]
[null,null,null,null,null,null,0]
["MAGNUSSEN Kevin","HAAS",null,15,null,null,0]
["HULKENBERG Nico",null,null,18,null,null,0]
[null,null,null,null,null,null,0]
["NORRIS Lando","Mc LAREN",null,7,null,null,9,6]
["PIASTRI Oscar",null,null,"OUT",null,null,7,2]
[null,null,null,null,null,null,0]
["BOTTAS Valtteri","ALFA ROMÉO",null,12,null,null,0]
["GUANYU Zhou",null,null,13,null,null,0]
[null,null,null,null,null,null,0]

{"sheet":"Pays-Bas","index":17,"n_rows":34,"n_cols":17,"rows_kept":34,"cut":false,"hidden":false,"merged":[[16,1,18,1],[16,2,18,2],[19,1,21,1],[19,2,21,2],[36,1,36,3],[31,1,33,1],[31,2,33,2],[22,1,24,1],[22,2,24,2],[25,1,27,1],[25,2,27,2],[28,1,30,1],[28,2,30,2],[7,1,9,1],[7,2,9,2],[10,1,12,1],[10,2,12,2],[13,1,15,1],[13,2,15,2],[2,5,3,5],[2,6,3,6],[0,0,1,16],[4,1,6,1],[4,2,6,2],[2,0,3,0],[2,1,3,1],[2,2,3,2],[2,3,3,3],[2,4,3,4]]}
["ZANDVOORT - 27 AOUT 2023"]
[]
["PILOTES","ECURIES","VOITURES","Finish","Pôle","Pt tour","Points",null,"ÉCURIES","Points","Écart","Rang",null,"Noms","Points","Écart","Rang"]
[null,null,null,null,null,null,null,null,"RED BULL RACING",{"$f":"IF(SUM(Belgique!$D$11:$D$12)=0,0,SUM('Bahrein:Pays-Bas'!$G$11:$G$12))","v":540},null,{"$f":"IF(J4=\"\",0,(RANK(J4,$J$4:$J$13)))","v":1},null,"VERSTAPPEN Max",{"$f":"IF(Belgique!$D$11=\"\",0,SUM('Bahrein:Pays-Bas'!$G$11))","v":339},0,{"$f":"IF(O4=\"\",0,(RANK(O4,$O$4:$O$23)))","v":1}]
["HAMILTON Lewis","MERCEDES",null,6,null,null,{"$f":"IFERROR(CHOOSE(D5,25,18,15,12,10,8,6,4,2,1)+IF(D5<=10,F5),0)","v":8},null,"MERCEDES",{"$f":"IF(SUM(Belgique!$D$5:$D$6)=0,0,SUM('Bahrein:Pays-Bas'!$G$5:$G$6))","v":255},{"$f":"J4-J5","v":285},{"$f":"IF(J5=\"\",0,(RANK(J5,$J$4:$J$13)))","v":2},null,"PEREZ Sergio",{"$f":"IF(Belgique!$D$12=\"\",0,SUM('Bahrein:Pays-Bas'!$G$12))","v":201},{"$f":"O4-O5","v":138},{"$f":"IF(O5=\"\",0,(RANK(O5,$O$4:$O$23)))","v":2}]
["RUSSELL George",null,null,17,null,null,{"$f":"IFERROR(CHOOSE(D6,25,18,15,12,10,8,6,4,2,1)+IF(D6<=10,F6),0)","v":0},null,"ASTON MARTIN",{"$f":"IF(SUM(Belgique!$D$14:$D$15)=0,0,SUM('Bahrein:Pays-Bas'!$G$14:$G$15))","v":215},{"$f":"J5-J6","v":40},3,null,"ALONSO Fernando",{"$f":"IF(Belgique!$D$14=\"\",0,SUM('Bahrein:Pays-Bas'!$G$14))","v":168},{"$f":"O5-O6","v":33},3]
[null,null,null,null,null,null,0,null,"FERRARI",{"$f":"IF(SUM(Belgique!$D$8:$D$9)=0,0,SUM('Bahrein:Pays-Bas'!$G$8:$G$9))","v":201},14,4,null,"HAMILTON Lewis",{"$f":"IF(Belgique!$D$5=\"\",0,SUM('Bahrein:Pays-Bas'!$G$5))","v":156},12,4]
["SAINZ.Jr Carlos","FERRARI",null,5,null,null,10,null,"Mc LAREN",{"$f":"IF(SUM(Belgique!$D$29:$D$30)=0,0,SUM('Bahrein:Pays-Bas'!$G$29:$G$30))","v":111},90,5,null,"SAINZ.Jr Carlos",{"$f":"IF(Belgique!$D$8=\"\",0,SUM('Bahrein:Pays-Bas'!$G$8))","v":102},54,5]
["LECLERC Charles",null,null,"OUT",null,null,0,null,"ALPINE F1 TEAM",{"$f":"IF(SUM(Belgique!$D$20:$D$21)=0,0,SUM('Bahrein:Pays-Bas'!$G$20:$G$21))","v":73},38,6,null,"RUSSEL George",{"$f":"IF(Belgique!$D$6=\"\",0,SUM('Bahrein:Pays-Bas'!$G$6))","v":99},3,6]
[null,null,null,null,null,null,0,null,"WILLIAMS",{"$f":"IF(SUM(Belgique!$D$17:$D$18)=0,0,SUM('Bahrein:Pays-Bas'!$G$17:$G$18))","v":15},58,7,null,"LECLERC Charles",{"$f":"IF(Belgique!$D$9=\"\",0,SUM('Bahrein:Pays-Bas'!$G$9))","v":99},0,6]
["VERSTAPPEN Max","RED BULL RACING",null,1,1,null,25,null,"HAAS",{"$f":"IF(SUM(Belgique!$D$26:$D$27)=0,0,SUM('Bahrein:Pays-Bas'!$G$26:$G$27))","v":11},4,8,null,"NORRIS Lando",{"$f":"IF(Belgique!$D$29=\"\",0,SUM('Bahrein:Pays-Bas'!$G$29))","v":75},24,8]
["PEREZ Sergio",null,null,4,null,null,12,null,"ALFA ROMÉO",{"$f":"IF(SUM(Belgique!$D$32:$D$33)=0,0,SUM('Bahrein:Pays-Bas'!$G$32:$G$33))","v":9},2,9,null,"STROLL Lance",{"$f":"IF(Belgique!$D$15=\"\",0,SUM('Bahrein:Pays-Bas'!$G$15))","v":47},28,9]
[null,null,null,null,null,null,0,null,"ALPHA TAURI",{"$f":"IF(SUM(Belgique!$D$23:$D$24)=0,0,SUM('Bahrein:Pays-Bas'!$G$23:$G$24))","v":3},6,10,null,"GASLY Pierre",{"$f":"IF(Belgique!$D$20=\"\",0,SUM('Bahrein:Pays-Bas'!$G$20))","v":37},10,10]
["ALONSO Fernando","ASTON MARTIN",null,2,null,1,19,null,null,null,null,null,null,"OCON Sebastian",{"$f":"IF(Belgique!$D$21=\"\",0,SUM('Bahrein:Pays-Bas'!$G$21))","v":36},1,11]
["STROLL Lance",null,null,11,null,null,0,null,null,null,null,null,null,"PIASTRI Oscar",{"$f":"IF(Belgique!$D$30=\"\",0,SUM('Bahrein:Pays-Bas'!$G$30))","v":36},0,11]
[null,null,null,null,null,null,0,null,null,null,null,null,null,"ALBON Alexander",{"$f":"IF(Belgique!$D$17=\"\",0,SUM('Bahrein:Pays-Bas'!$G$17))","v":15},21,13]
["ALBON Alexander","WILLIAMS",null,8,null,null,4,null,null,null,null,null,null,"BOTTAS Valtteri",{"$f":"IF(Belgique!$D$32=\"\",0,SUM('Bahrein:Pays-Bas'!$G$32))","v":5},10,14]
["SARGEANT Logan",null,null,"OUT",null,null,0,null,null,null,null,null,null,"GUANYU Zhou",{"$f":"IF(Belgique!$D$33=\"\",0,SUM('Bahrein:Pays-Bas'!$G$33))","v":4},1,15]
[null,null,null,null,null,null,0,null,null,null,null,null,null,"TSUNODA Yoki",{"$f":"IF(Belgique!$D$23=\"\",0,SUM('Bahrein:Pays-Bas'!$G$23))","v":3},1,16]
["GASLY Pierre","ALPINE F1 TEAM",null,3,null,null,15,null,null,null,null,null,null,"HULKENBERG Nico",{"$f":"IF(Belgique!$D$26=\"\",0,SUM('Bahrein:Pays-Bas'!$G$26))","v":2},1,17]
["OCON Sebastian",null,null,10,null,null,1,null,null,null,null,null,null,"MAGNUSSEN Kevin",{"$f":"IF(Belgique!$D$26=\"\",0,SUM('Bahrein:Pays-Bas'!$G$26))","v":2},0,17]
[null,null,null,null,null,null,0,null,null,null,null,null,null,"RICCIARDO Daniel",{"$f":"IF(Belgique!$D$24=\"\",0,SUM('Bahrein:Pays-Bas'!$G$24))","v":0},2,19]
["TSUNODA Yuki","ALPHA TAURI",null,15,null,null,0,null,null,null,null,null,null,"SARGEANT Logan",{"$f":"IF(Belgique!$D$18=\"\",0,SUM('Bahrein:Pays-Bas'!$G$18))","v":0},0,19]
["RICCIARDO Daniel",null,null,"NC",null,null,0]
["LAWSON Liam",null,null,13,null,null,0]
["MAGNUSSEN Kevin","HAAS",null,16,null,null,0]
["HULKENBERG Nico",null,null,12,null,null,0]
[null,null,null,null,null,null,0]
["NORRIS Lando","Mc LAREN",null,7,null,null,6]
["PIASTRI Oscar",null,null,9,null,null,2]
[null,null,null,null,null,null,0]
["BOTTAS Valtteri","ALFA ROMÉO",null,14,null,null,0]
["GUANYU Zhou",null,null,"OUT",null,null,0]
[null,null,null,null,null,null,0]

{"sheet":"Italie","index":18,"n_rows":34,"n_cols":17,"rows_kept":34,"cut":false,"hidden":false,"merged":[[36,1,36,3],[31,1,33,1],[31,2,33,2],[22,1,24,1],[22,2,24,2],[25,1,27,1],[25,2,27,2],[28,1,30,1],[28,2,30,2],[13,1,15,1],[13,2,15,2],[16,1,18,1],[16,2,18,2],[19,1,21,1],[19,2,21,2],[4,1,6,1],[4,2,6,2],[7,1,9,1],[7,2,9,2],[10,1,12,1],[10,2,12,2],[2,5,3,5],[2,6,3,6],[2,7,3,7],[0,0,1,16],[2,0,3,0],[2,1,3,1],[2,2,3,2],[2,3,3,3],[2,4,3,4]]}
["MONZA - 3 SEPTEMBRE 2023"]
[]
["PILOTES","ECURIES","VOITURES","Finish","Pôle","Pt tour","Points",null,"ÉCURIES","Points","Écart","Rang",null,"Noms","Points","Écart","Rang"]
[null,null,null,null,null,null,null,null,"RED BULL RACING",{"$f":"IF(SUM('Pays-Bas'!$D$11:$D$12)=0,0,SUM(Bahrein:Italie!$G$11:$G$12))","v":583},null,{"$f":"IF(J4=\"\",0,(RANK(J4,$J$4:$J$13)))","v":1},null,"VERSTAPPEN Max",{"$f":"IF('Pays-Bas'!$D$11=\"\",0,SUM(Bahrein:Italie!$G$11))","v":364},null,{"$f":"IF(O4=\"\",0,(RANK(O4,$O$4:$O$23)))","v":1}]
["HAMILTON Lewis","MERCEDES",null,6,null,null,{"$f":"IFERROR(CHOOSE(D5,25,18,15,12,10,8,6,4,2,1)+IF(D5<=10,F5),0)","v":8},null,"MERCEDES",{"$f":"IF(SUM('Pays-Bas'!$D$5:$D$6)=0,0,SUM(Bahrein:Italie!$G$5:$G$6))","v":273},{"$f":"J4-J5","v":310},{"$f":"IF(J5=\"\",0,(RANK(J5,$J$4:$J$13)))","v":2},null,"PEREZ Sergio",{"$f":"IF('Pays-Bas'!$D$12=\"\",0,SUM(Bahrein:Italie!$G$12))","v":219},{"$f":"O4-O5","v":145},{"$f":"IF(O5=\"\",0,(RANK(O5,$O$4:$O$23)))","v":2}]
["RUSSELL George",null,null,5,null,null,{"$f":"IFERROR(CHOOSE(D6,25,18,15,12,10,8,6,4,2,1)+IF(D6<=10,F6),0)","v":10},null,"FERRARI",{"$f":"IF(SUM('Pays-Bas'!$D$8:$D$9)=0,0,SUM(Bahrein:Italie!$G$8:$G$9))","v":228},{"$f":"J5-J6","v":45},3,null,"ALONSO Fernando",{"$f":"IF('Pays-Bas'!$D$14=\"\",0,SUM(Bahrein:Italie!$G$14))","v":170},{"$f":"O5-O6","v":49},3]
[null,null,null,null,null,null,0,null,"ASTON MARTIN",{"$f":"IF(SUM('Pays-Bas'!$D$14:$D$15)=0,0,SUM(Bahrein:Italie!$G$14:$G$15))","v":217},11,4,null,"HAMILTON Lewis",{"$f":"IF('Pays-Bas'!$D$5=\"\",0,SUM(Bahrein:Italie!$G$5))","v":164},6,4]
["SAINZ.Jr Carlos","FERRARI",null,3,1,null,15,null,"Mc LAREN",{"$f":"IF(SUM('Pays-Bas'!$D$29:$D$30)=0,0,SUM(Bahrein:Italie!$G$29:$G$30))","v":115},102,5,null,"SAINZ.Jr Carlos",{"$f":"IF('Pays-Bas'!$D$8=\"\",0,SUM(Bahrein:Italie!$G$8))","v":117},47,5]
["LECLERC Charles",null,null,4,null,null,12,null,"ALPINE F1 TEAM",{"$f":"IF(SUM('Pays-Bas'!$D$20:$D$21)=0,0,SUM(Bahrein:Italie!$G$20:$G$21))","v":73},42,6,null,"LECLERC Charles",{"$f":"IF('Pays-Bas'!$D$9=\"\",0,SUM(Bahrein:Italie!$G$9))","v":111},6,6]
[null,null,null,null,null,null,0,null,"WILLIAMS",{"$f":"IF(SUM('Pays-Bas'!$D$17:$D$18)=0,0,SUM(Bahrein:Italie!$G$17:$G$18))","v":21},52,7,null,"RUSSEL George",{"$f":"IF('Pays-Bas'!$D$6=\"\",0,SUM(Bahrein:Italie!$G$6))","v":109},2,7]
["VERSTAPPEN Max","RED BULL RACING",null,1,null,null,25,null,"HAAS",{"$f":"IF(SUM('Pays-Bas'!$D$26:$D$27)=0,0,SUM(Bahrein:Italie!$G$26:$G$27))","v":11},10,8,null,"NORRIS Lando",{"$f":"IF('Pays-Bas'!$D$29=\"\",0,SUM(Bahrein:Italie!$G$29))","v":79},30,8]
["PEREZ Sergio",null,null,2,null,null,18,null,"ALFA ROMÉO",{"$f":"IF(SUM('Pays-Bas'!$D$32:$D$33)=0,0,SUM(Bahrein:Italie!$G$32:$G$33))","v":10},1,9,null,"STROLL Lance",{"$f":"IF('Pays-Bas'!$D$15=\"\",0,SUM(Bahrein:Italie!$G$15))","v":47},32,9]
[null,null,null,null,null,null,0,null,"ALPHA TAURI",{"$f":"IF(SUM('Pays-Bas'!$D$23:$D$24)=0,0,SUM(Bahrein:Italie!$G$23:$G$24))","v":3},7,10,null,"GASLY Pierre",{"$f":"IF('Pays-Bas'!$D$20=\"\",0,SUM(Bahrein:Italie!$G$20))","v":37},10,10]
["ALONSO Fernando","ASTON MARTIN",null,9,null,null,2,null,null,null,null,null,null,"OCON Sebastian",{"$f":"IF('Pays-Bas'!$D$21=\"\",0,SUM(Bahrein:Italie!$G$21))","v":36},1,11]
["STROLL Lance",null,null,16,null,null,0,null,null,null,null,null,null,"PIASTRI Oscar",{"$f":"IF('Pays-Bas'!$D$30=\"\",0,SUM(Bahrein:Italie!$G$30))","v":36},0,11]
[null,null,null,null,null,null,0,null,null,null,null,null,null,"ALBON Alexander",{"$f":"IF('Pays-Bas'!$D$17=\"\",0,SUM(Bahrein:Italie!$G$17))","v":21},15,13]
["ALBON Alexander","WILLIAMS",null,7,null,null,6,null,null,null,null,null,null,"HULKENBERG Nico",{"$f":"IF('Pays-Bas'!$D$27=\"\",0,SUM(Bahrein:Italie!$G$27))","v":9},12,14]
["SARGEANT Logan",null,null,13,null,null,0,null,null,null,null,null,null,"BOTTAS Valtteri",{"$f":"IF('Pays-Bas'!$D$32=\"\",0,SUM(Bahrein:Italie!$G$32))","v":6},3,15]
[null,null,null,null,null,null,0,null,null,null,null,null,null,"GUANYU Zhou",{"$f":"IF('Pays-Bas'!$D$33=\"\",0,SUM(Bahrein:Italie!$G$33))","v":4},2,16]
["GASLY Pierre","ALPINE F1 TEAM",null,15,null,null,0,null,null,null,null,null,null,"TSUNODA Yoki",{"$f":"IF('Pays-Bas'!$D$23=\"\",0,SUM(Bahrein:Italie!$G$23))","v":3},1,17]
["OCON Sebastian",null,null,"OUT",null,null,0,null,null,null,null,null,null,"MAGNUSSEN Kevin",{"$f":"IF('Pays-Bas'!$D$26=\"\",0,SUM(Bahrein:Italie!$G$26))","v":2},1,18]
[null,null,null,null,null,null,0,null,null,null,null,null,null,"SARGEANT Logan",{"$f":"IF('Pays-Bas'!$D$18=\"\",0,SUM(Bahrein:Italie!$G$18))","v":0},2,19]
["TSUNODA Yuki","ALPHA TAURI",null,"OUT",null,null,0,null,null,null,null,null,null,"RICCIARDO Daniel",{"$f":"IF('Pays-Bas'!$D$24=\"\",0,SUM(Bahrein:Italie!$G$24))","v":0},0,{"$f":"IF(O23=\"\",0,(RANK(O23,$O$4:$O$23)))","v":19}]
["RICCIARDO Daniel",null,null,"NC",null,null,0]
["LAWSON Liam",null,null,11,null,null,0]
["MAGNUSSEN Kevin","HAAS",null,18,null,null,0]
["HULKENBERG Nico",null,null,17,null,null,0]
[null,null,null,null,null,null,0]
["NORRIS Lando","Mc LAREN",null,8,null,null,4]
["PIASTRI Oscar",null,null,12,null,null,0]
[null,null,null,null,null,null,0]
["BOTTAS Valtteri","ALFA ROMÉO",null,10,null,null,1]
["GUANYU Zhou",null,null,14,null,null,0]
[null,null,null,null,null,null,0]

{"sheet":"Singapour","index":19,"n_rows":34,"n_cols":17,"rows_kept":34,"cut":false,"hidden":false,"merged":[[2,5,3,5],[2,6,3,6],[4,1,6,1],[4,2,6,2],[36,1,36,3],[10,1,12,1],[10,2,12,2],[2,0,3,0],[2,1,3,1],[2,2,3,2],[2,3,3,3],[7,1,9,1],[7,2,9,2],[0,0,1,16],[31,1,33,1],[31,2,33,2],[22,1,24,1],[22,2,24,2],[25,1,27,1],[25,2,27,2],[28,1,30,1],[28,2,30,2],[13,1,15,1],[13,2,15,2],[16,1,18,1],[16,2,18,2],[19,1,21,1],[19,2,21,2],[2,4,3,4]]}
["SINGAPOUR - 17 SEPTEMBRE 2023"]
[]
["PILOTES","ECURIES","VOITURES","Finish","Pôle","Pt tour","Points",null,"ÉCURIES","Points","Écart","Rang",null,"Noms","Points","Écart","Rang"]
[null,null,null,null,null,null,null,null,"RED BULL RACING",{"$f":"IF(SUM(Italie!$D$11:$D$12)=0,0,SUM(Bahrein:Singapour!$G$11:$G$12))","v":597},null,{"$f":"IF(J4=\"\",0,(RANK(J4,$J$4:$J$13)))","v":1},null,"VERSTAPPEN Max",{"$f":"IF(Italie!$D$11=\"\",0,SUM(Bahrein:Singapour!$G$11))","v":374},null,{"$f":"IF(O4=\"\",0,(RANK(O4,$O$4:$O$23)))","v":1}]
["HAMILTON Lewis","MERCEDES",null,3,null,1,{"$f":"IFERROR(CHOOSE(D5,25,18,15,12,10,8,6,4,2,1)+IF(D5<=10,F5),0)","v":16},null,"MERCEDES",{"$f":"IF(SUM(Italie!$D$5:$D$6)=0,0,SUM(Bahrein:Singapour!$G$5:$G$6))","v":289},{"$f":"J4-J5","v":308},{"$f":"IF(J5=\"\",0,(RANK(J5,$J$4:$J$13)))","v":2},null,"PEREZ Sergio",{"$f":"IF(Italie!$D$12=\"\",0,SUM(Bahrein:Singapour!$G$12))","v":223},{"$f":"O4-O5","v":151},{"$f":"IF(O5=\"\",0,(RANK(O5,$O$4:$O$23)))","v":2}]
["RUSSELL George",null,null,"OUT",null,null,{"$f":"IFERROR(CHOOSE(D6,25,18,15,12,10,8,6,4,2,1)+IF(D6<=10,F6),0)","v":0},null,"FERRARI",{"$f":"IF(SUM(Italie!$D$8:$D$9)=0,0,SUM(Bahrein:Singapour!$G$8:$G$9))","v":265},{"$f":"J5-J6","v":24},3,null,"HAMILTON Lewis",{"$f":"IF(Italie!$D$5=\"\",0,SUM(Bahrein:Singapour!$G$5))","v":180},{"$f":"O5-O6","v":43},3]
[null,null,null,null,null,null,0,null,"ASTON MARTIN",{"$f":"IF(SUM(Italie!$D$14:$D$15)=0,0,SUM(Bahrein:Singapour!$G$14:$G$15))","v":217},48,4,null,"ALONSO Fernando",{"$f":"IF(Italie!$D$14=\"\",0,SUM(Bahrein:Singapour!$G$14))","v":170},10,4]
["SAINZ.Jr Carlos","FERRARI",null,1,1,null,25,null,"Mc LAREN",{"$f":"IF(SUM(Italie!$D$29:$D$30)=0,0,SUM(Bahrein:Singapour!$G$29:$G$30))","v":139},78,5,null,"SAINZ.Jr Carlos",{"$f":"IF(Italie!$D$8=\"\",0,SUM(Bahrein:Singapour!$G$8))","v":142},28,5]
["LECLERC Charles",null,null,4,null,null,12,null,"ALPINE F1 TEAM",{"$f":"IF(SUM(Italie!$D$20:$D$21)=0,0,SUM(Bahrein:Singapour!$G$20:$G$21))","v":81},58,6,null,"LECLERC Charles",{"$f":"IF(Italie!$D$9=\"\",0,SUM(Bahrein:Singapour!$G$9))","v":123},19,6]
[null,null,null,null,null,null,0,null,"WILLIAMS",{"$f":"IF(SUM(Italie!$D$17:$D$18)=0,0,SUM(Bahrein:Singapour!$G$17:$G$18))","v":21},60,7,null,"RUSSEL George",{"$f":"IF(Italie!$D$6=\"\",0,SUM(Bahrein:Singapour!$G$6))","v":109},14,7]
["VERSTAPPEN Max","RED BULL RACING",null,5,null,null,10,null,"HAAS",{"$f":"IF(SUM(Italie!$D$26:$D$27)=0,0,SUM(Bahrein:Singapour!$G$26:$G$27))","v":12},9,8,null,"STROLL Lance",{"$f":"IF(Italie!$D$15=\"\",0,SUM(Bahrein:Singapour!$G$15))","v":47},62,8]
["PEREZ Sergio",null,null,8,null,null,4,null,"ALFA ROMÉO",{"$f":"IF(SUM(Italie!$D$23:$D$24)=0,0,SUM(Bahrein:Singapour!$G$32:$G$33))","v":0},12,9,null,"GASLY Pierre",{"$f":"IF(Italie!$D$20=\"\",0,SUM(Bahrein:Singapour!$G$20))","v":45},2,9]
[null,null,null,null,null,null,0,null,"ALPHA TAURI",{"$f":"IF(SUM(Italie!$D$23:$D$24)=0,0,SUM(Bahrein:Singapour!$G$23:$G$24))","v":0},0,9,null,"NORRIS Lando",{"$f":"IF(Italie!$D$30=\"\",0,SUM(Bahrein:Singapour!$G$30))","v":42},3,10]
["ALONSO Fernando","ASTON MARTIN",null,15,null,null,0,null,null,null,null,null,null,"PIASTRI Oscar",{"$f":"IF(Italie!$D$30=\"\",0,SUM(Bahrein:Singapour!$G$30))","v":42},0,10]
["STROLL Lance",null,null,"OUT",null,null,0,null,null,null,null,null,null,"OCON Sebastian",{"$f":"IF(Italie!$D$21=\"\",0,SUM(Bahrein:Singapour!$G$21))","v":36},6,12]
[null,null,null,null,null,null,0,null,null,null,null,null,null,"ALBON Alexander",{"$f":"IF(Italie!$D$17=\"\",0,SUM(Bahrein:Singapour!$G$17))","v":21},15,13]
["ALBON Alexander","WILLIAMS",null,11,null,null,0,null,null,null,null,null,null,"HULKENBERG Nico",{"$f":"IF(Italie!$D$27=\"\",0,SUM(Bahrein:Singapour!$G$27))","v":9},12,14]
["SARGEANT Logan",null,null,14,null,null,0,null,null,null,null,null,null,"BOTTAS Valtteri",{"$f":"IF(Italie!$D$32=\"\",0,SUM(Bahrein:Singapour!$G$32))","v":6},3,15]
[null,null,null,null,null,null,0,null,null,null,null,null,null,"GUANYU Zhou",{"$f":"IF(Italie!$D$33=\"\",0,SUM(Bahrein:Singapour!$G$33))","v":4},2,16]
["GASLY Pierre","ALPINE F1 TEAM",null,6,null,null,8,null,null,null,null,null,null,"TSUNODA Yoki",{"$f":"IF(Italie!$D$23=\"\",0,SUM(Bahrein:Singapour!$G$23))","v":3},1,17]
["OCON Sebastian",null,null,"OUT",null,null,0,null,null,null,null,null,null,"MAGNUSSEN Kevin",{"$f":"IF(Italie!$D$26=\"\",0,SUM(Bahrein:Singapour!$G$26))","v":3},0,17]
[null,null,null,null,null,null,0,null,null,null,null,null,null,"RICCIARDO Daniel",{"$f":"IF(Italie!$D$24=\"\",0,SUM(Bahrein:Singapour!$G$24))","v":0},3,19]
["TSUNODA Yuki","ALPHA TAURI",null,"OUT",null,null,0,null,null,null,null,null,null,"SARGEANT Logan",{"$f":"IF(Italie!$D$18=\"\",0,SUM(Bahrein:Singapour!$G$18))","v":0},0,{"$f":"IF(O23=\"\",0,(RANK(O23,$O$4:$O$23)))","v":19}]
["RICCIARDO Daniel",null,null,"NC",null,null,0]
["LAWSON LIAM",null,null,9,null,null,2]
["MAGNUSSEN Kevin","HAAS",null,10,null,null,1]
["HULKENBERG Nico",null,null,13,null,null,0]
[null,null,null,null,null,null,0]
["NORRIS Lando","Mc LAREN",null,2,null,null,18]
["PIASTRI Oscar",null,null,7,null,null,6]
[null,null,null,null,null,null,0]
["BOTTAS Valtteri","ALFA ROMÉO",null,"OUT",null,null,0]
["GUANYU Zhou",null,null,12,null,null,0]
[null,null,null,null,null,null,0]

{"sheet":"Japon","index":20,"n_rows":34,"n_cols":17,"rows_kept":34,"cut":false,"hidden":false,"merged":[[26,8,26,14],[0,0,1,16],[36,1,36,3],[31,1,33,1],[31,2,33,2],[2,0,3,0],[22,1,24,1],[22,2,24,2],[25,1,27,1],[25,2,27,2],[28,1,30,1],[28,2,30,2],[13,1,15,1],[13,2,15,2],[16,1,18,1],[16,2,18,2],[19,1,21,1],[7,1,9,1],[7,2,9,2],[10,1,12,1],[10,2,12,2],[19,2,21,2],[2,4,3,4],[2,5,3,5],[2,6,3,6],[4,1,6,1],[4,2,6,2],[2,1,3,1],[2,2,3,2],[2,3,3,3]]}
["SUZUKA- 24 SEPTEMBRE 2023"]
[]
["PILOTES","ECURIES","VOITURES","Finish","Pôle","Pt tour","Points",null,"ÉCURIES","Points","Écart","Rang",null,"Noms","Points","Écart","Rang"]
[null,null,null,null,null,null,null,null,"RED BULL RACING",{"$f":"IF(SUM(Singapour!$D$11:$D$12)=0,0,SUM(Bahrein:Japon!$G$11:$G$12))","v":623},null,{"$f":"IF(J4=\"\",0,(RANK(J4,$J$4:$J$13)))","v":1},null,"VERSTAPPEN Max",{"$f":"IF(Singapour!$D$11=\"\",0,SUM(Bahrein:Japon!$G$11))","v":400},null,{"$f":"IF(O4=\"\",0,(RANK(O4,$O$4:$O$23)))","v":1}]
["HAMILTON Lewis","MERCEDES",null,5,null,null,{"$f":"IFERROR(CHOOSE(D5,25,18,15,12,10,8,6,4,2,1)+IF(D5<=10,F5),0)","v":10},null,"MERCEDES",{"$f":"IF(SUM(Singapour!$D$5:$D$6)=0,0,SUM(Bahrein:Japon!$G$5:$G$6))","v":305},{"$f":"J4-J5","v":318},{"$f":"IF(J5=\"\",0,(RANK(J5,$J$4:$J$13)))","v":2},null,"HAMILTON Lewis",{"$f":"IF(Singapour!$D$11=\"\",0,SUM(Bahrein:Japon!$G$11))","v":400},{"$f":"O4-O5","v":0},{"$f":"IF(O5=\"\",0,(RANK(O5,$O$4:$O$23)))","v":1}]
["RUSSELL George",null,null,7,null,null,{"$f":"IFERROR(CHOOSE(D6,25,18,15,12,10,8,6,4,2,1)+IF(D6<=10,F6),0)","v":6},null,"FERRARI",{"$f":"IF(SUM(Singapour!$D$8:$D$9)=0,0,SUM(Bahrein:Japon!$G$8:$G$9))","v":285},{"$f":"J5-J6","v":20},3,null,"SAINZ.Jr Carlos",{"$f":"IF(Singapour!$D$11=\"\",0,SUM(Bahrein:Japon!$G$11))","v":400},{"$f":"O5-O6","v":0},1]
[null,null,null,null,null,null,0,null,"ASTON MARTIN",{"$f":"IF(SUM(Singapour!$D$14:$D$15)=0,0,SUM(Bahrein:Japon!$G$14:$G$15))","v":221},64,4,null,"PEREZ Sergio",{"$f":"IF(Singapour!$D$12=\"\",0,SUM(Bahrein:Japon!$G$12))","v":223},177,4]
["SAINZ.Jr Carlos","FERRARI",null,6,null,null,8,null,"Mc LAREN",{"$f":"IF(SUM(Singapour!$D$29:$D$30)=0,0,SUM(Bahrein:Japon!$G$29:$G$30))","v":172},49,5,null,"ALONSO Fernando",{"$f":"IF(Singapour!$D$14=\"\",0,SUM(Bahrein:Japon!$G$14))","v":174},49,5]
["LECLERC Charles",null,null,4,null,null,12,null,"ALPINE F1 TEAM",{"$f":"IF(SUM(Singapour!$D$20:$D$21)=0,0,SUM(Bahrein:Japon!$G$20:$G$21))","v":84},88,6,null,"LECLERC Charles",{"$f":"IF(Singapour!$D$9=\"\",0,SUM(Bahrein:Japon!$G$9))","v":135},39,6]
[null,null,null,null,null,null,0,null,"WILLIAMS",{"$f":"IF(SUM(Singapour!$D$17:$D$18)=0,0,SUM(Bahrein:Japon!$G$17:$G$18))","v":21},63,7,null,"NORRIS Lando",{"$f":"IF(Singapour!$D$29=\"\",0,SUM(Bahrein:Japon!$G$29))","v":115},20,7]
["VERSTAPPEN Max","RED BULL RACING",null,1,1,1,26,null,"HAAS",{"$f":"IF(SUM(Singapour!$G$26:$G$27)=0,0,SUM(Bahrein:Japon!$G$26:$G$27))","v":12},9,8,null,"RUSSEL George",{"$f":"IF(Singapour!$D$6=\"\",0,SUM(Bahrein:Japon!$G$6))","v":115},0,7]
["PEREZ Sergio",null,null,"OUT",null,null,0,null,"ALFA ROMÉO",{"$f":"IF(SUM(Singapour!$D$32:$D$33)=0,0,SUM(Bahrein:Japon!$G$32:$G$33))","v":10},2,9,null,"PIASTRI Oscar",{"$f":"IF(Singapour!$D$30=\"\",0,SUM(Bahrein:Japon!$G$30))","v":57},58,9]
[null,null,null,null,null,null,0,null,"ALPHA TAURI",{"$f":"IF(SUM(Singapour!$D$23:$D$24)=0,0,SUM(Bahrein:Japon!$G$23:$G$24))","v":0},10,10,null,"STROLL Lance",{"$f":"IF(Singapour!$D$15=\"\",0,SUM(Bahrein:Japon!$G$15))","v":47},10,10]
["ALONSO Fernando","ASTON MARTIN",null,8,null,null,4,null,null,null,null,null,null,"GASLY Pierre",{"$f":"IF(Singapour!$D$20=\"\",0,SUM(Bahrein:Japon!$G$20))","v":46},1,11]
["STROLL Lance",null,null,"OUT",null,null,0,null,null,null,null,null,null,"OCON Sebastian",{"$f":"IF(Singapour!$D$21=\"\",0,SUM(Bahrein:Japon!$G$21))","v":38},8,12]
[null,null,null,null,null,null,0,null,null,null,null,null,null,"ALBON Alexander",{"$f":"IF(Singapour!$D$17=\"\",0,SUM(Bahrein:Japon!$G$17))","v":21},17,13]
["ALBON Alexander","WILLIAMS",null,"OUT",null,null,0,null,null,null,null,null,null,"HULKENBERG Nico",{"$f":"IF(Singapour!$D$27=\"\",0,SUM(Bahrein:Japon!$G$27))","v":9},12,14]
["SARGEANT Logan",null,null,"OUT",null,null,0,null,null,null,null,null,null,"BOTTAS Valtteri",{"$f":"IF(Singapour!$D$32=\"\",0,SUM(Bahrein:Japon!$G$32))","v":6},3,15]
[null,null,null,null,null,null,0,null,null,null,null,null,null,"GUANYU Zhou",{"$f":"IF(Singapour!$D$33=\"\",0,SUM(Bahrein:Japon!$G$33))","v":4},2,16]
["GASLY Pierre","ALPINE F1 TEAM",null,10,null,null,1,null,null,null,null,null,null,"TSUNODA Yoki",{"$f":"IF(Singapour!$D$23=\"\",0,SUM(Bahrein:Japon!$G$23))","v":3},1,17]
["OCON Sebastian",null,null,9,null,null,2,null,null,null,null,null,null,"MAGNUSSEN Kevin",{"$f":"IF(Singapour!$D$26=\"\",0,SUM(Bahrein:Japon!$G$26))","v":3},0,17]
[null,null,null,null,null,null,0,null,null,null,null,null,null,"RICCIARDO Daniel",{"$f":"IF(Singapour!$D$24=\"\",0,SUM(Bahrein:Japon!$G$24))","v":0},3,19]
["TSUNODA Yuki","ALPHA TAURI",null,12,null,null,0,null,null,null,null,null,null,"SARGEANT Logan",{"$f":"IF(Singapour!$D$18=\"\",0,SUM(Bahrein:Japon!$G$18))","v":0},0,19]
["RICCIARDO Daniel",null,null,"NC",null,null,0]
["LAWSON Liam",null,null,11,null,null,0]
["MAGNUSSEN Kevin","HAAS",null,15,null,null,0]
["HULKENBERG Nico",null,null,14,null,null,0,null,"REDBULL SACRÉE CHAMPION CONSTRUCTEURS"]
[null,null,null,null,null,null,0]
["NORRIS Lando","Mc LAREN",null,2,null,null,18]
["PIASTRI Oscar",null,null,3,null,null,15]
[null,null,null,null,null,null,0]
["BOTTAS Valtteri","ALFA ROMÉO",null,"OUT",null,null,0]
["GUANYU Zhou",null,null,13,null,null,0]
[null,null,null,null,null,null,0]

{"sheet":"Qatar","index":21,"n_rows":34,"n_cols":17,"rows_kept":34,"cut":false,"hidden":false,"merged":[[25,9,25,15],[36,1,36,3],[31,1,33,1],[31,2,33,2],[22,1,24,1],[22,2,24,2],[25,1,27,1],[25,2,27,2],[28,1,30,1],[28,2,30,2],[13,1,15,1],[13,2,15,2],[16,1,18,1],[16,2,18,2],[19,1,21,1],[19,2,21,2],[4,1,6,1],[4,2,6,2],[7,1,9,1],[7,2,9,2],[10,1,12,1],[10,2,12,2],[2,5,3,5],[2,6,3,6],[2,7,3,7],[0,0,1,16],[2,0,3,0],[2,1,3,1],[2,2,3,2],[2,3,3,3],[2,4,3,4]]}
["LOSAIL - 8 OCTOBRE 2023 "]
[]
["PILOTES","ECURIES","VOITURES","Finish","Pôle","Pt tour","Points","Sprint","ÉCURIES","Points","Écart","Rang",null,"Noms","Points",null,"Rang"]
[null,null,null,null,null,null,null,null,"RED BULL RACING",{"$f":"IF(SUM(Japon!$D$11:$D$12)=0,0,SUM(Bahrein:Qatar!$G$11:$G$12))","v":657},null,{"$f":"IF(J4=\"\",0,(RANK(J4,$J$4:$J$13)))","v":1},null,"VERSTAPPEN Max",{"$f":"IF(Japon!$D$11=\"\",0,SUM(Bahrein:Qatar!$G$11))","v":433},0,{"$f":"IF(O4=\"\",0,(RANK(O4,$O$4:$O$23)))","v":1}]
["HAMILTON Lewis","MERCEDES",null,"OUT",null,null,{"$f":"IFERROR(CHOOSE(D5,25,18,15,12,10,8,6,4,2,1),0)+IFERROR(CHOOSE(H5,8,7,6,5,4,3,2,1),0)+IF(D5<=10,F5,0)","v":4},5,"MERCEDES",{"$f":"IF(SUM(Japon!$D$5:$D$6)=0,0,SUM(Bahrein:Qatar!$G$5:$G$6))","v":326},{"$f":"J4-J5","v":331},{"$f":"IF(J5=\"\",0,(RANK(J5,$J$4:$J$13)))","v":2},null,"PEREZ Sergio",{"$f":"IF(Japon!$D$12=\"\",0,SUM(Bahrein:Qatar!$G$12))","v":224},{"$f":"O4-O5","v":209},{"$f":"IF(O5=\"\",0,(RANK(O5,$O$4:$O$23)))","v":2}]
["RUSSELL George",null,null,4,null,null,{"$f":"IFERROR(CHOOSE(D6,25,18,15,12,10,8,6,4,2,1),0)+IFERROR(CHOOSE(H6,8,7,6,5,4,3,2,1),0)+IF(D6<=10,F6,0)","v":17},4,"FERRARI",{"$f":"IF(SUM(Japon!$D$8:$D$9)=0,0,SUM(Bahrein:Qatar!$G$8:$G$9))","v":298},{"$f":"J5-J6","v":28},3,null,"HAMILTON Lewis",{"$f":"IF(Japon!$D$5=\"\",0,SUM(Bahrein:Qatar!$G$5))","v":194},{"$f":"O5-O6","v":30},3]
[null,null,null,null,null,null,0,null,"ASTON MARTIN",{"$f":"IF(SUM(Japon!$D$14:$D$15)=0,0,SUM(Bahrein:Qatar!$G$14:$G$15))","v":230},68,4,null,"ALONSO Fernando",{"$f":"IF(Japon!$D$14=\"\",0,SUM(Bahrein:Qatar!$G$14))","v":183},11,4]
["SAINZ.Jr Carlos","FERRARI",null,"OUT",null,null,3,6,"Mc LAREN",{"$f":"IF(SUM(Japon!$D$29:$D$30)=0,0,SUM(Bahrein:Qatar!$G$29:$G$30))","v":219},11,5,null,"SAINZ.Jr Carlos",{"$f":"IF(Japon!$D$8=\"\",0,SUM(Bahrein:Qatar!$G$8))","v":153},30,5]
["LECLERC Charles",null,null,5,null,null,{"$f":"IFERROR(CHOOSE(D9,25,18,15,12,10,8,6,4,2,1),0)+IFERROR(CHOOSE(H9,8,7,6,5,4,3,2,1),0)+IF(D9<=10,F9,0)","v":10},null,"ALPINE F1 TEAM",{"$f":"IF(SUM(Japon!$D$20:$D$21)=0,0,SUM(Bahrein:Qatar!$G$20:$G$21))","v":90},129,6,null,"LECLERC Charles",{"$f":"IF(Japon!$D$9=\"\",0,SUM(Bahrein:Qatar!$G$9))","v":145},8,6]
[null,null,null,null,null,null,0,null,"ALFA ROMÉO",{"$f":"IF(SUM(Japon!$D$32:$D$33)=0,0,SUM(Bahrein:Qatar!$G$32:$G$33))","v":16},74,7,null,"NORRIS Lando",{"$f":"IF(Japon!$D$29=\"\",0,SUM(Bahrein:Qatar!$G$29))","v":136},9,7]
["VERSTAPPEN Max","RED BULL RACING",null,1,1,1,33,2,"HAAS",{"$f":"IF(SUM(Japon!$D$26:$D$27)=0,0,SUM(Bahrein:Qatar!$G$26:$G$27))","v":12},4,8,null,"RUSSEL George",{"$f":"IF(Japon!$D$6=\"\",0,SUM(Bahrein:Qatar!$G$6))","v":132},4,8]
["PEREZ Sergio",null,null,10,null,null,1,null,"ALPHA TAURI",{"$f":"IF(SUM(Japon!$D$23:$D$24)=0,0,SUM(Bahrein:Qatar!$G$23:$G$24))","v":3},9,9,null,"PIASTRI Oscar",{"$f":"IF(Japon!$D$30=\"\",0,SUM(Bahrein:Qatar!$G$30))","v":83},49,9]
[null,null,null,null,null,null,0,null,"WILLIAMS",{"$f":"IF(SUM(Japon!$D$17:$D$18)=0,0,SUM(Bahrein:Qatar!$G$17:$G$18))","v":0},3,10,null,"STROLL Lance",{"$f":"IF(Japon!$D$15=\"\",0,SUM(Bahrein:Qatar!$G$15))","v":47},36,10]
["ALONSO Fernando","ASTON MARTIN",null,6,null,null,9,8,null,null,null,null,null,"GASLY Pierre",{"$f":"IF(Japon!$D$20=\"\",0,SUM(Bahrein:Qatar!$G$20))","v":46},1,11]
["STROLL Lance",null,null,11,null,null,0,null,null,null,null,null,null,"OCON Sebastian",{"$f":"IF(Japon!$D$21=\"\",0,SUM(Bahrein:Qatar!$G$21))","v":44},2,12]
[null,null,null,null,null,null,0,null,null,null,null,null,null,"ALBON Alexander",{"$f":"IF(Japon!$D$17=\"\",0,SUM(Bahrein:Qatar!$G$17))","v":23},21,13]
["ALBON Alexander","WILLIAMS",null,13,null,null,2,7,null,null,null,null,null,"BOTTAS Valtteri",{"$f":"IF(Japon!$D$32=\"\",0,SUM(Bahrein:Qatar!$G$32))","v":10},13,14]
["SARGEANT Logan",null,null,"OUT",null,null,0,null,null,null,null,null,null,"HULKENBERG Nico",{"$f":"IF(Japon!$D$27=\"\",0,SUM(Bahrein:Qatar!$G$27))","v":9},1,15]
[null,null,null,null,null,null,0,null,null,null,null,null,null,"GUANYU Zhou",{"$f":"IF(Japon!$D$33=\"\",0,SUM(Bahrein:Qatar!$G$33))","v":6},3,16]
["GASLY Pierre","ALPINE F1 TEAM",null,12,null,null,0,null,null,null,null,null,null,"TSUNODA Yoki",{"$f":"IF(Japon!$D$23=\"\",0,SUM(Bahrein:Qatar!$G$23))","v":3},3,17]
["OCON Sebastian",null,null,7,null,null,6,null,null,null,null,null,null,"MAGNUSSEN Kevin",{"$f":"IF(Japon!$D$26=\"\",0,SUM(Bahrein:Qatar!$G$26))","v":3},0,17]
[null,null,null,null,null,null,0,null,null,null,null,null,null,"SARGEANT Logan",{"$f":"IF(Japon!$D$18=\"\",0,SUM(Bahrein:Qatar!$G$18))","v":0},3,19]
["TSUNODA Yuki","ALPHA TAURI",null,15,null,null,0,null,null,null,null,null,null,"RICCIARDO Daniel",{"$f":"IF(Japon!$D$24=\"\",0,SUM(Bahrein:Qatar!$G$24))","v":0},0,19]
["RICCIARDO Daniel",null,null,"NC",null,null,0]
["LAWSON Liam",null,null,17,null,null,0]
["MAGNUSSEN Kevin","HAAS",null,14,null,null,0,null,null,"VERSTAPPEN SACRÉ CHAMPION DU MONDE"]
["HULKENBERG Nico",null,null,16,null,null,0]
[null,null,null,null,null,null,0]
["NORRIS Lando","Mc LAREN",null,3,null,null,21,3]
["PIASTRI Oscar",null,null,2,null,null,26,1]
[null,null,null,null,null,null,0]
["BOTTAS Valtteri","ALFA ROMÉO",null,8,null,null,4]
["GUANYU Zhou",null,null,9,null,null,2]
[null,null,null,null,null,null,0]

{"sheet":"USA","index":22,"n_rows":34,"n_cols":17,"rows_kept":34,"cut":false,"hidden":false,"merged":[[2,7,3,7],[36,1,36,3],[2,0,3,0],[2,1,3,1],[2,2,3,2],[2,3,3,3],[7,1,9,1],[7,2,9,2],[10,1,12,1],[2,4,3,4],[2,5,3,5],[2,6,3,6],[4,1,6,1],[4,2,6,2],[0,0,1,16],[19,1,21,1],[19,2,21,2],[31,1,33,1],[31,2,33,2],[22,1,24,1],[22,2,24,2],[25,1,27,1],[25,2,27,2],[28,1,30,1],[28,2,30,2],[10,2,12,2],[13,1,15,1],[13,2,15,2],[16,1,18,1],[16,2,18,2]]}
["AUSTIN - 22 OCTOBRE 2023"]
[]
["PILOTES","ECURIES","VOITURES","Finish","Pôle","Pt tour","Points","Sprint","ÉCURIES","Points","Écart","Rang",null,"Noms","Points","Écart","Rang"]
[null,null,null,null,null,null,null,null,"RED BULL RACING",{"$f":"IF(SUM(Qatar!$D$11:$D$12)=0,0,SUM(Bahrein:USA!$G$11:$G$12))","v":706},null,{"$f":"IF(J4=\"\",0,(RANK(J4,$J$4:$J$13)))","v":1},null,"VERSTAPPEN Max",{"$f":"IF(Qatar!$D$11=\"\",0,SUM(Bahrein:USA!$G$11))","v":466},null,{"$f":"IF(O4=\"\",0,(RANK(O4,$O$4:$O$23)))","v":1}]
["HAMILTON Lewis","MERCEDES",null,"DISQ",null,null,{"$f":"IFERROR(CHOOSE(D5,25,18,15,12,10,8,6,4,2,1),0)+IFERROR(CHOOSE(H5,8,7,6,5,4,3,2,1),0)+IF(D5<=10,F5,0)","v":7},2,"MERCEDES",{"$f":"IF(SUM(Qatar!$D$5:$D$6)=0,0,SUM(Bahrein:USA!$G$5:$G$6))","v":344},{"$f":"J4-J5","v":362},{"$f":"IF(J5=\"\",0,(RANK(J5,$J$4:$J$13)))","v":2},null,"PEREZ Sergio",{"$f":"IF(Qatar!$D$12=\"\",0,SUM(Bahrein:USA!$G$12))","v":240},{"$f":"O4-O5","v":226},{"$f":"IF(O5=\"\",0,(RANK(O5,$O$4:$O$23)))","v":2}]
["RUSSELL George",null,null,5,null,null,{"$f":"IFERROR(CHOOSE(D6,25,18,15,12,10,8,6,4,2,1),0)+IFERROR(CHOOSE(H6,8,7,6,5,4,3,2,1),0)+IF(D6<=10,F6,0)","v":11},8,"FERRARI",{"$f":"IF(SUM(Qatar!$D$8:$D$9)=0,0,SUM(Bahrein:USA!$G$8:$G$9))","v":322},{"$f":"J5-J6","v":22},3,null,"HAMILTON Lewis",{"$f":"IF(Qatar!$D$5=\"\",0,SUM(Bahrein:USA!$G$5))","v":201},{"$f":"O5-O6","v":39},3]
[null,null,null,null,null,null,0,null,"Mc LAREN",{"$f":"IF(SUM(Qatar!$D$29:$D$30)=0,0,SUM(Bahrein:USA!$G$29:$G$30))","v":242},80,4,null,"ALONSO Fernando",{"$f":"IF(Qatar!$D$14=\"\",0,SUM(Bahrein:USA!$G$14))","v":183},18,4]
["SAINZ.Jr Carlos","FERRARI",null,3,null,null,18,6,"ASTON MARTIN",{"$f":"IF(SUM(Qatar!$D$14:$D$15)=0,0,SUM(Bahrein:USA!$G$14:$G$15))","v":236},6,5,null,"SAINZ.Jr Carlos",{"$f":"IF(Qatar!$D$8=\"\",0,SUM(Bahrein:USA!$G$8))","v":171},12,5]
["LECLERC Charles",null,null,"DISQ",1,null,6,3,"ALPINE F1 TEAM",{"$f":"IF(SUM(Qatar!$D$20:$D$21)=0,0,SUM(Bahrein:USA!$G$20:$G$21))","v":100},136,6,null,"NORRIS Lando",{"$f":"IF(Qatar!$D$29=\"\",0,SUM(Bahrein:USA!$G$29))","v":159},12,6]
[null,null,null,null,null,null,0,null,"WILLIAMS",{"$f":"IF(SUM(Qatar!$D$17:$D$18)=0,0,SUM(Bahrein:USA!$G$17:$G$18))","v":26},74,7,null,"LECLERC Charles",{"$f":"IF(Qatar!$D$9=\"\",0,SUM(Bahrein:USA!$G$9))","v":151},8,7]
["VERSTAPPEN Max","RED BULL RACING",null,1,null,null,33,1,"ALFA ROMÉO",{"$f":"IF(SUM(Qatar!$D$32:$D$33)=0,0,SUM(Bahrein:USA!$G$32:$G$33))","v":16},10,8,null,"RUSSEL George",{"$f":"IF(Qatar!$D$6=\"\",0,SUM(Bahrein:USA!$G$6))","v":143},8,8]
["PEREZ Sergio",null,null,4,null,null,16,5,"HAAS",{"$f":"IF(SUM(Qatar!$D$26:$D$27)=0,0,SUM(Bahrein:USA!$G$26:$G$27))","v":12},4,9,null,"PIASTRI Oscar",{"$f":"IF(Qatar!$D$30=\"\",0,SUM(Bahrein:USA!$G$30))","v":83},60,9]
[null,null,null,null,null,null,0,null,"ALPHA TAURI",{"$f":"IF(SUM(Qatar!$D$23:$D$24)=0,0,SUM(Bahrein:USA!$G$23:$G$24))","v":8},4,10,null,"GASLY Pierre",{"$f":"IF(Qatar!$D$20=\"\",0,SUM(Bahrein:USA!$G$20))","v":56},27,10]
["ALONSO Fernando","ASTON MARTIN",null,"OUT",null,null,0,null,null,null,null,null,null,"STROLL Lance",{"$f":"IF(Qatar!$D$15=\"\",0,SUM(Bahrein:USA!$G$15))","v":53},3,11]
["STROLL Lance",null,null,7,null,null,6,null,null,null,null,null,null,"OCON Sebastian",{"$f":"IF(Qatar!$D$21=\"\",0,SUM(Bahrein:USA!$G$21))","v":44},9,12]
[null,null,null,null,null,null,0,null,null,null,null,null,null,"ALBON Alexander",{"$f":"IF(Qatar!$D$17=\"\",0,SUM(Bahrein:USA!$G$17))","v":25},19,13]
["ALBON Alexander","WILLIAMS",null,9,null,null,2,null,null,null,null,null,null,"BOTTAS Valtteri",{"$f":"IF(Qatar!$D$32=\"\",0,SUM(Bahrein:USA!$G$32))","v":10},15,14]
["SARGEANT Logan",null,null,10,null,null,1,null,null,null,null,null,null,"HULKENBERG Nico",{"$f":"IF(Qatar!$D$27=\"\",0,SUM(Bahrein:USA!$G$27))","v":9},1,15]
[null,null,null,null,null,null,0,null,null,null,null,null,null,"TSUNODA Yoki",{"$f":"IF(Qatar!$D$23=\"\",0,SUM(Bahrein:USA!$G$23))","v":8},1,16]
["GASLY Pierre","ALPINE F1 TEAM",null,6,null,null,10,7,null,null,null,null,null,"GUANYU Zhou",{"$f":"IF(Qatar!$D$33=\"\",0,SUM(Bahrein:USA!$G$33))","v":6},2,17]
["OCON Sebastian",null,null,"OUT",null,null,0,null,null,null,null,null,null,"MAGNUSSEN Kevin",{"$f":"IF(Qatar!$D$26=\"\",0,SUM(Bahrein:USA!$G$26))","v":3},3,18]
[null,null,null,null,null,null,0,null,null,null,null,null,null,"SARGEANT Logan",{"$f":"IF(Qatar!$D$18=\"\",0,SUM(Bahrein:USA!$G$18))","v":1},2,19]
["TSUNODA Yuki","ALPHA TAURI",null,8,null,1,5,null,null,null,null,null,null,"RICCIARDO Daniel",{"$f":"IF(Qatar!$D$24=\"\",0,SUM(Bahrein:USA!$G$24))","v":0},1,20]
["RICCIARDO Daniel",null,null,15,null,null,0]
[null,null,null,null,null,null,0]
["MAGNUSSEN Kevin","HAAS",null,14,null,null,0]
["HULKENBERG Nico",null,null,11,null,null,0]
[null,null,null,null,null,null,0]
["NORRIS Lando","Mc LAREN",null,2,null,null,23,4]
["PIASTRI Oscar",null,null,"OUT",null,null,0]
[null,null,null,null,null,null,0]
["BOTTAS Valtteri","ALFA ROMÉO",null,12,null,null,0]
["GUANYU Zhou",null,null,13,null,null,0]
[null,null,null,null,null,null,0]

{"sheet":"Mexique","index":23,"n_rows":34,"n_cols":17,"rows_kept":34,"cut":false,"hidden":false,"merged":[[16,1,18,1],[16,2,18,2],[19,1,21,1],[19,2,21,2],[36,1,36,3],[31,1,33,1],[31,2,33,2],[22,1,24,1],[22,2,24,2],[25,1,27,1],[25,2,27,2],[28,1,30,1],[28,2,30,2],[7,1,9,1],[7,2,9,2],[10,1,12,1],[10,2,12,2],[13,1,15,1],[13,2,15,2],[2,5,3,5],[2,6,3,6],[0,0,1,16],[4,1,6,1],[4,2,6,2],[2,0,3,0],[2,1,3,1],[2,2,3,2],[2,3,3,3],[2,4,3,4]]}
["MEXICO - 29 OCTOBRE 2023"]
[]
["PILOTES","ECURIES","VOITURES","Finish","Pôle","Pt tour","Points",null,"ÉCURIES","Points","Écart","Rang",null,"Noms","Points","Écart","Rang"]
[null,null,null,null,null,null,null,null,"RED BULL RACING",{"$f":"IF(SUM(USA!$D$11:$D$12)=0,0,SUM(Bahrein:Mexique!$G$11:$G$12))","v":731},null,{"$f":"IF(J4=\"\",0,(RANK(J4,$J$4:$J$13)))","v":1},null,"VERSTAPPEN Max",{"$f":"IF(USA!$D$11=\"\",0,SUM(Bahrein:Mexique!$G$11))","v":491},null,{"$f":"IF(O4=\"\",0,(RANK(O4,$O$4:$O$23)))","v":1}]
["HAMILTON Lewis","MERCEDES",null,2,null,1,{"$f":"IFERROR(CHOOSE(D5,25,18,15,12,10,8,6,4,2,1)+IF(D5<=10,F5),0)","v":19},null,"MERCEDES",{"$f":"IF(SUM(USA!$D$5:$D$6)=0,0,SUM(Bahrein:Mexique!$G$5:$G$6))","v":371},{"$f":"J4-J5","v":360},{"$f":"IF(J5=\"\",0,(RANK(J5,$J$4:$J$13)))","v":2},null,"PEREZ Sergio",{"$f":"IF(USA!$D$12=\"\",0,SUM(Bahrein:Mexique!$G$12))","v":240},{"$f":"O4-O5","v":251},{"$f":"IF(O5=\"\",0,(RANK(O5,$O$4:$O$23)))","v":2}]
["RUSSELL George",null,null,6,null,null,{"$f":"IFERROR(CHOOSE(D6,25,18,15,12,10,8,6,4,2,1)+IF(D6<=10,F6),0)","v":8},null,"FERRARI",{"$f":"IF(SUM(USA!$D$8:$D$9)=0,0,SUM(Bahrein:Mexique!$G$8:$G$9))","v":349},{"$f":"J5-J6","v":22},3,null,"HAMILTON Lewis",{"$f":"IF(USA!$D$5=\"\",0,SUM(Bahrein:Mexique!$G$5))","v":220},{"$f":"O5-O6","v":20},3]
[null,null,null,null,null,null,0,null,"Mc LAREN",{"$f":"IF(SUM(USA!$D$29:$D$30)=0,0,SUM(Bahrein:Mexique!$G$29:$G$30))","v":256},93,4,null,"ALONSO Fernando",{"$f":"IF(USA!$D$14=\"\",0,SUM(Bahrein:Mexique!$G$14))","v":183},37,4]
["SAINZ.Jr Carlos","FERRARI",null,4,null,null,12,null,"ASTON MARTIN",{"$f":"IF(SUM(USA!$D$14:$D$15)=0,0,SUM(Bahrein:Mexique!$G$14:$G$15))","v":236},20,5,null,"SAINZ.Jr Carlos",{"$f":"IF(USA!$D$8=\"\",0,SUM(Bahrein:Mexique!$G$8))","v":183},0,4]
["LECLERC Charles",null,null,3,1,null,15,null,"ALPINE F1 TEAM",{"$f":"IF(SUM(USA!$D$20:$D$21)=0,0,SUM(Bahrein:Mexique!$G$20:$G$21))","v":101},135,6,null,"NORRIS Lando",{"$f":"IF(USA!$D$29=\"\",0,SUM(Bahrein:Mexique!$G$29))","v":169},14,6]
[null,null,null,null,null,null,0,null,"WILLIAMS",{"$f":"IF(SUM(USA!$D$17:$D$18)=0,0,SUM(Bahrein:Mexique!$G$17:$G$18))","v":28},73,7,null,"LECLERC Charles",{"$f":"IF(USA!$D$9=\"\",0,SUM(Bahrein:Mexique!$G$9))","v":166},3,7]
["VERSTAPPEN Max","RED BULL RACING",null,1,null,null,25,null,"ALFA ROMÉO",{"$f":"IF(SUM(USA!$D$32:$D$33)=0,0,SUM(Bahrein:Mexique!$G$32:$G$33))","v":16},12,8,null,"RUSSEL George",{"$f":"IF(USA!$D$6=\"\",0,SUM(Bahrein:Mexique!$G$6))","v":151},15,8]
["PEREZ Sergio",null,null,"OUT",null,null,0,null,"ALPHA TAURI",{"$f":"IF(SUM(USA!$D$23:$D$24)=0,0,SUM(Bahrein:Mexique!$G$23:$G$24))","v":14},2,9,null,"PIASTRI Oscar",{"$f":"IF(USA!$D$30=\"\",0,SUM(Bahrein:Mexique!$G$30))","v":87},64,9]
[null,null,null,null,null,null,0,null,"HAAS",{"$f":"IF(SUM(USA!$D$26:$D$27)=0,0,SUM(Bahrein:Mexique!$G$26:$G$27))","v":12},2,10,null,"GASLY Pierre",{"$f":"IF(USA!$D$20=\"\",0,SUM(Bahrein:Mexique!$G$20))","v":56},31,10]
["ALONSO Fernando","ASTON MARTIN",null,"OUT",null,null,0,null,null,null,null,null,null,"STROLL Lance",{"$f":"IF(USA!$D$15=\"\",0,SUM(Bahrein:Mexique!$G$15))","v":53},3,11]
["STROLL Lance",null,null,"OUT",null,null,0,null,null,null,null,null,null,"OCON Sebastian",{"$f":"IF(USA!$D$21=\"\",0,SUM(Bahrein:Mexique!$G$21))","v":45},8,12]
[null,null,null,null,null,null,0,null,null,null,null,null,null,"ALBON Alexander",{"$f":"IF(USA!$D$17=\"\",0,SUM(Bahrein:Mexique!$G$17))","v":27},18,13]
["ALBON Alexander","WILLIAMS",null,9,null,null,2,null,null,null,null,null,null,"BOTTAS Valtteri",{"$f":"IF(USA!$D$32=\"\",0,SUM(Bahrein:Mexique!$G$32))","v":10},17,14]
["SARGEANT Logan",null,null,12,null,null,0,null,null,null,null,null,null,"HULKENBERG Nico",{"$f":"IF(USA!$D$27=\"\",0,SUM(Bahrein:Mexique!$G$27))","v":9},1,15]
[null,null,null,null,null,null,0,null,null,null,null,null,null,"TSUNODA Yoki",{"$f":"IF(USA!$D$23=\"\",0,SUM(Bahrein:Mexique!$G$23))","v":8},1,16]
["GASLY Pierre","ALPINE F1 TEAM",null,11,null,null,0,null,null,null,null,null,null,"GUANYU Zhou",{"$f":"IF(USA!$D$33=\"\",0,SUM(Bahrein:Mexique!$G$33))","v":6},2,17]
["OCON Sebastian",null,null,10,null,null,1,null,null,null,null,null,null,"RICCIARDO Daniel",{"$f":"IF(USA!$D$24=\"\",0,SUM(Bahrein:Mexique!$G$24))","v":6},0,17]
[null,null,null,null,null,null,0,null,null,null,null,null,null,"MAGNUSSEN Kevin",{"$f":"IF(USA!$D$26=\"\",0,SUM(Bahrein:Mexique!$G$26))","v":3},3,19]
["TSUNODA Yuki","ALPHA TAURI",null,14,null,null,0,null,null,null,null,null,null,"SARGEANT Logan",{"$f":"IF(USA!$D$18=\"\",0,SUM(Bahrein:Mexique!$G$18))","v":1},2,20]
["RICCIARDO Daniel",null,null,7,null,null,6]
[null,null,null,null,null,null,0]
["MAGNUSSEN Kevin","HAAS",null,"OUT",null,null,0]
["HULKENBERG Nico",null,null,13,null,null,0]
[null,null,null,null,null,null,0]
["NORRIS Lando","Mc LAREN",null,5,null,null,10]
["PIASTRI Oscar",null,null,8,null,null,4]
[null,null,null,null,null,null,0]
["BOTTAS Valtteri","ALFA ROMÉO",null,15,null,null,0]
["GUANYU Zhou",null,null,16,null,null,0]
[null,null,null,null,null,null,0]

{"sheet":"Brésil","index":24,"n_rows":34,"n_cols":17,"rows_kept":34,"cut":false,"hidden":false,"merged":[[36,1,36,3],[31,1,33,1],[31,2,33,2],[22,1,24,1],[22,2,24,2],[25,1,27,1],[25,2,27,2],[28,1,30,1],[28,2,30,2],[13,1,15,1],[13,2,15,2],[16,1,18,1],[16,2,18,2],[19,1,21,1],[19,2,21,2],[4,1,6,1],[4,2,6,2],[7,1,9,1],[7,2,9,2],[10,1,12,1],[10,2,12,2],[2,5,3,5],[2,6,3,6],[2,7,3,7],[0,0,1,16],[2,0,3,0],[2,1,3,1],[2,2,3,2],[2,3,3,3],[2,4,3,4]]}
["INTERLAGOS - 5 NOVEMBRE 2023"]
[]
["PILOTES","ECURIES","VOITURES","Finish","Pôle","Pt tour","Points","Sprint","ÉCURIES","Points","Écart","Rang",null,"Noms","Points","Écart","Rang"]
[null,null,null,null,null,null,null,null,"RED BULL RACING",{"$f":"IF(SUM(Mexique!$D$11:$D$12)=0,0,SUM(Bahrein:Brésil!$G$11:$G$12))","v":782},null,{"$f":"IF(J4=\"\",0,(RANK(J4,$J$4:$J$13)))","v":1},null,"VERSTAPPEN Max",{"$f":"IF(Mexique!$D$11=\"\",0,SUM(Bahrein:Brésil!$G$11))","v":524},null,{"$f":"IF(O4=\"\",0,(RANK(O4,$O$4:$O$23)))","v":1}]
["HAMILTON Lewis","MERCEDES",null,8,null,null,{"$f":"IFERROR(CHOOSE(D5,25,18,15,12,10,8,6,4,2,1),0)+IFERROR(CHOOSE(H5,8,7,6,5,4,3,2,1),0)+IF(D5<=10,F5,0)","v":6},7,"MERCEDES",{"$f":"IF(SUM(Mexique!$D$5:$D$6)=0,0,SUM(Bahrein:Brésil!$G$5:$G$6))","v":382},{"$f":"J4-J5","v":400},{"$f":"IF(J5=\"\",0,(RANK(J5,$J$4:$J$13)))","v":2},null,"PEREZ Sergio",{"$f":"IF(Mexique!$D$12=\"\",0,SUM(Bahrein:Brésil!$G$12))","v":258},{"$f":"O4-O5","v":266},{"$f":"IF(O5=\"\",0,(RANK(O5,$O$4:$O$23)))","v":2}]
["RUSSELL George",null,null,"OUT",null,null,{"$f":"IFERROR(CHOOSE(D6,25,18,15,12,10,8,6,4,2,1),0)+IFERROR(CHOOSE(H6,8,7,6,5,4,3,2,1),0)+IF(D6<=10,F6,0)","v":5},4,"FERRARI",{"$f":"IF(SUM(Mexique!$D$8:$D$9)=0,0,SUM(Bahrein:Brésil!$G$8:$G$9))","v":362},{"$f":"J5-J6","v":20},3,null,"HAMILTON Lewis",{"$f":"IF(Mexique!$D$5=\"\",0,SUM(Bahrein:Brésil!$G$5))","v":226},{"$f":"O5-O6","v":32},3]
[null,null,null,null,null,null,0,null,"Mc LAREN",{"$f":"IF(SUM(Mexique!$D$29:$D$30)=0,0,SUM(Bahrein:Brésil!$G$29:$G$30))","v":282},80,4,null,"ALONSO Fernando",{"$f":"IF(Mexique!$D$14=\"\",0,SUM(Bahrein:Brésil!$G$14))","v":198},28,4]
["SAINZ.Jr Carlos","FERRARI",null,6,null,null,9,8,"ALPINE F1 TEAM",{"$f":"IF(SUM(Mexique!$D$20:$D$21)=0,0,SUM(Bahrein:Brésil!$G$20:$G$21))","v":108},174,5,null,"NORRIS Lando",{"$f":"IF(Mexique!$D$29=\"\",0,SUM(Bahrein:Brésil!$G$29))","v":195},3,5]
["LECLERC Charles",null,null,"OUT",null,null,4,5,"WILLIAMS",{"$f":"IF(SUM(Mexique!$D$17:$D$19)=0,0,SUM(Bahrein:Brésil!$G$17:$G$18))","v":28},80,6,null,"SAINZ.Jr Carlos",{"$f":"IF(Mexique!$D$8=\"\",0,SUM(Bahrein:Brésil!$G$8))","v":192},3,6]
[null,null,null,null,null,null,0,null,"ALPHA TAURI",{"$f":"IF(SUM(Mexique!$D$23:$D$24)=0,0,SUM(Bahrein:Brésil!$G$23:$G$24))","v":19},9,7,null,"LECLERC Charles",{"$f":"IF(Mexique!$D$9=\"\",0,SUM(Bahrein:Brésil!$G$9))","v":170},22,7]
["VERSTAPPEN Max","RED BULL RACING",null,1,1,null,33,1,"ALFA ROMÉO",{"$f":"IF(SUM(Mexique!$D$32:$D$33)=0,0,SUM(Bahrein:Brésil!$G$32:$G$33))","v":16},3,8,null,"RUSSEL George",{"$f":"IF(Mexique!$D$6=\"\",0,SUM(Bahrein:Brésil!$G$6))","v":156},14,8]
["PEREZ Sergio",null,null,4,null,null,18,3,"HAAS",{"$f":"IF(SUM(Mexique!$D$26:$D$27)=0,0,SUM(Bahrein:Brésil!$G$26:$G$27))","v":12},4,9,null,"PIASTRI Oscar",{"$f":"IF(Mexique!$D$30=\"\",0,SUM(Bahrein:Brésil!$G$30))","v":87},69,9]
[null,null,null,null,null,null,0,null,"ASTON MARTIN",{"$f":"IF(SUM(Mexique!$D$14:$D$15)=0,0,SUM(Bahrein:Brésil!$G$14:$G$15))","v":0},12,10,null,"STROLL Lance",{"$f":"IF(Mexique!$D$15=\"\",0,SUM(Bahrein:Brésil!$G$15))","v":63},24,10]
["ALONSO Fernando","ASTON MARTIN",null,3,null,null,15,null,null,null,null,null,null,"GASLY Pierre",{"$f":"IF(Mexique!$D$20=\"\",0,SUM(Bahrein:Brésil!$G$20))","v":62},1,11]
["STROLL Lance",null,null,5,null,null,10,null,null,null,null,null,null,"OCON Sebastian",{"$f":"IF(Mexique!$D$21=\"\",0,SUM(Bahrein:Brésil!$G$21))","v":46},16,12]
[null,null,null,null,null,null,0,null,null,null,null,null,null,"ALBON Alexander",{"$f":"IF(Mexique!$D$17=\"\",0,SUM(Bahrein:Brésil!$G$17))","v":27},19,13]
["ALBON Alexander","WILLIAMS",null,"OUT",null,null,0,null,null,null,null,null,null,"TSUNODA Yoki",{"$f":"IF(Mexique!$D$23=\"\",0,SUM(Bahrein:Brésil!$G$23))","v":13},14,14]
["SARGEANT Logan",null,null,11,null,null,0,null,null,null,null,null,null,"BOTTAS Valtteri",{"$f":"IF(Mexique!$D$32=\"\",0,SUM(Bahrein:Brésil!$G$32))","v":10},3,15]
[null,null,null,null,null,null,0,null,null,null,null,null,null,"HULKENBERG Nico",{"$f":"IF(Mexique!$D$27=\"\",0,SUM(Bahrein:Brésil!$G$27))","v":9},1,16]
["GASLY Pierre","ALPINE F1 TEAM",null,7,null,null,6,null,null,null,null,null,null,"GUANYU Zhou",{"$f":"IF(Mexique!$D$33=\"\",0,SUM(Bahrein:Brésil!$G$33))","v":6},3,17]
["OCON Sebastian",null,null,10,null,null,1,null,null,null,null,null,null,"RICCIARDO Daniel",{"$f":"IF(Mexique!$D$24=\"\",0,SUM(Bahrein:Brésil!$G$24))","v":6},0,17]
[null,null,null,null,null,null,0,null,null,null,null,null,null,"MAGNUSSEN Kevin",{"$f":"IF(Mexique!$D$26=\"\",0,SUM(Bahrein:Brésil!$G$26))","v":3},3,19]
["TSUNODA Yuki","ALPHA TAURI",null,9,null,null,5,6,null,null,null,null,null,"SARGEANT Logan",{"$f":"IF(Mexique!$D$18=\"\",0,SUM(Bahrein:Brésil!$G$18))","v":1},2,20]
["RICCIARDO Daniel",null,null,13,null,null,0]
[null,null,null,null,null,null,0]
["MAGNUSSEN Kevin","HAAS",null,"OUT",null,null,0]
["HULKENBERG Nico",null,null,12,null,null,0]
[null,null,null,null,null,null,0]
["NORRIS Lando","Mc LAREN",null,2,null,1,26,2]
["PIASTRI Oscar",null,null,14,null,null,0]
[null,null,null,null,null,null,0]
["BOTTAS Valtteri","ALFA ROMÉO",null,"OUT",null,null,0]
["GUANYU Zhou",null,null,"OUT",null,null,0]
[null,null,null,null,null,null,0]

{"sheet":"Las Végas","index":25,"n_rows":34,"n_cols":17,"rows_kept":34,"cut":false,"hidden":false,"merged":[[0,0,1,16],[2,0,3,0],[2,1,3,1],[2,2,3,2],[2,3,3,3],[2,4,3,4],[2,5,3,5],[2,6,3,6],[2,7,3,7],[4,1,6,1],[4,2,6,2],[7,1,9,1],[7,2,9,2],[10,1,12,1],[10,2,12,2],[13,1,15,1],[13,2,15,2],[16,1,18,1],[16,2,18,2],[19,1,21,1],[19,2,21,2],[31,1,33,1],[31,2,33,2],[36,1,36,3],[22,1,24,1],[22,2,24,2],[25,1,27,1],[25,2,27,2],[28,1,30,1],[28,2,30,2]]}
["LAS VÉGAS - 18 NOVEMBRE 2023"]
[]
["PILOTES","ECURIES","VOITURES","Finish","Pôle","Pt tour","Points",null,"ÉCURIES","Points","Écart","Rang",null,"Noms","Points","Écart","Rang"]
[null,null,null,null,null,null,null,null,"RED BULL RACING",{"$f":"IF(SUM(Brésil!$D$11:$D$12)=0,0,SUM('Bahrein:Las Végas'!$G$11:$G$12))","v":822},null,{"$f":"IF(J4=\"\",0,(RANK(J4,$J$4:$J$13)))","v":1},null,"VERSTAPPEN Max",{"$f":"IF(Brésil!$D$11=\"\",0,SUM('Bahrein:Las Végas'!$G$11))","v":549},null,{"$f":"IF(O4=\"\",0,(RANK(O4,$O$4:$O$23)))","v":1}]
["HAMILTON Lewis","MERCEDES",null,7,null,null,{"$f":"IFERROR(CHOOSE(D5,25,18,15,12,10,8,6,4,2,1)+IF(D5<=10,F5),0)","v":6},null,"MERCEDES",{"$f":"IF(SUM(Brésil!$D$5:$D$6)=0,0,SUM('Bahrein:Las Végas'!$G$5:$G$6))","v":392},{"$f":"J4-J5","v":430},{"$f":"IF(J5=\"\",0,(RANK(J5,$J$4:$J$13)))","v":2},null,"PEREZ Sergio",{"$f":"IF(Brésil!$D$12=\"\",0,SUM('Bahrein:Las Végas'!$G$12))","v":273},{"$f":"O4-O5","v":276},{"$f":"IF(O5=\"\",0,(RANK(O5,$O$4:$O$23)))","v":2}]
["RUSSELL George",null,null,8,null,null,{"$f":"IFERROR(CHOOSE(D6,25,18,15,12,10,8,6,4,2,1)+IF(D6<=10,F6),0)","v":4},null,"FERRARI",{"$f":"IF(SUM(Brésil!$D$8:$D$9)=0,0,SUM('Bahrein:Las Végas'!$G$8:$G$9))","v":388},{"$f":"J5-J6","v":4},3,null,"HAMILTON Lewis",{"$f":"IF(Brésil!$D$5=\"\",0,SUM('Bahrein:Las Végas'!$G$5))","v":232},{"$f":"O5-O6","v":41},3]
[null,null,null,null,null,null,0,null,"Mc LAREN",{"$f":"IF(SUM(Brésil!$D$29:$D$30)=0,0,SUM('Bahrein:Las Végas'!$G$29:$G$30))","v":284},104,4,null,"ALONSO Fernando",{"$f":"IF(Brésil!$D$14=\"\",0,SUM('Bahrein:Las Végas'!$G$14))","v":200},32,4]
["SAINZ.Jr Carlos","FERRARI",null,6,null,null,8,null,"ASTON MARTIN",{"$f":"IF(SUM(Brésil!$D$14:$D$15)=0,0,SUM('Bahrein:Las Végas'!$G$14:$G$15))","v":273},11,5,null,"SAINZ.Jr Carlos",{"$f":"IF(Brésil!$D$8=\"\",0,SUM('Bahrein:Las Végas'!$G$8))","v":200},0,4]
["LECLERC Charles",null,null,2,1,null,18,null,"ALPINE F1 TEAM",{"$f":"IF(SUM(Brésil!$D$20:$D$21)=0,0,SUM('Bahrein:Las Végas'!$G$20:$G$21))","v":120},153,6,null,"NORRIS Lando",{"$f":"IF(Brésil!$D$29=\"\",0,SUM('Bahrein:Las Végas'!$G$29))","v":195},5,6]
[null,null,null,null,null,null,0,null,"WILLIAMS",{"$f":"IF(SUM(Brésil!$D$17:$D$18)=0,0,SUM('Bahrein:Las Végas'!$G$17:$G$18))","v":28},92,7,null,"LECLERC Charles",{"$f":"IF(Brésil!$D$9=\"\",0,SUM('Bahrein:Las Végas'!$G$9))","v":188},7,7]
["VERSTAPPEN Max","RED BULL RACING",null,1,null,null,25,null,"ALPHA TAURI",{"$f":"IF(SUM(Brésil!$D$23:$D$24)=0,0,SUM('Bahrein:Las Végas'!$G$23:$G$24))","v":19},9,8,null,"RUSSEL George",{"$f":"IF(Brésil!$D$6=\"\",0,SUM('Bahrein:Las Végas'!$G$6))","v":160},28,8]
["PEREZ Sergio",null,null,3,null,null,15,null,"ALFA ROMÉO",{"$f":"IF(SUM(Brésil!$D$32:$D$33)=\"\",0,SUM('Bahrein:Las Végas'!$G$32:$G$33))","v":16},3,9,null,"PIASTRI Oscar",{"$f":"IF(Brésil!$D$30=\"\",0,SUM('Bahrein:Las Végas'!$G$30))","v":89},71,9]
[null,null,null,null,null,null,0,null,"HAAS",{"$f":"IF(SUM(Brésil!$D$26:$D$27)=0,0,SUM('Bahrein:Las Végas'!$G$26:$G$27))","v":12},4,10,null,"STROLL Lance",{"$f":"IF(Brésil!$D$15=\"\",0,SUM('Bahrein:Las Végas'!$G$15))","v":73},16,10]
["ALONSO Fernando","ASTON MARTIN",null,9,null,null,2,null,null,null,null,null,null,"GASLY Pierre",{"$f":"IF(Brésil!$D$20=\"\",0,SUM('Bahrein:Las Végas'!$G$20))","v":62},11,11]
["STROLL Lance",null,null,5,null,null,10,null,null,null,null,null,null,"OCON Sebastian",{"$f":"IF(Brésil!$D$21=\"\",0,SUM('Bahrein:Las Végas'!$G$21))","v":58},4,12]
[null,null,null,null,null,null,0,null,null,null,null,null,null,"ALBON Alexander",{"$f":"IF(Brésil!$D$17=\"\",0,SUM('Bahrein:Las Végas'!$G$17))","v":27},31,13]
["ALBON Alexander","WILLIAMS",null,12,null,null,0,null,null,null,null,null,null,"TSUNODA Yoki",{"$f":"IF(Brésil!$D$23=\"\",0,SUM('Bahrein:Las Végas'!$G$23))","v":13},14,14]
["SARGEANT Logan",null,null,16,null,null,0,null,null,null,null,null,null,"BOTTAS Valtteri",{"$f":"IF(Brésil!$D$32=\"\",0,SUM('Bahrein:Las Végas'!$G$32))","v":10},3,15]
[null,null,null,null,null,null,0,null,null,null,null,null,null,"HULKENBERG Nico",{"$f":"IF(Brésil!$D$27=\"\",0,SUM('Bahrein:Las Végas'!$G$27))","v":9},1,16]
["GASLY Pierre","ALPINE F1 TEAM",null,11,null,null,0,null,null,null,null,null,null,"GUANYU Zhou",{"$f":"IF(Brésil!$D$33=\"\",0,SUM('Bahrein:Las Végas'!$G$33))","v":6},3,17]
["OCON Sebastian",null,null,4,null,null,12,null,null,null,null,null,null,"RICCIARDO Daniel",{"$f":"IF(Brésil!$D$24=\"\",0,SUM('Bahrein:Las Végas'!$G$24))","v":6},0,17]
[null,null,null,null,null,null,0,null,null,null,null,null,null,"MAGNUSSEN Kevin",{"$f":"IF(Brésil!$D$26=\"\",0,SUM('Bahrein:Las Végas'!$G$26))","v":3},3,19]
["TSUNODA Yuki","ALPHA TAURI",null,"OUT",null,null,0,null,null,null,null,null,null,"SARGEANT Logan",{"$f":"IF(Brésil!$D$18=\"\",0,SUM('Bahrein:Las Végas'!$G$18))","v":1},2,20]
["RICCIARDO Daniel",null,null,14,null,null,0]
[null,null,null,null,null,null,0]
["MAGNUSSEN Kevin","HAAS",null,13,null,null,0]
["HULKENBERG Nico",null,null,"OUT",null,null,0]
[null,null,null,null,null,null,0]
["NORRIS Lando","Mc LAREN",null,"OUT",null,null,0]
["PIASTRI Oscar",null,null,10,null,1,2]
[null,null,null,null,null,null,0]
["BOTTAS Valtteri","ALFA ROMÉO",null,17,null,null,0]
["GUANYU Zhou",null,null,15,null,null,0]
[null,null,null,null,null,null,0]

{"sheet":"AbuDhabi","index":26,"n_rows":34,"n_cols":17,"rows_kept":34,"cut":false,"hidden":false,"merged":[[16,1,18,1],[16,2,18,2],[19,1,21,1],[19,2,21,2],[36,1,36,3],[31,1,33,1],[31,2,33,2],[22,1,24,1],[22,2,24,2],[25,1,27,1],[25,2,27,2],[28,1,30,1],[28,2,30,2],[7,1,9,1],[7,2,9,2],[10,1,12,1],[10,2,12,2],[13,1,15,1],[13,2,15,2],[2,0,3,0],[0,0,1,16],[4,1,6,1],[4,2,6,2],[2,1,3,1],[2,2,3,2],[2,3,3,3],[2,5,3,5],[2,6,3,6],[2,4,3,4]]}
["YAS MARINA - 26 NOVEMBRE 2023"]
[]
["PILOTES","ECURIES","VOITURES","Finish","Pôle","Pt tour","Points",null,"ÉCURIES","Points","Écart","Rang",null,"Noms","Points","Écart","Rang"]
[null,null,null,null,null,null,null,null,"MERCEDES",{"$f":"IF(SUM('Las Végas'!$D$5:$D$6)=0,0,SUM(Bahrein:AbuDhabi!$G$5:$G$6))","v":392},null,{"$f":"IF(J4=\"\",0,(RANK(J4,$J$4:$J$13)))","v":2},null,"VERSTAPPEN Max",{"$f":"IF('Las Végas'!$D$11=\"\",0,SUM(Bahrein:AbuDhabi!$G$11:$G$11))","v":549},null,{"$f":"IF(O4=\"\",0,(RANK(O4,$O$4:$O$23)))","v":1}]
["HAMILTON Lewis","MERCEDES",null,null,null,null,{"$f":"IFERROR(CHOOSE(D5,25,18,15,12,10,8,6,4,2,1)+IF(D5<=10,F5),0)","v":0},null,"HAAS",{"$f":"IF(SUM('Las Végas'!$D$26:$D$27)=0,0,SUM(Bahrein:AbuDhabi!$G$26:$G$27))","v":12},{"$f":"J4-J5","v":380},{"$f":"IF(J5=\"\",0,(RANK(J5,$J$4:$J$13)))","v":10},null,"PEREZ Sergio",{"$f":"IF('Las Végas'!$D$12=\"\",0,SUM(Bahrein:AbuDhabi!$G$12))","v":273},{"$f":"O4-O5","v":276},{"$f":"IF(O5=\"\",0,(RANK(O5,$O$4:$O$23)))","v":2}]
["RUSSELL George",null,null,null,null,null,{"$f":"IFERROR(CHOOSE(D6,25,18,15,12,10,8,6,4,2,1)+IF(D6<=10,F6),0)","v":0},null,"Mc LAREN",{"$f":"IF(SUM('Las Végas'!$D$29:$D$30)=0,0,SUM(Bahrein:AbuDhabi!$G$29:$G$30))","v":284},{"$f":"J5-J6","v":-272},4,null,"ALONSO Fernando",{"$f":"IF('Las Végas'!$D$14=\"\",0,SUM(Bahrein:AbuDhabi!$G$14))","v":200},{"$f":"O5-O6","v":73},4]
[null,null,null,null,null,null,0,null,"FERRARI",{"$f":"IF(SUM('Las Végas'!$D$8:$D$9)=0,0,SUM(Bahrein:AbuDhabi!$G$8:$G$9))","v":388},-104,3,null,"HAMILTON Lewis",{"$f":"IF('Las Végas'!$D$5=\"\",0,SUM(Bahrein:AbuDhabi!$G$5))","v":232},-32,3]
["SAINZ.Jr Carlos","FERRARI",null,null,null,null,0,null,"WILLIAMS",{"$f":"IF(SUM('Las Végas'!$D$17:$D$18)=0,0,SUM(Bahrein:AbuDhabi!$G$17:$G$18))","v":28},360,7,null,"SAINZ.Jr Carlos",{"$f":"IF('Las Végas'!$D$8=\"\",0,SUM(Bahrein:AbuDhabi!$G$8))","v":200},32,4]
["LECLERC Charles",null,null,null,null,null,0,null,"ALFA ROMÉO",{"$f":"IF(SUM('Las Végas'!$D$32:$D$33)=0,0,SUM(Bahrein:AbuDhabi!$G$32:$G$33))","v":16},12,9,null,"STROLL Lance",{"$f":"IF('Las Végas'!$D$15=\"\",0,SUM(Bahrein:AbuDhabi!$G$15))","v":73},127,10]
[null,null,null,null,null,null,0,null,"RED BULL RACING",{"$f":"IF(SUM('Las Végas'!$D$11:$D$12)=0,0,SUM(Bahrein:AbuDhabi!$G$11:$G$12))","v":822},-806,1,null,"RUSSEL George",{"$f":"IF('Las Végas'!$D$6=\"\",0,SUM(Bahrein:AbuDhabi!$G$6))","v":160},-87,8]
["VERSTAPPEN Max","RED BULL RACING",null,null,null,null,0,null,"ASTON MARTIN",{"$f":"IF(SUM('Las Végas'!$D$14:$D$15)=0,0,SUM(Bahrein:AbuDhabi!$G$14:$G$15))","v":273},549,5,null,"NORRIS Lando",{"$f":"IF('Las Végas'!$D$29=\"\",0,SUM(Bahrein:AbuDhabi!$G$29))","v":195},-35,6]
["PEREZ Sergio",null,null,null,null,null,0,null,"ALPINE F1 TEAM",{"$f":"IF(SUM('Las Végas'!$D$20:$D$21)=0,0,SUM(Bahrein:AbuDhabi!$G$20:$G$21))","v":120},153,6,null,"LECLERC Charles",{"$f":"IF('Las Végas'!$D$9=\"\",0,SUM(Bahrein:AbuDhabi!$G$9))","v":188},7,7]
[null,null,null,null,null,null,0,null,"ALPHA TAURI",{"$f":"IF(SUM('Las Végas'!$D$23:$D$24)=0,0,SUM(Bahrein:AbuDhabi!$G$23:$G$24))","v":19},101,8,null,"HULKENBERG Nico",{"$f":"IF('Las Végas'!$D$27=\"\",0,SUM(Bahrein:AbuDhabi!$G$27))","v":9},179,16]
["ALONSO Fernando","ASTON MARTIN",null,null,null,null,0,null,null,null,null,null,null,"BOTTAS Valtteri",{"$f":"IF('Las Végas'!$D$32=\"\",0,SUM(Bahrein:AbuDhabi!$G$32))","v":10},-1,15]
["STROLL Lance",null,null,null,null,null,0,null,null,null,null,null,null,"GASLY Pierre",{"$f":"IF('Las Végas'!$D$20=\"\",0,SUM(Bahrein:AbuDhabi!$G$20))","v":62},-52,11]
[null,null,null,null,null,null,0,null,null,null,null,null,null,"OCON Sebastian",{"$f":"IF('Las Végas'!$D$21=\"\",0,SUM(Bahrein:AbuDhabi!$G$21))","v":58},4,12]
["ALBON Alexander","WILLIAMS",null,null,null,null,0,null,null,null,null,null,null,"PIASTRI Oscar",{"$f":"IF('Las Végas'!$D$30=\"\",0,SUM(Bahrein:AbuDhabi!$G$30))","v":89},-31,9]
["SARGEANT Logan",null,null,null,null,null,0,null,null,null,null,null,null,"GUANYU Zhou",{"$f":"IF('Las Végas'!$D$33=\"\",0,SUM(Bahrein:AbuDhabi!$G$33))","v":6},83,17]
[null,null,null,null,null,null,0,null,null,null,null,null,null,"ALBON Alexander",{"$f":"IF('Las Végas'!$D$17=\"\",0,SUM(Bahrein:AbuDhabi!$G$17))","v":27},-21,13]
["GASLY Pierre","ALPINE F1 TEAM",null,null,null,null,0,null,null,null,null,null,null,"MAGNUSSEN Kevin",{"$f":"IF('Las Végas'!$D$26=\"\",0,SUM(Bahrein:AbuDhabi!$G$26))","v":3},24,19]
["OCON Sebastian",null,null,null,null,null,0,null,null,null,null,null,null,"TSUNODA Yoki",{"$f":"IF('Las Végas'!$D$23=\"\",0,SUM(Bahrein:AbuDhabi!$G$23))","v":13},-10,14]
[null,null,null,null,null,null,0,null,null,null,null,null,null,"RICCIARDO Daniel",{"$f":"IF('Las Végas'!$D$24=\"\",0,SUM(Bahrein:AbuDhabi!$G$24))","v":6},7,17]
["TSUNODA Yuki","ALPHA TAURI",null,null,null,null,0,null,null,null,null,null,null,"SARGEANT Logan",{"$f":"IF('Las Végas'!$D$18=\"\",0,SUM(Bahrein:AbuDhabi!$G$18))","v":1},5,20]
["RICCIARDO Daniel",null,null,null,null,null,0]
[null,null,null,null,null,null,0]
["MAGNUSSEN Kevin","HAAS",null,null,null,null,0]
["HULKENBERG Nico",null,null,null,null,null,0]
[null,null,null,null,null,null,0]
["NORRIS Lando","Mc LAREN",null,null,null,null,0]
["PIASTRI Oscar",null,null,null,null,null,0]
[null,null,null,null,null,null,0]
["BOTTAS Valtteri","ALFA ROMÉO",null,null,null,null,0]
["GUANYU Zhou",null,null,null,null,null,0]
[null,null,null,null,null,null,0]

{"sheet":"Graphique","index":27,"n_rows":461,"n_cols":23,"rows_kept":461,"cut":false,"hidden":false,"merged":[]}
[null,{"$f":"_xlfn.LET(_xlpm.tbl,_xlfn.VSTACK(Bahrein:AbuDhabi!$N$4:$O$35),_xlfn.TOROW(_xlfn._xlws.SORT(_xlfn.UNIQUE(_xlfn._xlws.FILTER(_xlfn.TAKE(_xlpm.tbl,,1),_xlfn.TAKE(_xlpm.tbl,,-1)<>0)))))","v":"ALBON Alexander"},"ALONSO Fernando","BOTTAS Valtteri","GASLY Pierre","GUANYU Zhou","HAMILTON Lewis","HULKENBERG Nico","LECLERC Charles","MAGNUSEN Kevin","MAGNUSSEN Kevin","MAGNUSSUN Kevin","NORRIS Lando","OCON Sebastian","PEREZ Sergio","PIASTRI Oscar","RICCIARDO Daniel","RUSSEL George","SAINZ.Jr Carlos","SARGEANT Logan","STROLL Lance","TSUNODA Yoki","VERSTAPPEN Max"]
[{"$f":"_xlfn.LET(_xlpm.tbl,_xlfn.VSTACK(Bahrein:AbuDhabi!$N$4:$O$35),_xlfn._xlws.FILTER(_xlfn.TAKE(_xlpm.tbl,,-1),(_xlfn.TAKE(_xlpm.tbl,,1)<>0)))","v":25},{"$f":"_xlfn.LET(_xlpm.tbl,_xlfn.VSTACK(Bahrein:AbuDhabi!$N$4:$O$35),_xlfn._xlws.FILTER(_xlfn.TAKE(_xlpm.tbl,,-1),(_xlfn.TAKE(_xlpm.tbl,,-1)<>0)*(_xlfn.TAKE(_xlpm.tbl,,1)=B$1)))","v":1},{"$f":"_xlfn.LET(_xlpm.tbl,_xlfn.VSTACK(Bahrein:AbuDhabi!$N$4:$O$35),_xlfn._xlws.FILTER(_xlfn.TAKE(_xlpm.tbl,,-1),(_xlfn.TAKE(_xlpm.tbl,,-1)<>0)*(_xlfn.TAKE(_xlpm.tbl,,1)=C$1)))","v":15},{"$f":"_xlfn.LET(_xlpm.tbl,_xlfn.VSTACK(Bahrein:AbuDhabi!$N$4:$O$35),_xlfn._xlws.FILTER(_xlfn.TAKE(_xlpm.tbl,,-1),(_xlfn.TAKE(_xlpm.tbl,,-1)<>0)*(_xlfn.TAKE(_xlpm.tbl,,1)=D$1)))","v":4},{"$f":"_xlfn.LET(_xlpm.tbl,_xlfn.VSTACK(Bahrein:AbuDhabi!$N$4:$O$35),_xlfn._xlws.FILTER(_xlfn.TAKE(_xlpm.tbl,,-1),(_xlfn.TAKE(_xlpm.tbl,,-1)<>0)*(_xlfn.TAKE(_xlpm.tbl,,1)=E$1)))","v":4},{"$f":"_xlfn.LET(_xlpm.tbl,_xlfn.VSTACK(Bahrein:AbuDhabi!$N$4:$O$35),_xlfn._xlws.FILTER(_xlfn.TAKE(_xlpm.tbl,,-1),(_xlfn.TAKE(_xlpm.tbl,,-1)<>0)*(_xlfn.TAKE(_xlpm.tbl,,1)=F$1)))","v":2},{"$f":"_xlfn.LET(_xlpm.tbl,_xlfn.VSTACK(Bahrein:AbuDhabi!$N$4:$O$35),_xlfn._xlws.FILTER(_xlfn.TAKE(_xlpm.tbl,,-1),(_xlfn.TAKE(_xlpm.tbl,,-1)<>0)*(_xlfn.TAKE(_xlpm.tbl,,1)=G$1)))","v":10},{"$f":"_xlfn.LET(_xlpm.tbl,_xlfn.VSTACK(Bahrein:AbuDhabi!$N$4:$O$35),_xlfn._xlws.FILTER(_xlfn.TAKE(_xlpm.tbl,,-1),(_xlfn.TAKE(_xlpm.tbl,,-1)<>0)*(_xlfn.TAKE(_xlpm.tbl,,1)=H$1)))","v":6},{"$f":"_xlfn.LET(_xlpm.tbl,_xlfn.VSTACK(Bahrein:AbuDhabi!$N$4:$O$35),_xlfn._xlws.FILTER(_xlfn.TAKE(_xlpm.tbl,,-1),(_xlfn.TAKE(_xlpm.tbl,,-1)<>0)*(_xlfn.TAKE(_xlpm.tbl,,1)=I$1)))","v":6},{"$f":"_xlfn.LET(_xlpm.tbl,_xlfn.VSTACK(Bahrein:AbuDhabi!$N$4:$O$35),_xlfn._xlws.FILTER(_xlfn.TAKE(_xlpm.tbl,,-1),(_xlfn.TAKE(_xlpm.tbl,,-1)<>0)*(_xlfn.TAKE(_xlpm.tbl,,1)=J$1)))","v":2},{"$f":"_xlfn.LET(_xlpm.tbl,_xlfn.VSTACK(Bahrein:AbuDhabi!$N$4:$O$35),_xlfn._xlws.FILTER(_xlfn.TAKE(_xlpm.tbl,,-1),(_xlfn.TAKE(_xlpm.tbl,,-1)<>0)*(_xlfn.TAKE(_xlpm.tbl,,1)=K$1)))","v":1},{"$f":"_xlfn.LET(_xlpm.tbl,_xlfn.VSTACK(Bahrein:AbuDhabi!$N$4:$O$35),_xlfn._xlws.FILTER(_xlfn.TAKE(_xlpm.tbl,,-1),(_xlfn.TAKE(_xlpm.tbl,,-1)<>0)*(_xlfn.TAKE(_xlpm.tbl,,1)=L$1)))","v":2},{"$f":"_xlfn.LET(_xlpm.tbl,_xlfn.VSTACK(Bahrein:AbuDhabi!$N$4:$O$35),_xlfn._xlws.FILTER(_xlfn.TAKE(_xlpm.tbl,,-1),(_xlfn.TAKE(_xlpm.tbl,,-1)<>0)*(_xlfn.TAKE(_xlpm.tbl,,1)=M$1)))","v":4},{"$f":"_xlfn.LET(_xlpm.tbl,_xlfn.VSTACK(Bahrein:AbuDhabi!$N$4:$O$35),_xlfn._xlws.FILTER(_xlfn.TAKE(_xlpm.tbl,,-1),(_xlfn.TAKE(_xlpm.tbl,,-1)<>0)*(_xlfn.TAKE(_xlpm.tbl,,1)=N$1)))","v":4},{"$f":"_xlfn.LET(_xlpm.tbl,_xlfn.VSTACK(Bahrein:AbuDhabi!$N$4:$O$35),_xlfn._xlws.FILTER(_xlfn.TAKE(_xlpm.tbl,,-1),(_xlfn.TAKE(_xlpm.tbl,,-1)<>0)*(_xlfn.TAKE(_xlpm.tbl,,1)=O$1)))","v":18},{"$f":"_xlfn.LET(_xlpm.tbl,_xlfn.VSTACK(Bahrein:AbuDhabi!$N$4:$O$35),_xlfn._xlws.FILTER(_xlfn.TAKE(_xlpm.tbl,,-1),(_xlfn.TAKE(_xlpm.tbl,,-1)<>0)*(_xlfn.TAKE(_xlpm.tbl,,1)=P$1)))","v":4},{"$f":"_xlfn.LET(_xlpm.tbl,_xlfn.VSTACK(Bahrein:AbuDhabi!$N$4:$O$35),_xlfn._xlws.FILTER(_xlfn.TAKE(_xlpm.tbl,,-1),(_xlfn.TAKE(_xlpm.tbl,,-1)<>0)*(_xlfn.TAKE(_xlpm.tbl,,1)=Q$1)))","v":6},{"$f":"_xlfn.LET(_xlpm.tbl,_xlfn.VSTACK(Bahrein:AbuDhabi!$N$4:$O$35),_xlfn._xlws.FILTER(_xlfn.TAKE(_xlpm.tbl,,-1),(_xlfn.TAKE(_xlpm.tbl,,-1)<>0)*(_xlfn.TAKE(_xlpm.tbl,,1)=R$1)))","v":6},{"$f":"_xlfn.LET(_xlpm.tbl,_xlfn.VSTACK(Bahrein:AbuDhabi!$N$4:$O$35),_xlfn._xlws.FILTER(_xlfn.TAKE(_xlpm.tbl,,-1),(_xlfn.TAKE(_xlpm.tbl,,-1)<>0)*(_xlfn.TAKE(_xlpm.tbl,,1)=S$1)))","v":12},{"$f":"_xlfn.LET(_xlpm.tbl,_xlfn.VSTACK(Bahrein:AbuDhabi!$N$4:$O$35),_xlfn._xlws.FILTER(_xlfn.TAKE(_xlpm.tbl,,-1),(_xlfn.TAKE(_xlpm.tbl,,-1)<>0)*(_xlfn.TAKE(_xlpm.tbl,,1)=T$1)))","v":1},{"$f":"_xlfn.LET(_xlpm.tbl,_xlfn.VSTACK(Bahrein:AbuDhabi!$N$4:$O$35),_xlfn._xlws.FILTER(_xlfn.TAKE(_xlpm.tbl,,-1),(_xlfn.TAKE(_xlpm.tbl,,-1)<>0)*(_xlfn.TAKE(_xlpm.tbl,,1)=U$1)))","v":8},{"$f":"_xlfn.LET(_xlpm.tbl,_xlfn.VSTACK(Bahrein:AbuDhabi!$N$4:$O$35),_xlfn._xlws.FILTER(_xlfn.TAKE(_xlpm.tbl,,-1),(_xlfn.TAKE(_xlpm.tbl,,-1)<>0)*(_xlfn.TAKE(_xlpm.tbl,,1)=V$1)))","v":1},{"$f":"_xlfn.LET(_xlpm.tbl,_xlfn.VSTACK(Bahrein:AbuDhabi!$N$4:$O$35),_xlfn._xlws.FILTER(_xlfn.TAKE(_xlpm.tbl,,-1),(_xlfn.TAKE(_xlpm.tbl,,-1)<>0)*(_xlfn.TAKE(_xlpm.tbl,,1)=W$1)))","v":25}]
[18,1,30,4,4,2,20,1,6,null,1,null,8,4,43,4,6,18,20,1,8,2,44]
[15,1,45,4,4,2,38,6,28,null,1,null,10,4,54,4,6,18,20,1,20,2,69]
[12,1,60,4,8,2,48,6,34,null,2,null,10,6,87,4,6,28,34,1,27,2,93]
[10,1,75,4,8,2,56,6,34,null,2,null,10,6,105,5,null,40,44,1,27,2,119]
[8,1,75,4,14,4,56,6,42,null,2,null,12,21,105,5,null,40,44,null,27,2,119]
[6,1,93,4,15,4,69,6,42,null,2,null,12,25,105,5,null,50,48,null,27,2,144]
[4,7,99,4,15,4,87,9,54,null,2,null,12,29,117,17,null,65,58,null,35,2,170]
[1,7,117,5,16,4,102,9,72,null,2,null,24,31,126,27,null,65,68,null,37,2,195]
[0,11,131,5,16,4,106,9,74,null,2,null,42,31,148,34,null,72,82,null,44,2,229]
[0,11,137,5,16,4,121,9,80,null,2,null,60,31,156,36,null,82,83,null,44,3,255]
[0,11,139,5,22,4,133,2,99,null,2,null,69,35,171,36,null,90,87,null,45,3,281]
[0,15,149,5,37,4,148,9,99,null,3,null,75,36,189,42,null,99,92,null,47,3,314]
[0,21,168,5,37,4,156,9,111,null,3,null,79,36,201,57,null,99,102,null,47,3,339]
[0,21,170,6,45,4,164,9,123,null,3,null,42,36,219,83,null,109,117,null,47,3,364]
[0,21,170,6,46,6,180,9,135,null,3,null,115,38,223,83,null,109,142,null,47,3,374]
[0,23,174,6,46,6,400,9,145,null,3,null,136,44,223,87,null,115,400,null,47,8,400]
[0,25,183,10,56,6,194,9,151,null,3,null,159,44,224,87,null,132,153,null,47,8,433]
[0,27,183,10,56,6,201,9,166,null,3,null,169,45,240,89,null,143,171,null,53,13,466]
[0,27,183,10,62,6,220,9,170,null,3,null,195,46,240,89,null,151,183,null,53,13,491]
[44,27,198,10,62,6,226,9,188,null,null,null,195,58,258,null,null,156,192,null,63,13,524]
[43,27,200,10,62,null,232,null,188,null,null,null,195,58,273,null,null,160,200,null,73,null,549]
[30,null,200,10,null,null,232,null,null,null,null,null,null,null,273,null,null,160,200,null,73,null,549]
[20]
[20]
[18]
[8]
[6]
[4]
[4]
[4]
[4]
[1]
[1]
[0]
[0]
[0]
[0]
[0]
[0]
[69]
[54]
[45]
[38]
[20]
[20]
[18]
[8]
[6]
[6]
[4]
[4]
[4]
[4]
[2]
[1]
[1]
[1]
[0]
[0]
[93]
[87]
[60]
[48]
[34]
[28]
[28]
[27]
[10]
[4]
[4]
[4]
[4]
[2]
[2]
[1]
[1]
[1]
[0]
[0]
[119]
[105]
[75]
[56]
[44]
[40]
[34]
[27]
[10]
[8]
[6]
[6]
[4]
[4]
[2]
[2]
[2]
[1]
[0]
[0]
[119]
[105]
[75]
[56]
[44]
[40]
[34]
[27]
[10]
[8]
[6]
[6]
[4]
[4]
[2]
[2]
[2]
[0]
[0]
[0]
[144]
[105]
[93]
[69]
[50]
[48]
[42]
[27]
[21]
[14]
[12]
[6]
[5]
[4]
[2]
[2]
[2]
[1]
[0]
[0]
[170]
[117]
[99]
[87]
[65]
[58]
[42]
[35]
[25]
[15]
[12]
[6]
[5]
[4]
[4]
[2]
[2]
[1]
[0]
[0]
[195]
[126]
[117]
[102]
[68]
[65]
[54]
[37]
[29]
[15]
[12]
[7]
[6]
[5]
[5]
[4]
[2]
[2]
[0]
[0]
[229]
[148]
[131]
[106]
[82]
[72]
[72]
[44]
[31]
[24]
[16]
[9]
[7]
[5]
[4]
[2]
[2]
[0]
[0]
[0]
[255]
[156]
[137]
[121]
[83]
[82]
[74]
[44]
[42]
[31]
[17]
[16]
[11]
[9]
[5]
[4]
[2]
[2]
[0]
[0]
[281]
[171]
[139]
[133]
[90]
[87]
[80]
[60]
[45]
[31]
[27]
[16]
[11]
[9]
[5]
[4]
[2]
[2]
[0]
[0]
[314]
[189]
[149]
[148]
[99]
[99]
[92]
[69]
[47]
[35]
[34]
[22]
[11]
[9]
[5]
[4]
[3]
[2]
[0]
[0]
[339]
[201]
[168]
[156]
[102]
[99]
[99]
[75]
[47]
[37]
[36]
[36]
[15]
[5]
[4]
[3]
[2]
[2]
[0]
[0]
[364]
[219]
[170]
[164]
[117]
[111]
[109]
[79]
[47]
[37]
[36]
[36]
[21]
[9]
[6]
[4]
[3]
[2]
[0]
[0]
[374]
[223]
[180]
[170]
[142]
[123]
[109]
[47]
[45]
[42]
[42]
[36]
[21]
[9]
[6]
[4]
[3]
[3]
[0]
[0]
[400]
[400]
[400]
[223]
[174]
[135]
[115]
[115]
[57]
[47]
[46]
[38]
[21]
[9]
[6]
[4]
[3]
[3]
[0]
[0]
[433]
[224]
[194]
[183]
[153]
[145]
[136]
[132]
[83]
[47]
[46]
[44]
[23]
[10]
[9]
[6]
[3]
[3]
[0]
[0]
[466]
[240]
[201]
[183]
[171]
[159]
[151]
[143]
[83]
[56]
[53]
[44]
[25]
[10]
[9]
[8]
[6]
[3]
[1]
[0]
[491]
[240]
[220]
[183]
[183]
[169]
[166]
[151]
[87]
[56]
[53]
[45]
[27]
[10]
[9]
[8]
[6]
[6]
[3]
[1]
[524]
[258]
[226]
[198]
[195]
[192]
[170]
[156]
[87]
[63]
[62]
[46]
[27]
[13]
[10]
[9]
[6]
[6]
[3]
[1]
[549]
[273]
[232]
[200]
[200]
[195]
[188]
[160]
[89]
[73]
[62]
[58]
[27]
[13]
[10]
[9]
[6]
[6]
[3]
[1]
[549]
[273]
[200]
[232]
[200]
[73]
[160]
[195]
[188]
[9]
[10]
[62]
[58]
[89]
[6]
[27]
[3]
[13]
[6]
[1]